Trans No.,Service Area Categorisation,Service Division Categorisation,Responsible Unit,Unit Code,Expense Type,Expense Sub Type,Expense Code,Narrative,Amount,Invoice Date,Cap/rev,Supplier Name
1,Central Services,Corporate Mangmt not separated,Chief Exec's Office,A01001,Employees                     ,Direct Employee Expenses      ,AA96,SALARY SACRIFICE (TEACHERS)             ,833.33,20170109,R,F.W.EVANS CYCLES (UK) LTD.
2,Central Services,Corporate Mangmt not separated,Chief Exec's Office,A01001,Supplies & Services           ,Grants and Subscriptions      ,DJ04,Subscriptions                           ,12250,20170104,R,LGIU
3,Central Services,SupS Chief Execs,Local Involvement Network,A01039,Third Party Payments          ,Private Contractors           ,EH10,Contract Payments                       ,500,20160630,R,VOICEABILITY
4,Central Services,SupS Chief Execs,Local Involvement Network,A01039,Third Party Payments          ,Private Contractors           ,EH10,Contract Payments                       ,2764.94,20170101,R,VOICEABILITY
5,Central Services,SupS Chief Execs,Local Involvement Network,A01039,Third Party Payments          ,Private Contractors           ,EH10,Contract Payments                       ,10423.75,20161201,R,MERTON VOLUNTARY SERV COUNCIL
6,Cultural Env Reg&Plan Services,Comm Safety (Crime Reduction),CCTV,A01200,Employees                     ,Direct Employee Expenses      ,AA96,SALARY SACRIFICE (TEACHERS)             ,833.33,20170105,R,F.W.EVANS CYCLES (UK) LTD.
7,Cultural Env Reg&Plan Services,Comm Safety (Crime Reduction),CCTV,A01200,Premises Related Expenditure  ,Energy Costs                  ,BB02,Electricity                             ,1090.1,20170109,R,SCOTTISH POWER
8,Cultural Env Reg&Plan Services,Comm Safety (Crime Reduction),CCTV,A01200,Supplies & Services           ,Equip Furniture/Materials     ,DA01,Equipment - R & M                       ,4009.75,20170105,R,TYCO FIRE & INTEGR'TD SOL (UK
9,Cultural Env Reg&Plan Services,Comm Safety (Crime Reduction),CCTV,A01200,Supplies & Services           ,Services                      ,DF57,Consulting Engineers Fees               ,1385.55,20161231,R,GLOBAL MSC SECURITY LTD
10,Central Services,SupS Chief Execs,NON-STATUTORY MARKETING & COMM,A02019,Supplies & Services           ,Prntng Stnry Gen Off Exp      ,DE11,Print Room Costs                        ,580,20170104,R,PRINT SECTION (INTERNAL)
11,Central Services,SupS Chief Execs,NON-STATUTORY MARKETING & COMM,A02019,Supplies & Services           ,Prntng Stnry Gen Off Exp      ,DE22,Marketing                               ,4600,20161202,R,LONDON LETTERBOX MARKETING
12,Central Services,SupS Chief Execs,NON-STATUTORY MARKETING & COMM,A02019,Supplies & Services           ,Services                      ,DF35,Graphic Design                          ,824.75,20161205,R,DOMINO 4 LIMITED
13,Central Services,SupS Chief Execs,Press and Public Relations.,A02026,Supplies & Services           ,Prntng Stnry Gen Off Exp      ,DE22,Marketing                               ,3968,20161125,R,LONDON LETTERBOX MARKETING
14,CS -Oth Operating Inc & Expend,T/A Corporate Services,Prting Jobs - Internal,A03040,Supplies & Services           ,Prntng Stnry Gen Off Exp      ,DE05,Micro-filming                           ,1908.69,20161129,R,MISL LTD
15,CS -Oth Operating Inc & Expend,T/A Corporate Services,Prting Jobs - Internal,A03040,Supplies & Services           ,Prntng Stnry Gen Off Exp      ,DE05,Micro-filming                           ,8933.24,20161129,R,MISL LTD
16,CS -Oth Operating Inc & Expend,T/A Corporate Services,Prtng Jobs - Ext Agncy,A03041,Supplies & Services           ,Prntng Stnry Gen Off Exp      ,DE01,External Printing                       ,681.3,20161216,R,OFFICE DEPOT UK LTD
17,CS -Oth Operating Inc & Expend,T/A Corporate Services,Prtng Jobs - Ext Agncy,A03041,Supplies & Services           ,Prntng Stnry Gen Off Exp      ,DE01,External Printing                       ,864.15,20161202,R,IMAGE DATA GOUP
18,CS -Oth Operating Inc & Expend,T/A Corporate Services,Prtng Jobs - Ext Agncy,A03041,Supplies & Services           ,Prntng Stnry Gen Off Exp      ,DE01,External Printing                       ,889.96,20161202,R,IMAGE DATA GOUP
19,CS -Oth Operating Inc & Expend,T/A Corporate Services,Prtng Jobs - Ext Agncy,A03041,Supplies & Services           ,Prntng Stnry Gen Off Exp      ,DE01,External Printing                       ,1931.35,20161202,R,IMAGE DATA GOUP
20,CS -Oth Operating Inc & Expend,T/A Corporate Services,Prtng Jobs - Ext Agncy,A03041,Supplies & Services           ,Prntng Stnry Gen Off Exp      ,DE01,External Printing                       ,2130,20170123,R,CUSTOMISED GRAPHICS PRINT LTD
21,CS -Oth Operating Inc & Expend,T/A Corporate Services,Prtng Jobs - Ext Agncy,A03041,Supplies & Services           ,Prntng Stnry Gen Off Exp      ,DE01,External Printing                       ,2514.04,20161202,R,IMAGE DATA GOUP
22,CS -Oth Operating Inc & Expend,T/A Corporate Services,Prtng Jobs - Ext Agncy,A03041,Supplies & Services           ,Prntng Stnry Gen Off Exp      ,DE01,External Printing                       ,3050,20170123,R,CUSTOMISED GRAPHICS PRINT LTD
23,CS -Oth Operating Inc & Expend,T/A Corporate Services,PrintUnit-HighVolPhtcopying,A03042,Supplies & Services           ,Equip Furniture/Materials     ,DA06,Paper-Internal Print Jobs               ,3750,20161216,R,RAINBOW OFFICE SUPPLIES LTD
24,CS -Oth Operating Inc & Expend,T/A Corporate Services,Translation Services,A04060,Supplies & Services           ,Equip Furniture/Materials     ,DA02,Op. Leasing Equipment                   ,4291.67,20161120,R,EXPANDING HOMES LTD
25,CS -Oth Operating Inc & Expend,T/A Corporate Services,Translation Services,A04060,Supplies & Services           ,Services                      ,DF45,Payment of Sessional Workers            ,1450,20161231,R,COSMIC EUROPE LIMTED
26,Central Services,Grants - Voluntary Groups,VOLUNTARY SECTOR COORDINATION,A04082,Supplies & Services           ,Grants and Subscriptions      ,DJ04,Subscriptions                           ,2000,20170117,R,ISLINGTON COUNCIL
27,Central Services,Grants - Voluntary Groups,VOLUNTARY SECTOR COORDINATION,A04082,Supplies & Services           ,Grants and Subscriptions      ,DJ04,Subscriptions                           ,53629,20160103,R,LONDON COUNCILS
28,Highways & Transport Services,On-street parking,Blue Badge Service,A04088,Supplies & Services           ,Services                      ,DF14,Doctors and Other Fees                  ,900,20160719,R,LLOYDS TSB COMMERCIAL FINANCE
29,Highways & Transport Services,On-street parking,Blue Badge Service,A04088,Supplies & Services           ,Comms and Computing           ,DG15,Network Maintenance                     ,600,20161215,R,LLOYDS TSB COMMERCIAL FINANCE
30,Highways & Transport Services,On-street parking,Blue Badge Service,A04088,Supplies & Services           ,Comms and Computing           ,DG15,Network Maintenance                     ,700.23,20170103,R,NORTHGATE PUBLIC SERV (UK) LTD
31,Central Services,SupS Health & Safety,Learning and Development,B06146,Employees                     ,Indirect Employee Expenses    ,AB57,EXTERNAL TRAINING COSTS                 ,550,20161122,R,MSH TRAINING & CONSULTANCY LTD
32,Central Services,SupS Health & Safety,Learning and Development,B06146,Employees                     ,Indirect Employee Expenses    ,AB57,EXTERNAL TRAINING COSTS                 ,550,20170120,R,MSH TRAINING & CONSULTANCY LTD
33,Central Services,SupS Health & Safety,Learning and Development,B06146,Employees                     ,Indirect Employee Expenses    ,AB57,EXTERNAL TRAINING COSTS                 ,550,20161221,R,MSH TRAINING & CONSULTANCY LTD
34,Central Services,SupS Health & Safety,Learning and Development,B06146,Employees                     ,Indirect Employee Expenses    ,AB57,EXTERNAL TRAINING COSTS                 ,830,20160906,R,MAYBO LTD
35,Central Services,SupS Health & Safety,Learning and Development,B06146,Employees                     ,Indirect Employee Expenses    ,AB57,EXTERNAL TRAINING COSTS                 ,975,20170109,R,CAPITA BUSINESS SERVICES LTD
36,Central Services,SupS Health & Safety,Learning and Development,B06146,Employees                     ,Indirect Employee Expenses    ,AB57,EXTERNAL TRAINING COSTS                 ,1000,20160928,R,HAPPY COMPUTERS LTD
37,Central Services,SupS Health & Safety,Learning and Development,B06146,Employees                     ,Indirect Employee Expenses    ,AB57,EXTERNAL TRAINING COSTS                 ,1008.32,20170118,R,RETIREMENT EDUCATION SERVICES
38,Central Services,SupS Health & Safety,Learning and Development,B06146,Employees                     ,Indirect Employee Expenses    ,AB57,EXTERNAL TRAINING COSTS                 ,1500,20170121,R,THE LEARNING ARCHITECT
39,Central Services,SupS Health & Safety,Learning and Development,B06146,Employees                     ,Indirect Employee Expenses    ,AB57,EXTERNAL TRAINING COSTS                 ,1500,20161215,R,THE LEARNING ARCHITECT
40,Central Services,SupS Health & Safety,Learning and Development,B06146,Employees                     ,Indirect Employee Expenses    ,AB57,EXTERNAL TRAINING COSTS                 ,1650,20161230,R,SALVEO SAFETY
41,Central Services,SupS Health & Safety,Learning and Development,B06146,Employees                     ,Indirect Employee Expenses    ,AB57,EXTERNAL TRAINING COSTS                 ,1750,20160322,R,CARE & HEALTH LAW
42,Central Services,SupS Health & Safety,Learning and Development,B06146,Employees                     ,Indirect Employee Expenses    ,AB57,EXTERNAL TRAINING COSTS                 ,3600,20160905,R,WAMAS LTD
43,0,0,Laptops for Other Staff,CC018EB,Vehicles Plant Equipment and Machinery,0,D3 ,Equipment                               ,9533.16,20170112,C,XMA LIMITED
44,0,0,Disabled Facilities Grant DCLG          ,CE004RA,Other Capital Expenditure,0,E1 ,Grants                                  ,626.67,20170127,C,CBS ADAPTATION
45,0,0,Disabled Facilities Grant DCLG          ,CE004RA,Other Capital Expenditure,0,E1 ,Grants                                  ,724.8,20161230,C,REDACTED            
46,0,0,Disabled Facilities Grant DCLG          ,CE004RA,Other Capital Expenditure,0,E1 ,Grants                                  ,879.03,20170104,C,CBS ADAPTATION
47,0,0,Disabled Facilities Grant DCLG          ,CE004RA,Other Capital Expenditure,0,E1 ,Grants                                  ,905,20170126,C,SUTTON STAYING PUT
48,0,0,Disabled Facilities Grant DCLG          ,CE004RA,Other Capital Expenditure,0,E1 ,Grants                                  ,979.2,20170127,C,REDACTED            
49,0,0,Disabled Facilities Grant DCLG          ,CE004RA,Other Capital Expenditure,0,E1 ,Grants                                  ,1108.8,20170109,C,REDACTED            
50,0,0,Disabled Facilities Grant DCLG          ,CE004RA,Other Capital Expenditure,0,E1 ,Grants                                  ,1117.5,20170109,C,SUTTON STAYING PUT
51,0,0,Disabled Facilities Grant DCLG          ,CE004RA,Other Capital Expenditure,0,E1 ,Grants                                  ,1174.05,20170126,C,CBS ADAPTATION
52,0,0,Disabled Facilities Grant DCLG          ,CE004RA,Other Capital Expenditure,0,E1 ,Grants                                  ,1242,20170109,C,REDACTED            
53,0,0,Disabled Facilities Grant DCLG          ,CE004RA,Other Capital Expenditure,0,E1 ,Grants                                  ,1300,20170127,C,CBS ADAPTATION
54,0,0,Disabled Facilities Grant DCLG          ,CE004RA,Other Capital Expenditure,0,E1 ,Grants                                  ,1909.5,20170109,C,SUTTON STAYING PUT
55,0,0,Disabled Facilities Grant DCLG          ,CE004RA,Other Capital Expenditure,0,E1 ,Grants                                  ,1932.28,20170127,C,CBS ADAPTATION
56,0,0,Disabled Facilities Grant DCLG          ,CE004RA,Other Capital Expenditure,0,E1 ,Grants                                  ,2004.19,20170105,C,CBS ADAPTATION
57,0,0,Disabled Facilities Grant DCLG          ,CE004RA,Other Capital Expenditure,0,E1 ,Grants                                  ,2194.25,20170127,C,SUTTON STAYING PUT
58,0,0,Disabled Facilities Grant DCLG          ,CE004RA,Other Capital Expenditure,0,E1 ,Grants                                  ,2523.13,20170127,C,CBS ADAPTATION
59,0,0,Disabled Facilities Grant DCLG          ,CE004RA,Other Capital Expenditure,0,E1 ,Grants                                  ,2630.33,20170127,C,CBS ADAPTATION
60,0,0,Disabled Facilities Grant DCLG          ,CE004RA,Other Capital Expenditure,0,E1 ,Grants                                  ,2713.5,20170127,C,STAYING FIRST
61,0,0,Disabled Facilities Grant DCLG          ,CE004RA,Other Capital Expenditure,0,E1 ,Grants                                  ,4905,20170127,C,FREEWAY LIFT SERVICES LTD
62,0,0,Disabled Facilities Grant DCLG          ,CE004RA,Other Capital Expenditure,0,E1 ,Grants                                  ,6040,20161230,C,VISTASCAPES
63,0,0,Disabled Facilities Grant DCLG          ,CE004RA,Other Capital Expenditure,0,E1 ,Grants                                  ,6300,20170109,C,ASCENDIT LIFTS LTD [RH6 9GA]
64,0,0,Disabled Facilities Grant DCLG          ,CE004RA,Other Capital Expenditure,0,E1 ,Grants                                  ,7420,20170127,C,WHITEHOUSE B'LDING SPECIALIST
65,0,0,Disabled Facilities Grant DCLG          ,CE004RA,Other Capital Expenditure,0,E1 ,Grants                                  ,7840,20170127,C,WEIR BUILDING SERVICES
66,0,0,Disabled Facilities Grant DCLG          ,CE004RA,Other Capital Expenditure,0,E1 ,Grants                                  ,8160,20170127,C,NONDRIP
67,0,0,Disabled Facilities Grant DCLG          ,CE004RA,Other Capital Expenditure,0,E1 ,Grants                                  ,8798.5,20170126,C,T BROWN LTD
68,0,0,Disabled Facilities Grant DCLG          ,CE004RA,Other Capital Expenditure,0,E1 ,Grants                                  ,9240,20170109,C,VISTASCAPES
69,0,0,Disabled Facilities Grant DCLG          ,CE004RA,Other Capital Expenditure,0,E1 ,Grants                                  ,10015,20170127,C,ASCENDIT LIFTS LTD [RH6 9GA]
70,0,0,Disabled Facilities Grant DCLG          ,CE004RA,Other Capital Expenditure,0,E1 ,Grants                                  ,10350,20170109,C,JCP BUILDING CONTRACTORS
71,0,0,Disabled Facilities Grant DCLG          ,CE004RA,Other Capital Expenditure,0,E1 ,Grants                                  ,12405,20170104,C,T BROWN LTD
72,0,0,Disabled Facilities Grant DCLG          ,CE004RA,Other Capital Expenditure,0,E1 ,Grants                                  ,13374,20170126,C,MICHAEL BROWN BUILDERS LTD
73,0,0,Disabled Facilities Grant DCLG          ,CE004RA,Other Capital Expenditure,0,E1 ,Grants                                  ,13942,20170127,C,W C EVANS & SONS LTD
74,0,0,Disabled Facilities Grant DCLG          ,CE004RA,Other Capital Expenditure,0,E1 ,Grants                                  ,22411,20170127,C,JSP BUILDING SERVICES LTD
75,0,0,Mitcham Major schemes                   ,CE006FD,New Construction Conversion and Renovation,0,B5 ,Suppliers - Site works                  ,24288.32,20161209,C,DW WINDSOR LTD
76,0,0,London Rd Cemetery Extension            ,CE010CA,New Construction Conversion and Renovation,0,B4 ,Contractor - Site works                 ,4536,20170110,C,TAYLOR BUILDING COMPANY LTD
77,0,0,Parks Investment                        ,CE013SA,New Construction Conversion and Renovation,0,B4 ,Contractor - Site works                 ,1016,20170104,C,AAA SCAFFOLDING LONDON LTD
78,0,0,Parks Investment                        ,CE013SA,New Construction Conversion and Renovation,0,B4 ,Contractor - Site works                 ,2910,20170118,C,JUST METAL UK LTD
79,0,0,Parks Investment                        ,CE013SA,New Construction Conversion and Renovation,0,B4 ,Contractor - Site works                 ,9925,20161220,C,REDDINGTON GROUNDWORKS LTD
80,0,0,Parks Investment                        ,CE013SA,New Construction Conversion and Renovation,0,B4 ,Contractor - Site works                 ,10150,20161220,C,REDDINGTON GROUNDWORKS LTD
81,0,0,Parks Investment                        ,CE013SA,New Construction Conversion and Renovation,0,B4 ,Contractor - Site works                 ,11996.52,20161217,C,INTERCITY CONTRACTORS LTD
82,0,0,B489 Landscape Colliers Wd Rc           ,CE022CA,New Construction Conversion and Renovation,0,B4 ,Contractor - Site works                 ,5540,20170120,C,REDDINGTON GROUNDWORKS LTD
83,0,0,Surface Water Drainage                  ,CE024FA,New Construction Conversion and Renovation,0,B4 ,Contractor - Site works                 ,2210.18,20170126,C,FM CONWAY LTD
84,0,0,Surface Water Drainage                  ,CE024FA,New Construction Conversion and Renovation,0,B4 ,Contractor - Site works                 ,4000,20161216,C,FM CONWAY LTD
85,0,0,Surface Water Drainage                  ,CE024FA,New Construction Conversion and Renovation,0,B4 ,Contractor - Site works                 ,6000,20170126,C,FM CONWAY LTD
86,0,0,Borough Roads Maintenance               ,CE026FA,New Construction Conversion and Renovation,0,B4 ,Contractor - Site works                 ,3120.8,20161216,C,FM CONWAY LTD
87,0,0,Borough Roads Maintenance               ,CE026FA,New Construction Conversion and Renovation,0,B4 ,Contractor - Site works                 ,6044.86,20161216,C,FM CONWAY LTD
88,0,0,Repairs to Footways                     ,CE029FA,New Construction Conversion and Renovation,0,B4 ,Contractor - Site works                 ,7506.68,20161216,C,FM CONWAY LTD
89,0,0,Repairs to Footways                     ,CE029FA,New Construction Conversion and Renovation,0,B4 ,Contractor - Site works                 ,19616.6,20161216,C,FM CONWAY LTD
90,0,0,Repairs to Footways                     ,CE029FA,New Construction Conversion and Renovation,0,B4 ,Contractor - Site works                 ,34000,20170126,C,FM CONWAY LTD
91,0,0,Repairs to Footways                     ,CE029FA,New Construction Conversion and Renovation,0,B4 ,Contractor - Site works                 ,50000,20161215,C,FM CONWAY LTD
92,0,0,Leisure Centre Plant & Machine          ,CE038MA,New Construction Conversion and Renovation,0,B5 ,Suppliers - Site works                  ,26950,20160819,C,ASTON CORD ENERGY SERVICES
93,0,0,Leisure Centre Plant & Machine          ,CE038MA,Vehicles Plant Equipment and Machinery,0,D3 ,Equipment                               ,2513.5,20160824,C,TRIDENT-UK
94,0,0,Leisure Centre Plant & Machine          ,CE038MA,Vehicles Plant Equipment and Machinery,0,D3 ,Equipment                               ,4250,20160930,C,HELEC
95,0,0,Leisure Centre Plant & Machine          ,CE038MA,Vehicles Plant Equipment and Machinery,0,D3 ,Equipment                               ,4250,20160930,C,HELEC
96,0,0,Morden Leisure Centre                   ,CE045AA,New Construction Conversion and Renovation,0,B1 ,Consultants Fees D&S Structure          ,2830,20161216,C,BUILDING DESIGN PARTNERSHIP LT
97,0,0,Morden Leisure Centre                   ,CE045AA,New Construction Conversion and Renovation,0,B1 ,Consultants Fees D&S Structure          ,2830,20170119,C,BUILDING DESIGN PARTNERSHIP LT
98,0,0,Morden Leisure Centre                   ,CE045AA,New Construction Conversion and Renovation,0,B1 ,Consultants Fees D&S Structure          ,3500,20161031,C,SWEETT (UK) LIMITED
99,0,0,Morden Leisure Centre                   ,CE045AA,New Construction Conversion and Renovation,0,B1 ,Consultants Fees D&S Structure          ,3882,20161219,C,GARDINER & THEOBALD LLP
100,0,0,Morden Leisure Centre                   ,CE045AA,New Construction Conversion and Renovation,0,B1 ,Consultants Fees D&S Structure          ,3882,20170123,C,GARDINER & THEOBALD LLP
101,0,0,Morden Leisure Centre                   ,CE045AA,New Construction Conversion and Renovation,0,B6 ,Other Costs - Site works                ,2550,20161111,C,GREENWAYS
102,0,0,Morden Leisure Centre                   ,CE045AA,New Construction Conversion and Renovation,0,B6 ,Other Costs - Site works                ,3500,20161111,C,GREENWAYS
103,0,0,Morden Leisure Centre                   ,CE045AA,New Construction Conversion and Renovation,0,B6 ,Other Costs - Site works                ,13983,20161111,C,GREENWAYS
104,0,0,B672a-f Connecting Colliers Wd          ,CE049CA,New Construction Conversion and Renovation,0,B4 ,Contractor - Site works                 ,85000,20161216,C,FM CONWAY LTD
105,0,0,B672a-f Connecting Colliers Wd          ,CE049CA,Other Capital Expenditure,0,E4,TFL Other                               ,2750.1,20161015,C,GORT SCOTT LTD
106,0,0,B672a-f Connecting Colliers Wd          ,CE049CA,Other Capital Expenditure,0,E4,TFL Other                               ,2949.15,20160825,C,GORT SCOTT LTD
107,0,0,Town Centre Investment                  ,CE061FB,New Construction Conversion and Renovation,0,B4 ,Contractor - Site works                 ,15000,20161216,C,FM CONWAY LTD
108,0,0,Town Centre Investment                  ,CE061FB,New Construction Conversion and Renovation,0,B4 ,Contractor - Site works                 ,400000,20161216,C,FM CONWAY LTD
109,0,0,Rediscover Mitcham                      ,CE061FG,New Construction Conversion and Renovation,0,B4 ,Contractor - Site works                 ,1343.22,20161216,C,FM CONWAY LTD
110,0,0,Morden Shopping Parade                  ,CE061FH,New Construction Conversion and Renovation,0,B4 ,Contractor - Site works                 ,48396.61,20161125,C,CUTTLE CONSTRUCTION LIMITED
111,0,0,Morden Shopping Parade                  ,CE061FH,New Construction Conversion and Renovation,0,B4 ,Contractor - Site works                 ,63870.61,20170105,C,CUTTLE CONSTRUCTION LIMITED
112,0,0,Morden Shopping Parade                  ,CE061FH,New Construction Conversion and Renovation,0,B6 ,Other Costs - Site works                ,643.61,20170117,C,REDACTED
113,0,0,Morden Shopping Parade                  ,CE061FH,New Construction Conversion and Renovation,0,B6 ,Other Costs - Site works                ,4500,20170117,C,REDACTED
114,0,0,Brighter Business,CE061FJ,Other Capital Expenditure,0,E1 ,Grants                                  ,2713,20170119,C,WEST WIMBLEDON PHYSIO CLINIC
115,0,0,Street Tree Programme                   ,CE067FA,New Construction Conversion and Renovation,0,B5 ,Suppliers - Site works                  ,728.8,20170113,C,BARCHAM TREES P.L.C.
116,0,0,Street Tree Programme                   ,CE067FA,New Construction Conversion and Renovation,0,B5 ,Suppliers - Site works                  ,7405.4,20170113,C,BARCHAM TREES P.L.C.
117,0,0,Street Lighting Replacement Pr          ,CE068FA,New Construction Conversion and Renovation,0,B4 ,Contractor - Site works                 ,3751.78,20170126,C,FM CONWAY LTD
118,0,0,Street Lighting Replacement Pr          ,CE068FA,New Construction Conversion and Renovation,0,B5 ,Suppliers - Site works                  ,873.96,20170109,C,MARWOOD ELECTRICAL COMPANY LTD
119,0,0,Street Lighting Replacement Pr          ,CE068FA,New Construction Conversion and Renovation,0,B5 ,Suppliers - Site works                  ,1165.28,20170109,C,MARWOOD ELECTRICAL COMPANY LTD
120,0,0,Street Lighting Replacement Pr          ,CE068FA,New Construction Conversion and Renovation,0,B5 ,Suppliers - Site works                  ,3665.05,20161207,C,MARWOOD ELECTRICAL COMPANY LTD
121,0,0,Street Lighting Replacement Pr          ,CE068FA,New Construction Conversion and Renovation,0,B5 ,Suppliers - Site works                  ,4661.12,20170109,C,MARWOOD ELECTRICAL COMPANY LTD
122,0,0,Street Lighting Replacement Pr          ,CE068FA,New Construction Conversion and Renovation,0,B5 ,Suppliers - Site works                  ,4952.44,20170109,C,MARWOOD ELECTRICAL COMPANY LTD
123,0,0,Street Lighting Replacement Pr          ,CE068FA,New Construction Conversion and Renovation,0,B6 ,Other Costs - Site works                ,642,20160624,C,UK POWER NETWORKS (OPERATIONS) [EN6 1AG]
124,0,0,Street Lighting Replacement Pr          ,CE068FA,New Construction Conversion and Renovation,0,B6 ,Other Costs - Site works                ,748,20170119,C,UK POWER NETWORKS (OPERATIONS) [EN6 1AG]
125,0,0,Street Lighting Replacement Pr          ,CE068FA,New Construction Conversion and Renovation,0,B6 ,Other Costs - Site works                ,3852,20160624,C,UK POWER NETWORKS (OPERATIONS) [EN6 1AG]
126,0,0,Street Lighting Replacement Pr          ,CE068FA,New Construction Conversion and Renovation,0,B6 ,Other Costs - Site works                ,8120,20161221,C,UK POWER NETWORKS (OPERATIONS) [EN6 1AG]
127,0,0,Replacement of Fleet Vehicles           ,CE082EA,Vehicles Plant Equipment and Machinery,0,D1 ,Vehicles                                ,35573.5,20170117,C,COMMERCIAL SERV'S TRADING LTD
128,0,0,Accesibility Programme                  ,CE104FD,New Construction Conversion and Renovation,0,B2,Site Surveys D&S Structure              ,1400,20170116,C,TRAFFICWATCH (UK) LTD.
129,0,0,Accesibility Programme                  ,CE104FD,New Construction Conversion and Renovation,0,B4 ,Contractor - Site works                 ,21962,20161215,C,FM CONWAY LTD
130,0,0,Cycle access/parking                    ,CE104FG,New Construction Conversion and Renovation,0,B2,Site Surveys D&S Structure              ,950,20170117,C,DAVID J WEBB SURVEYS LTD
131,0,0,Cycle access/parking                    ,CE104FG,New Construction Conversion and Renovation,0,B2,Site Surveys D&S Structure              ,2950,20170117,C,DAVID J WEBB SURVEYS LTD
132,0,0,Cycle access/parking                    ,CE104FG,New Construction Conversion and Renovation,0,B2,Site Surveys D&S Structure              ,4950,20170117,C,DAVID J WEBB SURVEYS LTD
133,0,0,Cycle access/parking                    ,CE104FG,New Construction Conversion and Renovation,0,B4 ,Contractor - Site works                 ,522.51,20161216,C,FM CONWAY LTD
134,0,0,Cycle access/parking                    ,CE104FG,New Construction Conversion and Renovation,0,B4 ,Contractor - Site works                 ,900,20161216,C,FM CONWAY LTD
135,0,0,A298/A238 Strategic Corridor            ,CE104FQ,New Construction Conversion and Renovation,0,B2,Site Surveys D&S Structure              ,3250,20170117,C,DAVID J WEBB SURVEYS LTD
136,0,0,Casualty Reduction & Schools            ,CE104RA,New Construction Conversion and Renovation,0,B2,Site Surveys D&S Structure              ,1400,20170116,C,TRAFFICWATCH (UK) LTD.
137,0,0,Casualty Reduction & Schools            ,CE104RA,New Construction Conversion and Renovation,0,B4 ,Contractor - Site works                 ,516.16,20161216,C,FM CONWAY LTD
138,0,0,Cycle Improvements                      ,CE104RM,New Construction Conversion and Renovation,0,B4 ,Contractor - Site works                 ,2134.72,20161216,C,FM CONWAY LTD
139,0,0,TFL Quietways Cyclepath                 ,CE104RQ,New Construction Conversion and Renovation,0,B3 ,Other Expenses D&S Structure            ,2526.62,20170126,C,FM CONWAY LTD
140,0,0,Bus Stop Compliance                     ,CE105FR,New Construction Conversion and Renovation,0,B4 ,Contractor - Site works                 ,1431.7,20161215,C,FM CONWAY LTD
141,0,0,Bus Stop Compliance                     ,CE105FR,New Construction Conversion and Renovation,0,B4 ,Contractor - Site works                 ,2797.04,20170126,C,FM CONWAY LTD
142,0,0,Bus Stop Compliance                     ,CE105FR,New Construction Conversion and Renovation,0,B4 ,Contractor - Site works                 ,3453.59,20161215,C,FM CONWAY LTD
143,0,0,Bus Stop Compliance                     ,CE105FR,New Construction Conversion and Renovation,0,B4 ,Contractor - Site works                 ,3756.14,20170126,C,FM CONWAY LTD
144,0,0,TfL Prinicipal Road Maint               ,CE105FV,New Construction Conversion and Renovation,0,B4 ,Contractor - Site works                 ,2762.95,20161216,C,FM CONWAY LTD
145,,,Nelson Gardens Community Space,CE110CJ,New Construction Conversion and Renovation,0,B4 ,Contractor - Site works                 ,640,20170120,C,REDDINGTON GROUNDWORKS LTD
146,,,Colliers Wood Area (S106),CE110SC,New Construction Conversion and Renovation,0,B4 ,Contractor - Site works                 ,9570,20170118,C,JUST METAL UK LTD
147,,,Pollution PH Funding,CE110SJ,New Construction Conversion and Renovation,0,B4 ,Contractor - Site works                 ,1016,20161219,C,AAA SCAFFOLDING LONDON LTD
148,,,Pollution PH Funding,CE110SJ,New Construction Conversion and Renovation,0,B5 ,Suppliers - Site works                  ,719.9,20170123,C,ENGLISH WOODLANDS (BURROW NSY)
149,,,Pollution PH Funding,CE110SJ,New Construction Conversion and Renovation,0,B5 ,Suppliers - Site works                  ,3755,20170111,C,HILLIER NURSERIES LTD
150,0,0,Biking Borough Programme                ,CE128RA,Vehicles Plant Equipment and Machinery,0,D3 ,Equipment                               ,2798.5,20170118,C,CYCLEHOOP LTD
151,0,0,B646a Lombard Industrial Estat          ,CE137FB,New Construction Conversion and Renovation,0,B4 ,Contractor - Site works                 ,3805.96,20170126,C,FM CONWAY LTD
152,0,0,Traffic Schemes                         ,CE142FA,New Construction Conversion and Renovation,0,B4 ,Contractor - Site works                 ,838.96,20170126,C,FM CONWAY LTD
153,0,0,Traffic Schemes                         ,CE142FA,New Construction Conversion and Renovation,0,B4 ,Contractor - Site works                 ,2830,20170126,C,FM CONWAY LTD
154,0,0,Traffic Schemes                         ,CE142FA,New Construction Conversion and Renovation,0,B4 ,Contractor - Site works                 ,5000,20161215,C,FM CONWAY LTD
155,0,0,Traffic Schemes                         ,CE142FA,New Construction Conversion and Renovation,0,B4 ,Contractor - Site works                 ,5000,20161215,C,FM CONWAY LTD
156,0,0,Tackling Traffic Congestion             ,CE150AA,New Construction Conversion and Renovation,0,B6 ,Other Costs - Site works                ,693,20170125,C,UK POWER NETWORKS (OPERATIONS) [EN6 1AG]
157,0,0,Tackling Traffic Congestion             ,CE150AA,New Construction Conversion and Renovation,0,B6 ,Other Costs - Site works                ,1185,20170119,C,UK POWER NETWORKS (OPERATIONS) [EN6 1AG]
158,0,0,Energy Utility Invest to Save           ,CF002SA,New Construction Conversion and Renovation,0,B4 ,Contractor - Site works                 ,9837.96,20170127,C,JOJU SOLA
159,0,0,Water Safety Works,CF011FA,New Construction Conversion and Renovation,0,B4 ,Contractor - Site works                 ,1190,20161103,C,AIR SURVEYS  LIMITED
160,0,0,Water Safety Works,CF011FA,New Construction Conversion and Renovation,0,B4 ,Contractor - Site works                 ,55000,20161215,C,SALTASH ENTERPRISES LTD
161,0,0,Water Safety Works,CF011FA,Vehicles Plant Equipment and Machinery,0,D5 ,Software                                ,1627.86,20170106,C,DART VALLEY SYSTEMS LTD
162,0,0,Merton Abbey Temp Accomodation          ,CS022AC,New Construction Conversion and Renovation,0,B4 ,Contractor - Site works                 ,16580,20170105,C,BALFOUR BEATTY REGIONAL CONST.
163,0,0,Dundonald expansion                     ,CS031AC,New Construction Conversion and Renovation,0,B1 ,Consultants Fees D&S Structure          ,795,20161221,C,EIGHT ASSOCIATES LTD
164,0,0,Dundonald expansion                     ,CS031AC,New Construction Conversion and Renovation,0,B2,Site Surveys D&S Structure              ,1045,20170111,C,ASI ENVIRONMENTAL LTD
165,0,0,Dundonald expansion                     ,CS031AC,New Construction Conversion and Renovation,0,B2,Site Surveys D&S Structure              ,1180,20170116,C,ASI ENVIRONMENTAL LTD
166,0,0,Dundonald expansion                     ,CS031AC,New Construction Conversion and Renovation,0,B4 ,Contractor - Site works                 ,60000,20170125,C,KIND & COMPANY (BUILDERS) LTD
167,0,0,Dundonald expansion                     ,CS031AC,New Construction Conversion and Renovation,0,B4 ,Contractor - Site works                 ,125000,20161221,C,KIND & COMPANY (BUILDERS) LTD
168,0,0,Free School Meals                       ,CS033AB,New Construction Conversion and Renovation,0,B4 ,Contractor - Site works                 ,3412.63,20161223,C,MOY CONSTRUCTION CO LTD
169,0,0,Free School Meals                       ,CS033AB,New Construction Conversion and Renovation,0,B4 ,Contractor - Site works                 ,20712.87,20170103,C,R DURTNELL & SONS LTD
170,0,0,New School 6fe,CS085SF,New Construction Conversion and Renovation,0,B1 ,Consultants Fees D&S Structure          ,4590.33,20161231,C,SYNERGY CPC LLP
171,0,0,New School 6fe,CS085SF,New Construction Conversion and Renovation,0,B1 ,Consultants Fees D&S Structure          ,11518.8,20161222,C,DHP (UK) LLP
172,0,0,New School 6fe,CS085SF,New Construction Conversion and Renovation,0,B2,Site Surveys D&S Structure              ,1870,20170117,C,ACCON UK LTD
173,0,0,Harris Merton 2fe                       ,CS085SG,New Construction Conversion and Renovation,0,B1 ,Consultants Fees D&S Structure          ,795,20161222,C,HAZLE MCCORMACK YOUNG LLP
174,0,0,Harris Merton 2fe                       ,CS085SG,New Construction Conversion and Renovation,0,B1 ,Consultants Fees D&S Structure          ,1033,20161231,C,SUMMERS INMAN
175,0,0,Harris Merton 2fe                       ,CS085SG,New Construction Conversion and Renovation,0,B4 ,Contractor - Site works                 ,48912.51,20170106,C,LAKEHOUSE CONTRACTS LIMITED
176,0,0,Harris Merton 2fe                       ,CS085SG,New Construction Conversion and Renovation,0,B4 ,Contractor - Site works                 ,145049.13,20170125,C,LAKEHOUSE CONTRACTS LIMITED
177,0,0,Perseid                                 ,CS092AA,New Construction Conversion and Renovation,0,B1 ,Consultants Fees D&S Structure          ,27390.93,20161219,C,DHP (UK) LLP
178,0,0,Perseid                                 ,CS092AA,New Construction Conversion and Renovation,0,B4 ,Contractor - Site works                 ,29499.66,20170103,C,R DURTNELL & SONS LTD
179,0,0,Perseid                                 ,CS092AA,Vehicles Plant Equipment and Machinery,0,D3 ,Equipment                               ,5444,20170118,C,MM-ICT LIMITED
180,0,0,Primary Expansion Contingency,CS094AA,New Construction Conversion and Renovation,0,B1 ,Consultants Fees D&S Structure          ,880,20161212,C,EIGHT ASSOCIATES LTD
181,0,0,Primary Expansion Contingency,CS094AA,New Construction Conversion and Renovation,0,B1 ,Consultants Fees D&S Structure          ,1709,20170118,C,EIGHT ASSOCIATES LTD
182,0,0,Primary Expansion Contingency,CS094AA,New Construction Conversion and Renovation,0,B4 ,Contractor - Site works                 ,3722.48,20170105,C,BALFOUR BEATTY REGIONAL CONST.
183,0,0,Primary Expansion Contingency,CS094AA,New Construction Conversion and Renovation,0,B4 ,Contractor - Site works                 ,52795,20170105,C,BALFOUR BEATTY REGIONAL CONST.
184,0,0,Primary Expansion Contingency,CS094AA,Vehicles Plant Equipment and Machinery,0,D3 ,Equipment                               ,530,20170125,C,AVON ARMOUR LTD
185,0,0,Primary Expansion Contingency,CS094AA,Vehicles Plant Equipment and Machinery,0,D3 ,Equipment                               ,3944,20170125,C,AVON ARMOUR LTD
186,,,Further SEN Provision,CS095AB,New Construction Conversion and Renovation,0,B1 ,Consultants Fees D&S Structure          ,12296.48,20170105,C,REDACTED            
187,0,0,Disaster recovery                       ,CT003EA,Other Capital Expenditure,0,E3 ,Miscellaneous Capital Expendit          ,3800,20170116,C,NCC GROUP SECURITY SERV'S LTD
188,0,0,IT Equipment                            ,CT006EA,Vehicles Plant Equipment and Machinery,0,D3 ,Equipment                               ,1599.78,20170104,C,XMA LIMITED
189,0,0,IT Equipment                            ,CT006EA,Vehicles Plant Equipment and Machinery,0,D3 ,Equipment                               ,3202.32,20170119,C,VIDEK LTD
190,0,0,IT Equipment                            ,CT006EA,Other Capital Expenditure,0,E3 ,Miscellaneous Capital Expendit          ,700,20161031,C,GETRONICS UNIFIED COM (UK) LTD
191,0,0,IT Equipment                            ,CT006EA,Other Capital Expenditure,0,E3 ,Miscellaneous Capital Expendit          ,1350,20170116,C,XCHANGING GLOBAL INSURANCE SER
192,0,0,IT Equipment                            ,CT006EA,Other Capital Expenditure,0,E3 ,Miscellaneous Capital Expendit          ,5495,20161231,C,NETWORK SOLUTIONS INC
193,0,0,Stability Networks                      ,CT012ED,Other Capital Expenditure,0,E3 ,Miscellaneous Capital Expendit          ,9124.13,20161130,C,CYBER SECURE LTD
194,0,0,Improving Information Systems           ,CT020NB,Vehicles Plant Equipment and Machinery,0,D5 ,Software                                ,1492,20161130,C,ADVANCED BUSINESS SOLUTIONS
195,0,0,Improving Information Systems           ,CT020NB,Vehicles Plant Equipment and Machinery,0,D5 ,Software                                ,1492.5,20161231,C,ADVANCED BUSINESS SOLUTIONS
196,0,0,Improving Information Systems           ,CT020NB,Vehicles Plant Equipment and Machinery,0,D5 ,Software                                ,2985,20161223,C,ADVANCED BUSINESS SOLUTIONS
197,0,0,Improving Information Systems           ,CT020NB,Vehicles Plant Equipment and Machinery,0,D5 ,Software                                ,11940,20161130,C,ADVANCED BUSINESS SOLUTIONS
198,0,0,Improving Information Systems           ,CT020NB,Vehicles Plant Equipment and Machinery,0,D5 ,Software                                ,18000,20161025,C,ADVANCED BUSINESS SOLUTIONS
199,0,0,Data Labling                            ,CT023NA,Vehicles Plant Equipment and Machinery,0,D5 ,Software                                ,8000,20161221,C,APPERCEPTION
200,Central Services,Council tax collection,Local Taxation Services,E02100,Supplies & Services           ,Services                      ,DF11,Counsel's Fees                          ,1272,20170125,R,WELBECK LAW LLP
201,Central Services,Council tax collection,Local Taxation Services,E02100,Supplies & Services           ,Services                      ,DF11,Counsel's Fees                          ,1272,20170112,R,WELBECK LAW LLP
202,Central Services,Council tax collection,Local Taxation Services,E02100,Supplies & Services           ,Comms and Computing           ,DG02,Software Licences                       ,32220,20170123,R,ONESTEP SOLUTIONS PLC
203,Central Services,Council tax collection,Local Taxation Services,E02100,Supplies & Services           ,Comms and Computing           ,DG09,Computer Purchases - Misc               ,629.21,20170124,R,CIVICA UK LIMITED
204,Central Services,Council tax collection,Local Taxation Services,E02100,Supplies & Services           ,Comms and Computing           ,DG09,Computer Purchases - Misc               ,863.33,20161222,R,CIVICA UK LIMITED
205,Central Services,Council tax collection,Local Taxation Services,E02100,Supplies & Services           ,Comms and Computing           ,DG09,Computer Purchases - Misc               ,1325,20170119,R,INFORM CPI LTD
206,Central Services,Council tax collection,Local Taxation Services,E02100,Supplies & Services           ,Comms and Computing           ,DG09,Computer Purchases - Misc               ,1628.96,20170124,R,CIVICA UK LIMITED
207,Central Services,Council tax collection,Local Taxation Services,E02100,Supplies & Services           ,Comms and Computing           ,DG09,Computer Purchases - Misc               ,2050,20170112,R,INFORM CPI LTD
208,Central Services,Council tax collection,Local Taxation Services,E02100,Supplies & Services           ,Comms and Computing           ,DG09,Computer Purchases - Misc               ,2925,20170120,R,MAG:NET SOLUTIONS
209,Central Services,Council tax collection,Local Taxation Services,E02100,Supplies & Services           ,Comms and Computing           ,DG09,Computer Purchases - Misc               ,3932.01,20161229,R,CIVICA UK LIMITED
210,Central Services,Council tax collection,Local Taxation Services,E02100,Third Party Payments          ,Private Contractors           ,EH01,Miscellaneous Agency Services           ,750,20161117,R,STUDIO TILT
211,Central Services,Council tax collection,Local Taxation Services,E02100,Third Party Payments          ,Private Contractors           ,EH01,Miscellaneous Agency Services           ,2750,20161117,R,STUDIO TILT
212,Central Services,Council tax collection,Local Taxation Services,E02100,Third Party Payments          ,Private Contractors           ,EH01,Miscellaneous Agency Services           ,3500,20161117,R,STUDIO TILT
213,Central Services,Council tax collection,Local Taxation Bailiffs,E02101,Supplies & Services           ,Clothing Unfrms Laundry       ,DC02,Clothing & Uniforms                     ,702.51,20161206,R,HSBC INVOICE FINANCE (UK) LTD
214,Central Services,Council tax collection,Local Taxation Bailiffs,E02101,Supplies & Services           ,Services                      ,DF18,Bailiffs' fees                          ,1084,20170101,R,DATA INTERCHANGE PLC
215,Central Services,Council tax collection,Local Taxation Bailiffs,E02101,Supplies & Services           ,Comms and Computing           ,DG08,Computer Hardware                       ,1577.16,20170104,R,SPECIALIST COMPUTER CENT. PLC
216,Central Services,Council tax collection,Local Taxation Bailiffs,E02101,Supplies & Services           ,Comms and Computing           ,DG08,Computer Hardware                       ,1577.16,20170104,R,SPECIALIST COMPUTER CENT. PLC
217,Central Services,Council tax collection,Sutton Shared Bailiffs Service          ,E02102,Third Party Payments          ,Other Local Authorities       ,EB01,Payments to OLAs                        ,91129.58,20170119,R,LONDON BOROUGH OF SUTTON      
218,Central Services,Council tax collection,Sutton Shared Bailiffs Service          ,E02102,Third Party Payments          ,Other Local Authorities       ,EB01,Payments to OLAs                        ,135163.65,20161221,R,LONDON BOROUGH OF SUTTON      
219,Housing Services,HB Administration,Local Welfare Support,E02123,Transfer Payments             ,Housing Benefits              ,FA95,Other Payments                          ,4500,20161014,R,MERTON & LAMBETH CAB LTD
220,Central Services,SupS Payroll,Payroll,E02140,Supplies & Services           ,Services                      ,DF04,Miscellaneous Expenses                  ,1200,20170113,R,KINGSTON CORPORATION
221,Central Services,SupS Payroll,Payroll,E02140,Supplies & Services           ,Expenses                      ,DH14,Prizes and Awards                       ,1100,20161216,R,THE GIFT VOUCHER SHOP LTD
222,Central Services,SupS Payroll,Payroll,E02140,Third Party Payments          ,Private Contractors           ,EH10,Contract Payments                       ,6323.72,20161228,R,KINGSTON CORPORATION
223,Central Services,SupS Payroll,Payroll,E02140,Third Party Payments          ,Private Contractors           ,EH10,Contract Payments                       ,6356.46,20170113,R,KINGSTON CORPORATION
224,Central Services,SupS Payroll,Payroll,E02140,Third Party Payments          ,Private Contractors           ,EH10,Contract Payments                       ,12719.56,20161228,R,KINGSTON CORPORATION
225,Central Services,SupS Payroll,Payroll,E02140,Third Party Payments          ,Private Contractors           ,EH10,Contract Payments                       ,14073.04,20170113,R,KINGSTON CORPORATION
226,Central Services,SupS Pensions,Pensions,E02160,Third Party Payments          ,Other Local Authorities       ,EB01,Payments to OLAs                        ,5015,20161021,R,LOCAL GOVERNMENT ASSOCIATION
227,Central Services,SupS Facilities,Post Room,E02220,Supplies & Services           ,Equip Furniture/Materials     ,DA01,Equipment - R & M                       ,1485.07,20161223,R,NEOPOST FINANCE LIMITED [RM1 2AR]
228,Central Services,SupS Facilities,Post Room,E02220,Supplies & Services           ,Equip Furniture/Materials     ,DA01,Equipment - R & M                       ,2312.29,20161101,R,NEOPOST FINANCE LIMITED [RM1 2AR]
229,Central Services,SupS Facilities,Post Room,E02220,Supplies & Services           ,Comms and Computing           ,DG04,Postage - General                       ,527,20170113,R,CHESSINGTON CARS AND COURIERS
230,Central Services,SupS Facilities,Post Room,E02220,Supplies & Services           ,Comms and Computing           ,DG04,Postage - General                       ,535,20161223,R,CHESSINGTON CARS AND COURIERS
231,Central Services,SupS Facilities,Post Room,E02220,Supplies & Services           ,Comms and Computing           ,DG04,Postage - General                       ,572.27,20170123,R,STREETWISE COURIERS
232,Central Services,SupS Facilities,Post Room,E02220,Supplies & Services           ,Comms and Computing           ,DG04,Postage - General                       ,581.2,20170109,R,STREETWISE COURIERS
233,Central Services,SupS Facilities,Post Room,E02220,Supplies & Services           ,Comms and Computing           ,DG04,Postage - General                       ,680.17,20161219,R,STREETWISE COURIERS
234,Central Services,SupS Facilities,Post Room,E02220,Supplies & Services           ,Comms and Computing           ,DG04,Postage - General                       ,725.58,20161212,R,STREETWISE COURIERS
235,Central Services,SupS Facilities,Post Room,E02220,Supplies & Services           ,Comms and Computing           ,DG04,Postage - General                       ,5000,20170116,R,NEOPOST FINANCE LIMITED [RM1 2AR]
236,Central Services,SupS Facilities,Post Room,E02220,Supplies & Services           ,Comms and Computing           ,DG04,Postage - General                       ,5000,20161214,R,NEOPOST FINANCE LIMITED [RM1 2AR]
237,Central Services,SupS Facilities,Security Services,E02221,Third Party Payments          ,Private Contractors           ,EH10,Contract Payments                       ,8638,20170101,R,SIGHT & SOUND [TN24 8LF]
238,Central Services,SupS Facilities,Civic Centre,E02222,Supplies & Services           ,Equip Furniture/Materials     ,DA04,Materials                               ,2500,20170105,R,KEYTREE LIMITED
239,Central Services,SupS Facilities,Facilities,E02231,Premises Related Expenditure  ,RepairsAlterations&MtceOfBldgs,BA02,ENERGY CONSERVATION                     ,545.4,20161214,R,ENERGY ASSETS LIMITED
240,Central Services,SupS Facilities,Facilities,E02231,Premises Related Expenditure  ,RepairsAlterations&MtceOfBldgs,BA02,ENERGY CONSERVATION                     ,550,20170117,R,JOJU SOLA
241,Central Services,SupS Facilities,Facilities,E02231,Premises Related Expenditure  ,RepairsAlterations&MtceOfBldgs,BA02,ENERGY CONSERVATION                     ,563.58,20170113,R,ENERGY ASSETS LIMITED
242,Central Services,SupS Facilities,Facilities,E02231,Premises Related Expenditure  ,RepairsAlterations&MtceOfBldgs,BA02,ENERGY CONSERVATION                     ,1880,20161110,R,KINECT ENERGY UK LTD
243,Central Services,SupS Facilities,Facilities,E02231,Premises Related Expenditure  ,RepairsAlterations&MtceOfBldgs,BA03,DDM - Mechanical                        ,14867.56,20161221,R,ENER-G COMBINED POWER LIMITED
244,Central Services,SupS Facilities,Corporate Services Buildings,E02240,Premises Related Expenditure  ,RepairsAlterations&MtceOfBldgs,BA03,DDM - Mechanical                        ,554.49,20170116,R,BILFINGER EUROPA FACILITY
245,Central Services,SupS Facilities,Corporate Services Buildings,E02240,Premises Related Expenditure  ,RepairsAlterations&MtceOfBldgs,BA03,DDM - Mechanical                        ,554.49,20161213,R,BILFINGER EUROPA FACILITY
246,Central Services,SupS Facilities,Corporate Services Buildings,E02240,Premises Related Expenditure  ,RepairsAlterations&MtceOfBldgs,BA03,DDM - Mechanical                        ,980.78,20170120,R,FUTURE TECH
247,Central Services,SupS Facilities,Corporate Services Buildings,E02240,Premises Related Expenditure  ,RepairsAlterations&MtceOfBldgs,BA03,DDM - Mechanical                        ,1620,20161214,R,FUTURE TECH
248,Central Services,SupS Facilities,Corporate Services Buildings,E02240,Premises Related Expenditure  ,RepairsAlterations&MtceOfBldgs,BA03,DDM - Mechanical                        ,1987.31,20170120,R,FUTURE TECH
249,Central Services,SupS Facilities,Corporate Services Buildings,E02240,Premises Related Expenditure  ,RepairsAlterations&MtceOfBldgs,BA03,DDM - Mechanical                        ,3787.99,20161213,R,BILFINGER EUROPA FACILITY
250,Central Services,SupS Facilities,Corporate Services Buildings,E02240,Premises Related Expenditure  ,RepairsAlterations&MtceOfBldgs,BA03,DDM - Mechanical                        ,3787.99,20170116,R,BILFINGER EUROPA FACILITY
251,Central Services,SupS Facilities,Corporate Services Buildings,E02240,Premises Related Expenditure  ,RepairsAlterations&MtceOfBldgs,BA05,DDM - Electrical                        ,584.69,20170116,R,EDMUNDSON ELECTRICAL LTD
252,Central Services,SupS Facilities,Corporate Services Buildings,E02240,Premises Related Expenditure  ,RepairsAlterations&MtceOfBldgs,BA05,DDM - Electrical                        ,1180,20170113,R,VTECH SOLUTIONS UK LTD
253,Central Services,SupS Facilities,Corporate Services Buildings,E02240,Premises Related Expenditure  ,RepairsAlterations&MtceOfBldgs,BA29,Build Maint Mgt Fees                    ,2567.25,20161213,R,BILFINGER EUROPA FACILITY
254,Central Services,SupS Facilities,Corporate Services Buildings,E02240,Premises Related Expenditure  ,RepairsAlterations&MtceOfBldgs,BA29,Build Maint Mgt Fees                    ,2567.25,20170116,R,BILFINGER EUROPA FACILITY
255,Central Services,SupS Facilities,Corporate Services Buildings,E02240,Premises Related Expenditure  ,Energy Costs                  ,BB03,Gas (incl. Butane)                      ,764.31,20170110,R,GAZPROM MARKETING&TRADING LTD
256,Central Services,SupS Facilities,Corporate Services Buildings,E02240,Premises Related Expenditure  ,Water Services                ,BE01,Use of Water (Metered)                  ,553.21,20161230,R,SUTTON AND EAST SURREY WATER
257,Central Services,SupS Facilities,Corporate Services Buildings,E02240,Premises Related Expenditure  ,Water Services                ,BE01,Use of Water (Metered)                  ,618.39,20161230,R,SUTTON AND EAST SURREY WATER
258,Central Services,SupS Facilities,Corporate Services Buildings,E02240,Premises Related Expenditure  ,Water Services                ,BE01,Use of Water (Metered)                  ,983.76,20161230,R,SUTTON AND EAST SURREY WATER
259,Childrens & Education Services,Strategic Management,PDC,E02254,Premises Related Expenditure  ,Energy Costs                  ,BB03,Gas (incl. Butane)                      ,697.69,20161207,R,GAZPROM MARKETING&TRADING LTD
260,Childrens & Education Services,Strategic Management,PDC,E02254,Premises Related Expenditure  ,Energy Costs                  ,BB03,Gas (incl. Butane)                      ,795.54,20170110,R,GAZPROM MARKETING&TRADING LTD
261,Childrens & Education Services,Strategic Management,PDC,E02254,Premises Related Expenditure  ,Water Services                ,BE01,Use of Water (Metered)                  ,772.16,20161230,R,SUTTON AND EAST SURREY WATER
262,Childrens & Education Services,Strategic Management,PDC,E02254,Premises Related Expenditure  ,Cleaning and Domestic Supplies,BH03,Cleaning Services                       ,1549.5,20161229,R,JULIUS RUTHERFOORD & CO LTD
263,Childrens & Education Services,Strategic Management,PDC,E02254,Supplies & Services           ,Comms and Computing           ,DG50,Other IT Expenditure                    ,2799,20170109,R,MM-ICT LIMITED
264,Childrens & Education Services,Strategic Management,CSF Buildings,E02256,Premises Related Expenditure  ,RepairsAlterations&MtceOfBldgs,BA05,DDM - Electrical                        ,824.48,20170116,R,ENERGY SAVING LIGHTING (UK) LT
265,Adult Social Care,OP 65 & Over Day Care,Pollards Hill Day Centre,E02270,Premises Related Expenditure  ,Cleaning and Domestic Supplies,BH01,Cleaning Materials                      ,504,20161220,R,GREENHAM [TW7 4EX]
266,Adult Social Care,OP 65 & Over Day Care,Pollards Hill Day Centre,E02270,Premises Related Expenditure  ,Cleaning and Domestic Supplies,BH03,Cleaning Services                       ,865.12,20170101,R,BIRKIN CLEANING SERVICES LTD
267,Adult Social Care,OP 65 & Over Day Care,Pollards Hill Day Centre,E02270,Premises Related Expenditure  ,Cleaning and Domestic Supplies,BH03,Cleaning Services                       ,885.31,20170101,R,BIRKIN CLEANING SERVICES LTD
268,Adult Social Care,OP 65 & Over Day Care,Pollards Hill Day Centre,E02270,Premises Related Expenditure  ,Cleaning and Domestic Supplies,BH03,Cleaning Services                       ,892.7,20170101,R,BIRKIN CLEANING SERVICES LTD
269,Adult Social Care,OP 65 & Over Day Care,Pollards Hill Day Centre,E02270,Premises Related Expenditure  ,Cleaning and Domestic Supplies,BH03,Cleaning Services                       ,1304.95,20170101,R,BIRKIN CLEANING SERVICES LTD
270,Adult Social Care,OP 65 & Over Day Care,Pollards Hill Day Centre,E02270,Premises Related Expenditure  ,Cleaning and Domestic Supplies,BH03,Cleaning Services                       ,1497.38,20170101,R,BIRKIN CLEANING SERVICES LTD
271,Adult Social Care,OP 65 & Over Day Care,Pollards Hill Day Centre,E02270,Premises Related Expenditure  ,Cleaning and Domestic Supplies,BH03,Cleaning Services                       ,1591.8,20170101,R,BIRKIN CLEANING SERVICES LTD
272,Adult Social Care,OP 65 & Over Day Care,Pollards Hill Day Centre,E02270,Premises Related Expenditure  ,Cleaning and Domestic Supplies,BH03,Cleaning Services                       ,1623.45,20170101,R,BIRKIN CLEANING SERVICES LTD
273,Adult Social Care,OP 65 & Over Day Care,Pollards Hill Day Centre,E02270,Premises Related Expenditure  ,Cleaning and Domestic Supplies,BH03,Cleaning Services                       ,1764.19,20170101,R,BIRKIN CLEANING SERVICES LTD
274,Adult Social Care,OP 65 & Over Day Care,Pollards Hill Day Centre,E02270,Premises Related Expenditure  ,Cleaning and Domestic Supplies,BH03,Cleaning Services                       ,5216.05,20170101,R,BIRKIN CLEANING SERVICES LTD
275,Adult Social Care,OP 65 & Over Day Care,Pollards Hill Day Centre,E02270,Premises Related Expenditure  ,Cleaning and Domestic Supplies,BH03,Cleaning Services                       ,7302.68,20170101,R,BIRKIN CLEANING SERVICES LTD
276,Adult Social Care,OP 65 & Over Day Care,Pollards Hill Day Centre,E02270,Third Party Payments          ,Private Contractors           ,EH02,Miscellaneous Hired Services            ,520,20161228,R,GREENWORKS
277,Central Services,SupS Facilities,CORPORATE ELECTRICITY RECHARGE,E02275,Premises Related Expenditure  ,Energy Costs                  ,BB02,Electricity                             ,2787.68,20170117,R,SCOTTISH POWER
278,Central Services,SupS Facilities,CORPORATE ELECTRICITY RECHARGE,E02275,Premises Related Expenditure  ,Energy Costs                  ,BB02,Electricity                             ,29213.67,20170117,R,SCOTTISH POWER
279,Cultural Env Reg&Plan Services,Parks & Open Spaces,E & R Buildings,E02344,Premises Related Expenditure  ,RepairsAlterations&MtceOfBldgs,BA01,DDM - General Building                  ,521.4,20161130,R,SALTASH ENTERPRISES LTD
280,Cultural Env Reg&Plan Services,Parks & Open Spaces,E & R Buildings,E02344,Premises Related Expenditure  ,RepairsAlterations&MtceOfBldgs,BA03,DDM - Mechanical                        ,542.52,20170116,R,BILFINGER EUROPA FACILITY
281,Cultural Env Reg&Plan Services,Parks & Open Spaces,E & R Buildings,E02344,Premises Related Expenditure  ,RepairsAlterations&MtceOfBldgs,BA03,DDM - Mechanical                        ,542.52,20161213,R,BILFINGER EUROPA FACILITY
282,Cultural Env Reg&Plan Services,Parks & Open Spaces,E & R Buildings,E02344,Premises Related Expenditure  ,RepairsAlterations&MtceOfBldgs,BA03,DDM - Mechanical                        ,669.87,20161214,R,BILFINGER EUROPA FACILITY
283,Adult Social Care,PS u65 Day Care,C & H Buildings,E02345,Premises Related Expenditure  ,RepairsAlterations&MtceOfBldgs,BA01,DDM - General Building                  ,780,20161215,R,PJ HARVEY & CO LTD
284,Adult Social Care,PS u65 Day Care,C & H Buildings,E02345,Premises Related Expenditure  ,RepairsAlterations&MtceOfBldgs,BA03,DDM - Mechanical                        ,515.32,20170116,R,BILFINGER EUROPA FACILITY
285,Adult Social Care,PS u65 Day Care,C & H Buildings,E02345,Premises Related Expenditure  ,RepairsAlterations&MtceOfBldgs,BA03,DDM - Mechanical                        ,515.32,20161213,R,BILFINGER EUROPA FACILITY
286,Adult Social Care,PS u65 Day Care,C & H Buildings,E02345,Premises Related Expenditure  ,RepairsAlterations&MtceOfBldgs,BA03,DDM - Mechanical                        ,567.6,20161230,R,BILFINGER EUROPA FACILITY
287,Cultural Env Reg&Plan Services,Parks & Open Spaces,Leisure Buildings,E02350,Premises Related Expenditure  ,RepairsAlterations&MtceOfBldgs,BA03,DDM - Mechanical                        ,557.76,20170116,R,BILFINGER EUROPA FACILITY
288,Cultural Env Reg&Plan Services,Parks & Open Spaces,Leisure Buildings,E02350,Premises Related Expenditure  ,RepairsAlterations&MtceOfBldgs,BA03,DDM - Mechanical                        ,557.76,20161213,R,BILFINGER EUROPA FACILITY
289,Cultural Env Reg&Plan Services,Parks & Open Spaces,Leisure Buildings,E02350,Premises Related Expenditure  ,RepairsAlterations&MtceOfBldgs,BA05,DDM - Electrical                        ,1504.68,20161215,R,BILFINGER EUROPA FACILITY
290,Central Services,SupS DOF,AD RESOURCES,E04061,Employees                     ,Direct Employee Expenses      ,AA17,Agency Staff & Casual Paymts            ,1130,20170111,R,HAYS SPECIALIST RECRUITM'T LTD
291,Central Services,SupS DOF,AD RESOURCES,E04061,Employees                     ,Direct Employee Expenses      ,AA17,Agency Staff & Casual Paymts            ,1808,20170111,R,HAYS SPECIALIST RECRUITM'T LTD
292,Central Services,SupS DOF,AD RESOURCES,E04061,Employees                     ,Direct Employee Expenses      ,AA17,Agency Staff & Casual Paymts            ,2260,20170125,R,HAYS SPECIALIST RECRUITM'T LTD
293,Central Services,SupS DOF,AD RESOURCES,E04061,Employees                     ,Direct Employee Expenses      ,AA17,Agency Staff & Casual Paymts            ,2260,20170125,R,HAYS SPECIALIST RECRUITM'T LTD
294,Central Services,SupS DOF,AD RESOURCES,E04061,Employees                     ,Direct Employee Expenses      ,AA17,Agency Staff & Casual Paymts            ,2260,20170102,R,HAYS SPECIALIST RECRUITM'T LTD
295,Central Services,SupS DOF,AD RESOURCES,E04061,Supplies & Services           ,Services                      ,DF03,CONSULTANTS                             ,8280,20161229,R,PUBLIC SECTOR CONSULTANTS
296,Central Services,Officer support time,Corporately Funded Items,E04065,Supplies & Services           ,Services                      ,DF95,Services from Provider                  ,2933.75,20161025,R,PHR MEDIATIONS LTD
297,Central Services,SupS Audit and Fraud,Internal Audit&Service Review,E05101,Third Party Payments          ,Other Local Authorities       ,EB01,Payments to OLAs                        ,70334,20161208,R,L.B.RICHMOND UPON THAMES [TW1 3BZ]
298,Central Services,SupS Audit and Fraud,Internal Audit&Service Review,E05101,Third Party Payments          ,Other Local Authorities       ,EB01,Payments to OLAs                        ,167500,20161208,R,L.B.RICHMOND UPON THAMES [TW1 3BZ]
299,Central Services,SupS Strategic Finance,Business Planning,E06221,Supplies & Services           ,Comms and Computing           ,DG50,Other IT Expenditure                    ,600,20170117,R,REAL ASSET MANAGEMENT PLC
300,Central Services,SupS Strategic Finance,Treasury & Insurance,E06222,Employees                     ,Direct Employee Expenses      ,AA17,Agency Staff & Casual Paymts            ,2260,20161221,R,HAYS SPECIALIST RECRUITM'T LTD
301,Central Services,GENERATED ACCOUNT,Parking Cash Collect'n Contrct,E06225,Third Party Payments          ,Private Contractors           ,EH02,Miscellaneous Hired Services            ,12173.47,20161231,R,JADE SECURITY SERVICE LTD
302,Central Services,GENERATED ACCOUNT,Parking Cash Collect'n Contrct,E06225,Third Party Payments          ,Private Contractors           ,EH02,Miscellaneous Hired Services            ,12371.8,20161130,R,JADE SECURITY SERVICE LTD
303,Central Services,GENERATED ACCOUNT,Establishments' Cash Collect'n,E06226,Third Party Payments          ,Private Contractors           ,EH02,Miscellaneous Hired Services            ,613.8,20161130,R,JADE SECURITY SERVICE LTD
304,Central Services,SupS Strategic Finance,New Financial System                    ,E06229,Supplies & Services           ,Comms and Computing           ,DG50,Other IT Expenditure                    ,531,20170119,R,ADVANCED BUSINESS SOLUTIONS
305,Central Services,SupS Strategic Finance,New Financial System                    ,E06229,Supplies & Services           ,Comms and Computing           ,DG50,Other IT Expenditure                    ,531,20161231,R,ADVANCED BUSINESS SOLUTIONS
306,Central Services,SupS Strategic Finance,New Financial System                    ,E06229,Supplies & Services           ,Comms and Computing           ,DG50,Other IT Expenditure                    ,531,20170119,R,ADVANCED BUSINESS SOLUTIONS
307,Central Services,SupS Strategic Finance,New Financial System                    ,E06229,Supplies & Services           ,Comms and Computing           ,DG50,Other IT Expenditure                    ,2372,20161216,R,ADVANCED BUSINESS SOLUTIONS
308,Central Services,Registration of electors,Electoral Registration,E10285,Supplies & Services           ,Comms and Computing           ,DG04,Postage - General                       ,988.42,20161212,R,ROYAL MAIL GROUP PLC
309,Central Services,Registration of electors,Electoral Registration,E10285,Supplies & Services           ,Comms and Computing           ,DG04,Postage - General                       ,1289.28,20161230,R,FINANCIAL DATA MANAGEMENT PLC
310,Central Services,Registration of electors,Electoral Registration,E10285,Supplies & Services           ,Comms and Computing           ,DG04,Postage - General                       ,1981.65,20161130,R,FINANCIAL DATA MANAGEMENT PLC
311,Central Services,SupS Legal,Shared Legal Service,E10288,Employees                     ,Indirect Employee Expenses    ,AB02,Recruitment Adverts                     ,600,20170113,R,HB Editorial Serv Ltd. (Local Government Lawyer)
312,Central Services,SupS Legal,Shared Legal Service,E10288,Employees                     ,Indirect Employee Expenses    ,AB02,Recruitment Adverts                     ,1940,20170113,R,THE LAW SOCIETY
313,Central Services,SupS Legal,Shared Legal Service,E10288,Employees                     ,Indirect Employee Expenses    ,AB57,External Training Costs                 ,1295,20161207,R,KINGSTON COLLEGE
314,Central Services,SupS Legal,Shared Legal Service,E10288,Supplies & Services           ,Equip Furniture/Materials     ,DA80,Books                                   ,699,20170109,R,THOMSON REUTERS PROF. UK LTD
315,Central Services,SupS Legal,Shared Legal Service,E10288,Supplies & Services           ,Equip Furniture/Materials     ,DA80,Books                                   ,9532.5,20161228,R,THOMSON REUTERS PROF. UK LTD
316,Central Services,SupS Legal,Shared Legal Service,E10288,Supplies & Services           ,Equip Furniture/Materials     ,DA80,Books                                   ,17147.25,20161220,R,THOMSON REUTERS PROF. UK LTD
317,Central Services,SupS Legal,Shared Legal Service,E10288,Supplies & Services           ,Prntng Stnry Gen Off Exp      ,DE30,General Office Expense                  ,1454.68,20161231,R,RESTORE PLC
318,Central Services,SupS Legal,Shared Legal Service,E10288,Supplies & Services           ,Services                      ,DF95,Services from Provider                  ,3145,20161129,R,LEWIS SILKIN LLP
319,Central Services,SupS Legal,Shared Legal Service,E10288,Supplies & Services           ,Services                      ,DF95,Services from Provider                  ,11221.5,20161129,R,LEWIS SILKIN LLP
320,Central Services,SupS Legal,Shared Legal Service,E10288,Supplies & Services           ,Comms and Computing           ,DG02,Software Licences                       ,1546.06,20170110,R,TWOFOLD LTD
321,Central Services,SupS Legal,Richmond Legal,E10289,Supplies & Services           ,Services                      ,DF11,Counsel's Fees                          ,730,20161207,R,REDACTED            
322,Central Services,SupS Legal,Richmond Legal,E10289,Supplies & Services           ,Services                      ,DF11,Counsel's Fees                          ,800,20161212,R,REDACTED            
323,Central Services,SupS Legal,Richmond Legal,E10289,Supplies & Services           ,Services                      ,DF11,Counsel's Fees                          ,1080,20170112,R,REDACTED            
324,Central Services,SupS Legal,Richmond Legal,E10289,Supplies & Services           ,Services                      ,DF11,Counsel's Fees                          ,1250,20161201,R,REDACTED            
325,Central Services,SupS Legal,Richmond Legal,E10289,Supplies & Services           ,Services                      ,DF11,Counsel's Fees                          ,1500,20161223,R,REDACTED            
326,Central Services,SupS Legal,Richmond Legal,E10289,Supplies & Services           ,Services                      ,DF11,Counsel's Fees                          ,3135,20160921,R,REDACTED            
327,Central Services,SupS Legal,Richmond Legal,E10289,Supplies & Services           ,Services                      ,DF11,Counsel's Fees                          ,4900,20161129,R,REDACTED            
328,Central Services,SupS Legal,Richmond Legal,E10289,Supplies & Services           ,Services                      ,DF95,Services from Provider                  ,772,20161130,R,SHARPE PRITCHARD SOLICITORS
329,Central Services,SupS Legal,Richmond Legal,E10289,Supplies & Services           ,Services                      ,DF95,Services from Provider                  ,6814.2,20170126,R,WINCKWORTH SHERWOOD
330,Central Services,SupS Legal,LBR INCOME,E10290,Third Party Payments          ,Other Local Authorities       ,EB01,Payments to OLAs                        ,2840.63,20170116,R,L.B OF RICHMOND UPON THAMES
331,Central Services,SupS Legal,K&S Shared Legal,E10291,Third Party Payments          ,Other Local Authorities       ,EB01,Payments to OLAs                        ,2190,20170113,R,SUTTON HOUSING PARTNERSHIP LTD
332,Central Services,SupS Legal,K&S Shared Legal,E10291,Third Party Payments          ,Other Local Authorities       ,EB01,Payments to OLAs                        ,10588.59,20170113,R,LONDON BOROUGH OF SUTTON [SM1 1EA]
333,Central Services,SupS Legal,K&S Shared Legal,E10291,Third Party Payments          ,Other Local Authorities       ,EB01,Payments to OLAs                        ,17637.5,20170116,R,KINGSTON CORPORATION
334,Central Services,SupS Legal,Kingston Legal                          ,E10292,Supplies & Services           ,Services                      ,DF11,Counsel's Fees                          ,900,20170124,R,REDACTED            
335,Central Services,SupS Legal,Kingston Legal                          ,E10292,Supplies & Services           ,Services                      ,DF11,Counsel's Fees                          ,1000,20161209,R,REDACTED            
336,Central Services,SupS Legal,Kingston Legal                          ,E10292,Supplies & Services           ,Services                      ,DF11,Counsel's Fees                          ,1250,20161213,R,REDACTED            
337,Central Services,SupS Legal,Kingston Legal                          ,E10292,Supplies & Services           ,Services                      ,DF11,Counsel's Fees                          ,1500,20160928,R,REDACTED            
338,Central Services,SupS Legal,Kingston Legal                          ,E10292,Supplies & Services           ,Services                      ,DF11,Counsel's Fees                          ,1500,20170106,R,REDACTED            
339,Central Services,SupS Legal,Kingston Legal                          ,E10292,Supplies & Services           ,Services                      ,DF11,Counsel's Fees                          ,1600,20170124,R,REDACTED            
340,Central Services,SupS Legal,Kingston Legal                          ,E10292,Supplies & Services           ,Services                      ,DF11,Counsel's Fees                          ,2800,20161228,R,REDACTED            
341,Central Services,SupS Legal,Kingston Legal                          ,E10292,Supplies & Services           ,Services                      ,DF11,Counsel's Fees                          ,3000,20170118,R,REDACTED            
342,Central Services,SupS Legal,Kingston Legal                          ,E10292,Supplies & Services           ,Services                      ,DF11,Counsel's Fees                          ,3777.5,20161222,R,REDACTED            
343,Central Services,SupS Legal,Kingston Legal                          ,E10292,Supplies & Services           ,Services                      ,DF11,Counsel's Fees                          ,4375,20170103,R,REDACTED            
344,Central Services,SupS Legal,Kingston Legal                          ,E10292,Supplies & Services           ,Services                      ,DF14,Doctors and Other Fees                  ,1428.4,20160831,R,PERSONAL CARE CONSULTANTS LTD
345,Central Services,SupS Legal,Sutton Legal                            ,E10293,Supplies & Services           ,Services                      ,DF11,Counsel's Fees                          ,500,20161202,R,REDACTED            
346,Central Services,SupS Legal,Sutton Legal                            ,E10293,Supplies & Services           ,Services                      ,DF11,Counsel's Fees                          ,505,20161220,R,REDACTED            
347,Central Services,SupS Legal,Sutton Legal                            ,E10293,Supplies & Services           ,Services                      ,DF11,Counsel's Fees                          ,505,20161220,R,REDACTED            
348,Central Services,SupS Legal,Sutton Legal                            ,E10293,Supplies & Services           ,Services                      ,DF11,Counsel's Fees                          ,510,20161221,R,REDACTED            
349,Central Services,SupS Legal,Sutton Legal                            ,E10293,Supplies & Services           ,Services                      ,DF11,Counsel's Fees                          ,510,20161003,R,REDACTED            
350,Central Services,SupS Legal,Sutton Legal                            ,E10293,Supplies & Services           ,Services                      ,DF11,Counsel's Fees                          ,510,20161019,R,REDACTED            
351,Central Services,SupS Legal,Sutton Legal                            ,E10293,Supplies & Services           ,Services                      ,DF11,Counsel's Fees                          ,510,20161019,R,REDACTED            
352,Central Services,SupS Legal,Sutton Legal                            ,E10293,Supplies & Services           ,Services                      ,DF11,Counsel's Fees                          ,510,20161230,R,REDACTED            
353,Central Services,SupS Legal,Sutton Legal                            ,E10293,Supplies & Services           ,Services                      ,DF11,Counsel's Fees                          ,510,20161230,R,REDACTED            
354,Central Services,SupS Legal,Sutton Legal                            ,E10293,Supplies & Services           ,Services                      ,DF11,Counsel's Fees                          ,605,20161230,R,REDACTED            
355,Central Services,SupS Legal,Sutton Legal                            ,E10293,Supplies & Services           ,Services                      ,DF11,Counsel's Fees                          ,607.5,20161214,R,REDACTED            
356,Central Services,SupS Legal,Sutton Legal                            ,E10293,Supplies & Services           ,Services                      ,DF11,Counsel's Fees                          ,610,20161209,R,REDACTED            
357,Central Services,SupS Legal,Sutton Legal                            ,E10293,Supplies & Services           ,Services                      ,DF11,Counsel's Fees                          ,610,20160628,R,REDACTED            
358,Central Services,SupS Legal,Sutton Legal                            ,E10293,Supplies & Services           ,Services                      ,DF11,Counsel's Fees                          ,881.25,20161220,R,REDACTED
359,Central Services,SupS Legal,Sutton Legal                            ,E10293,Supplies & Services           ,Services                      ,DF11,Counsel's Fees                          ,950,20161222,R,REDACTED            
360,Central Services,SupS Legal,Sutton Legal                            ,E10293,Supplies & Services           ,Services                      ,DF11,Counsel's Fees                          ,1275,20161017,R,REDACTED
361,Central Services,SupS Legal,Sutton Legal                            ,E10293,Supplies & Services           ,Services                      ,DF11,Counsel's Fees                          ,2010,20160628,R,REDACTED            
362,Central Services,SupS Legal,Sutton Legal                            ,E10293,Supplies & Services           ,Services                      ,DF11,Counsel's Fees                          ,2700,20161219,R,REDACTED            
363,Central Services,SupS Legal,Sutton Legal                            ,E10293,Supplies & Services           ,Services                      ,DF11,Counsel's Fees                          ,3000,20161221,R,REDACTED            
364,Central Services,SupS Legal,Sutton Legal                            ,E10293,Supplies & Services           ,Services                      ,DF11,Counsel's Fees                          ,5000,20161202,R,REDACTED            
365,Central Services,SupS Legal,Sutton Legal                            ,E10293,Supplies & Services           ,Services                      ,DF11,Counsel's Fees                          ,5085,20161220,R,REDACTED            
366,Central Services,SupS Legal,Sutton Legal                            ,E10293,Supplies & Services           ,Services                      ,DF14,Doctors and Other Fees                  ,500,20161105,R,REDACTED            
367,Central Services,SupS Legal,Sutton Legal                            ,E10293,Supplies & Services           ,Services                      ,DF14,Doctors and Other Fees                  ,504,20161212,R,ORCHID CELLMARK LTD
368,Central Services,SupS Legal,Sutton Legal                            ,E10293,Supplies & Services           ,Services                      ,DF14,Doctors and Other Fees                  ,570.67,20160511,R,REDACTED            
369,Central Services,SupS Legal,Sutton Legal                            ,E10293,Supplies & Services           ,Services                      ,DF14,Doctors and Other Fees                  ,702,20160510,R,REDACTED            
370,Central Services,SupS Legal,Sutton Legal                            ,E10293,Supplies & Services           ,Services                      ,DF14,Doctors and Other Fees                  ,873.4,20161217,R,MARK HATTER ASSOCIATES
371,Central Services,SupS Legal,Sutton Legal                            ,E10293,Supplies & Services           ,Services                      ,DF14,Doctors and Other Fees                  ,1300.72,20160701,R,KALEIDOSCOPE PSYCHOLOGY SERV
372,Central Services,SupS Legal,Sutton Legal                            ,E10293,Supplies & Services           ,Services                      ,DF14,Doctors and Other Fees                  ,1500,20161116,R,REDACTED            
373,Central Services,SupS Legal,Sutton Legal                            ,E10293,Supplies & Services           ,Services                      ,DF14,Doctors and Other Fees                  ,3800,20161215,R,CORAL COMMUNITY ASSESSMENTS
374,Central Services,SupS Legal,Sutton Legal                            ,E10293,Supplies & Services           ,Services                      ,DF14,Doctors and Other Fees                  ,4193.07,20161208,R,NATIO RESOURCING LTD
375,Central Services,SupS Legal,Sutton Legal                            ,E10293,Supplies & Services           ,Services                      ,DF14,Doctors and Other Fees                  ,5530,20170110,R,REDACTED            
376,Central Services,SupS Legal,Sutton Legal                            ,E10293,Supplies & Services           ,Services                      ,DF95,Services from Provider                  ,810.35,20161215,R,SEARCHFLOW LTD
377,Central Services,SupS Legal,Sutton Legal                            ,E10293,Supplies & Services           ,Services                      ,DF95,Services from Provider                  ,1000,20170124,R,EMAZON SOLICITORS
378,Central Services,SupS Legal,Sutton Legal                            ,E10293,Supplies & Services           ,Services                      ,DF95,Services from Provider                  ,2205.4,20161129,R,BEVAN BRITTAN
379,Central Services,SupS Legal,Sutton Housing Partnership(SHP          ,E10294,Supplies & Services           ,Services                      ,DF11,Counsel's Fees                          ,625,20160919,R,REDACTED            
380,Central Services,SupS Legal,Achieving for Children (AFC),E10295,Supplies & Services           ,Services                      ,DF11,Counsel's Fees                          ,505,20161220,R,REDACTED            
381,Central Services,SupS Legal,Achieving for Children (AFC),E10295,Supplies & Services           ,Services                      ,DF11,Counsel's Fees                          ,505,20161208,R,REDACTED            
382,Central Services,SupS Legal,Achieving for Children (AFC),E10295,Supplies & Services           ,Services                      ,DF11,Counsel's Fees                          ,505,20161220,R,REDACTED            
383,Central Services,SupS Legal,Achieving for Children (AFC),E10295,Supplies & Services           ,Services                      ,DF11,Counsel's Fees                          ,510,20170123,R,REDACTED            
384,Central Services,SupS Legal,Achieving for Children (AFC),E10295,Supplies & Services           ,Services                      ,DF11,Counsel's Fees                          ,510,20161219,R,REDACTED            
385,Central Services,SupS Legal,Achieving for Children (AFC),E10295,Supplies & Services           ,Services                      ,DF11,Counsel's Fees                          ,510,20161208,R,REDACTED            
386,Central Services,SupS Legal,Achieving for Children (AFC),E10295,Supplies & Services           ,Services                      ,DF11,Counsel's Fees                          ,520,20161215,R,REDACTED            
387,Central Services,SupS Legal,Achieving for Children (AFC),E10295,Supplies & Services           ,Services                      ,DF11,Counsel's Fees                          ,520,20161230,R,REDACTED            
388,Central Services,SupS Legal,Achieving for Children (AFC),E10295,Supplies & Services           ,Services                      ,DF11,Counsel's Fees                          ,550,20161006,R,REDACTED            
389,Central Services,SupS Legal,Achieving for Children (AFC),E10295,Supplies & Services           ,Services                      ,DF11,Counsel's Fees                          ,590,20161221,R,REDACTED            
390,Central Services,SupS Legal,Achieving for Children (AFC),E10295,Supplies & Services           ,Services                      ,DF11,Counsel's Fees                          ,600,20161230,R,REDACTED            
391,Central Services,SupS Legal,Achieving for Children (AFC),E10295,Supplies & Services           ,Services                      ,DF11,Counsel's Fees                          ,685,20161230,R,REDACTED            
392,Central Services,SupS Legal,Achieving for Children (AFC),E10295,Supplies & Services           ,Services                      ,DF11,Counsel's Fees                          ,700,20161220,R,REDACTED            
393,Central Services,SupS Legal,Achieving for Children (AFC),E10295,Supplies & Services           ,Services                      ,DF11,Counsel's Fees                          ,720,20161215,R,REDACTED            
394,Central Services,SupS Legal,Achieving for Children (AFC),E10295,Supplies & Services           ,Services                      ,DF11,Counsel's Fees                          ,840,20161220,R,REDACTED            
395,Central Services,SupS Legal,Achieving for Children (AFC),E10295,Supplies & Services           ,Services                      ,DF11,Counsel's Fees                          ,995,20161230,R,REDACTED            
396,Central Services,SupS Legal,Achieving for Children (AFC),E10295,Supplies & Services           ,Services                      ,DF11,Counsel's Fees                          ,1069,20161213,R,REDACTED            
397,Central Services,SupS Legal,Achieving for Children (AFC),E10295,Supplies & Services           ,Services                      ,DF11,Counsel's Fees                          ,1180,20161220,R,REDACTED            
398,Central Services,SupS Legal,Achieving for Children (AFC),E10295,Supplies & Services           ,Services                      ,DF11,Counsel's Fees                          ,1750,20161209,R,REDACTED            
399,Central Services,SupS Legal,Achieving for Children (AFC),E10295,Supplies & Services           ,Services                      ,DF11,Counsel's Fees                          ,2155,20161220,R,REDACTED            
400,Central Services,SupS Legal,Achieving for Children (AFC),E10295,Supplies & Services           ,Services                      ,DF11,Counsel's Fees                          ,2250,20170113,R,REDACTED            
401,Central Services,SupS Legal,Achieving for Children (AFC),E10295,Supplies & Services           ,Services                      ,DF11,Counsel's Fees                          ,2300,20161230,R,REDACTED            
402,Central Services,SupS Legal,Achieving for Children (AFC),E10295,Supplies & Services           ,Services                      ,DF11,Counsel's Fees                          ,4270,20161220,R,REDACTED            
403,Central Services,SupS Legal,Achieving for Children (AFC),E10295,Supplies & Services           ,Services                      ,DF14,Doctors and Other Fees                  ,576,20161219,R,REDACTED            
404,Central Services,SupS Legal,Achieving for Children (AFC),E10295,Supplies & Services           ,Services                      ,DF14,Doctors and Other Fees                  ,579.45,20170109,R,REDACTED            
405,Central Services,SupS Legal,Achieving for Children (AFC),E10295,Supplies & Services           ,Services                      ,DF14,Doctors and Other Fees                  ,650,20170117,R,REDACTED            
406,Central Services,SupS Legal,Achieving for Children (AFC),E10295,Supplies & Services           ,Services                      ,DF14,Doctors and Other Fees                  ,726.24,20161129,R,THE LUCY FAITHFULL FOUNDATION
407,Central Services,SupS Legal,Achieving for Children (AFC),E10295,Supplies & Services           ,Services                      ,DF14,Doctors and Other Fees                  ,837,20170108,R,REDACTED            
408,Central Services,SupS Legal,Achieving for Children (AFC),E10295,Supplies & Services           ,Services                      ,DF14,Doctors and Other Fees                  ,854,20161206,R,CHILD & FAMILY SOLUTIONS LTD
409,Central Services,SupS Legal,Achieving for Children (AFC),E10295,Supplies & Services           ,Services                      ,DF14,Doctors and Other Fees                  ,900,20160831,R,THE LUCY FAITHFULL FOUNDATION
410,Central Services,SupS Legal,Achieving for Children (AFC),E10295,Supplies & Services           ,Services                      ,DF14,Doctors and Other Fees                  ,994.47,20160905,R,REDACTED            
411,Central Services,SupS Legal,Achieving for Children (AFC),E10295,Supplies & Services           ,Services                      ,DF14,Doctors and Other Fees                  ,1080,20160927,R,THE LUCY FAITHFULL FOUNDATION
412,Central Services,SupS Legal,Achieving for Children (AFC),E10295,Supplies & Services           ,Services                      ,DF14,Doctors and Other Fees                  ,1160,20161222,R,REDACTED            
413,Central Services,SupS Legal,Achieving for Children (AFC),E10295,Supplies & Services           ,Services                      ,DF14,Doctors and Other Fees                  ,1341.6,20170103,R,PARENTING PROFILES ASSOCIATES
414,Central Services,SupS Legal,Achieving for Children (AFC),E10295,Supplies & Services           ,Services                      ,DF95,Services from Provider                  ,600,20161129,R,LUQMANI THOMPSON & PARTNERS
415,Central Services,SupS Legal,Achieving for Children (AFC),E10295,Supplies & Services           ,Services                      ,DF95,Services from Provider                  ,754.88,20161128,R,UBIQUS UK LTD
416,Central Services,SupS Legal,Achieving for Children (AFC),E10295,Supplies & Services           ,Services                      ,DF95,Services from Provider                  ,1072.54,20170109,R,UBIQUS UK LTD
417,Central Services,SupS Legal,Wandsworth Project(SLLP),E10296,Supplies & Services           ,Equip Furniture/Materials     ,DA80,Books                                   ,3177.5,20161228,R,THOMSON REUTERS PROF. UK LTD
418,Central Services,SupS Legal,Wandsworth Project(SLLP),E10296,Supplies & Services           ,Equip Furniture/Materials     ,DA80,Books                                   ,5715.75,20161220,R,THOMSON REUTERS PROF. UK LTD
419,Central Services,SupS Legal,Wandsworth Project(SLLP),E10296,Supplies & Services           ,Services                      ,DF35,Graphic Design                          ,550,20161103,R,COLORIDO STUDIOS LIMITED
420,Central Services,SupS Legal,Wandsworth Project(SLLP),E10296,Supplies & Services           ,Services                      ,DF95,Services from Provider                  ,820.7,20161230,R,BROWNE JACOBSON
421,Central Services,SupS Legal,Wandsworth Project(SLLP),E10296,Supplies & Services           ,Comms and Computing           ,DG08,Computer Hardware                       ,580.94,20170104,R,MARQUEST LIMITED
422,Central Services,SupS Legal,Wandsworth Project(SLLP),E10296,Supplies & Services           ,Comms and Computing           ,DG08,Computer Hardware                       ,740.09,20170104,R,MARQUEST LIMITED
423,Central Services,SupS Legal,Wandsworth Project(SLLP),E10296,Supplies & Services           ,Comms and Computing           ,DG08,Computer Hardware                       ,11722.5,20170112,R,XMA LIMITED
424,Central Services,SupS Payroll,Coroners Courts,E11300,Third Party Payments          ,Joint Authorities             ,EC11,SW Inner London Coroners Crt C          ,69218.79,20170117,R,CITY OF WESTMINSTER
425,Central Services,SupS Payroll,Coroners Courts,E11300,Third Party Payments          ,Joint Authorities             ,EC11,SW Inner London Coroners Crt C          ,79226.51,20161101,R,CITY OF WESTMINSTER
426,Central Services,SupS IT,Social Care Info System (SCI)           ,E14357,Employees                     ,Direct Employee Expenses      ,AA17,Agency Staff & Casual Paymts            ,945,20170101,R,HAMPTON'S RESOURCING
427,Central Services,SupS IT,Social Care Info System (SCI)           ,E14357,Employees                     ,Direct Employee Expenses      ,AA17,Agency Staff & Casual Paymts            ,1575,20161225,R,HAMPTON'S RESOURCING
428,Central Services,SupS IT,Social Care Info System (SCI)           ,E14357,Employees                     ,Direct Employee Expenses      ,AA17,Agency Staff & Casual Paymts            ,1575,20161211,R,HAMPTON'S RESOURCING
429,Central Services,SupS IT,Social Care Info System (SCI)           ,E14357,Employees                     ,Direct Employee Expenses      ,AA17,Agency Staff & Casual Paymts            ,1575,20170108,R,HAMPTON'S RESOURCING
430,Central Services,SupS IT,Social Care Info System (SCI)           ,E14357,Employees                     ,Direct Employee Expenses      ,AA17,Agency Staff & Casual Paymts            ,1575,20161218,R,HAMPTON'S RESOURCING
431,Central Services,SupS IT,Social Care Info System (SCI)           ,E14357,Employees                     ,Direct Employee Expenses      ,AA17,Agency Staff & Casual Paymts            ,1575,20161204,R,HAMPTON'S RESOURCING
432,Central Services,SupS IT,Social Care Info System (SCI)           ,E14357,Employees                     ,Direct Employee Expenses      ,AA17,Agency Staff & Casual Paymts            ,2575,20170105,R,NUMBER 10 INTERIM LTD
433,Central Services,SupS IT,Social Care Info System (SCI)           ,E14357,Employees                     ,Direct Employee Expenses      ,AA17,Agency Staff & Casual Paymts            ,3175,20170118,R,NUMBER 10 INTERIM LTD
434,Central Services,SupS IT,Social Care Info System (SCI)           ,E14357,Employees                     ,Direct Employee Expenses      ,AA17,Agency Staff & Casual Paymts            ,4950,20161118,R,NUMBER 10 INTERIM LTD
435,Central Services,SupS IT,Social Care Info System (SCI)           ,E14357,Employees                     ,Direct Employee Expenses      ,AA17,Agency Staff & Casual Paymts            ,5500,20170103,R,NUMBER 10 INTERIM LTD
436,Central Services,SupS IT,Social Care Info System (SCI)           ,E14357,Employees                     ,Direct Employee Expenses      ,AA17,Agency Staff & Casual Paymts            ,7360,20161202,R,REDACTED
437,Central Services,SupS IT,Social Care Info System (SCI)           ,E14357,Employees                     ,Direct Employee Expenses      ,AA17,Agency Staff & Casual Paymts            ,8970,20161223,R,REDACTED
438,Central Services,SupS IT,Social Care Info System (SCI)           ,E14357,Supplies & Services           ,Services                      ,DF03,Consultants                             ,537.06,20170111,R,INTERQUEST GROUP UK LIMITED
439,Central Services,SupS IT,Social Care Info System (SCI)           ,E14357,Supplies & Services           ,Services                      ,DF03,Consultants                             ,1093.95,20170111,R,INTERQUEST GROUP UK LIMITED
440,Central Services,SupS IT,Social Care Info System (SCI)           ,E14357,Supplies & Services           ,Services                      ,DF03,Consultants                             ,1289.93,20161231,R,INTERQUEST GROUP UK LIMITED
441,Central Services,SupS IT,Social Care Info System (SCI)           ,E14357,Supplies & Services           ,Services                      ,DF03,Consultants                             ,1476.27,20170111,R,INTERQUEST GROUP UK LIMITED
442,Central Services,SupS IT,Social Care Info System (SCI)           ,E14357,Supplies & Services           ,Services                      ,DF03,Consultants                             ,1995.08,20161231,R,INTERQUEST GROUP UK LIMITED
443,Central Services,SupS IT,Social Care Info System (SCI)           ,E14357,Supplies & Services           ,Services                      ,DF03,Consultants                             ,2014.19,20170111,R,INTERQUEST GROUP UK LIMITED
444,Central Services,SupS IT,Social Care Info System (SCI)           ,E14357,Supplies & Services           ,Services                      ,DF03,Consultants                             ,4842.05,20170111,R,INTERQUEST GROUP UK LIMITED
445,Central Services,SupS IT,Social Care Info System (SCI)           ,E14357,Supplies & Services           ,Services                      ,DF03,Consultants                             ,4965.53,20170111,R,INTERQUEST GROUP UK LIMITED
446,Central Services,SupS IT,Social Care Info System (SCI)           ,E14357,Supplies & Services           ,Services                      ,DF03,Consultants                             ,6650.26,20170111,R,INTERQUEST GROUP UK LIMITED
447,Central Services,SupS IT,Social Care Info System (SCI)           ,E14357,Supplies & Services           ,Services                      ,DF03,Consultants                             ,7419.83,20170111,R,INTERQUEST GROUP UK LIMITED
448,Central Services,SupS IT,Social Care Info System (SCI)           ,E14357,Supplies & Services           ,Services                      ,DF03,Consultants                             ,7657.65,20161221,R,INTERQUEST GROUP UK LIMITED
449,Central Services,SupS IT,Social Care Info System (SCI)           ,E14357,Supplies & Services           ,Services                      ,DF03,Consultants                             ,24485.44,20161214,R,INTERQUEST GROUP UK LIMITED
450,Central Services,SupS IT,BI IT Projects,E14360,Employees                     ,Direct Employee Expenses      ,AA17,Agency Staff & Casual Paymts            ,4760,20170118,R,REDACTED            
451,Central Services,SupS IT,BI IT Projects,E14360,Employees                     ,Direct Employee Expenses      ,AA17,Agency Staff & Casual Paymts            ,7000,20161228,R,REDACTED            
452,Central Services,SupS IT,BI IT Projects,E14360,Supplies & Services           ,Comms and Computing           ,DG65,Application Licences                    ,42500,20161221,R,OLM SYSTEMS
453,CS -Oth Operating Inc & Expend,SupS Codes No Longer Used,No longer used,E14362,Supplies & Services           ,Services                      ,DF04,Miscellaneous Expenses                  ,1430,20170110,R,LLOYDS BANK PLC
454,CS -Oth Operating Inc & Expend,SupS Codes No Longer Used,No longer used,E14362,Supplies & Services           ,Services                      ,DF04,Miscellaneous Expenses                  ,1458,20161012,R,LLOYDS BANK PLC
455,CS -Oth Operating Inc & Expend,SupS Codes No Longer Used,No longer used,E14362,Supplies & Services           ,Services                      ,DF95,Services from Provider                  ,748.42,20161216,R,POST OFFICE LTD
456,CS -Oth Operating Inc & Expend,SupS Codes No Longer Used,No longer used,E14362,Transfer Payments             ,Housing Benefits              ,FA50,Burial and Cremation                    ,1446,20170105,R,F.W. PAINE
457,Central Services,SupS IT,Systems & Projects,E14366,Employees                     ,Direct Employee Expenses      ,AA17,Agency Staff & Casual Paymts            ,5000,20161220,R,NUMBER 10 INTERIM LTD
458,Central Services,SupS IT,Systems & Projects,E14366,Supplies & Services           ,Comms and Computing           ,DG02,Software Licences                       ,2625,20161222,R,ME LEARNING
459,Central Services,SupS IT,Systems & Projects,E14366,Supplies & Services           ,Comms and Computing           ,DG07,Computer Software                       ,565.22,20161219,R,CIVICA SERVICES LTD
460,Central Services,SupS IT,Systems & Projects,E14366,Supplies & Services           ,Comms and Computing           ,DG07,Computer Software                       ,860,20170120,R,DOTTED EYES LTD
461,Central Services,SupS IT,Systems & Projects,E14366,Supplies & Services           ,Comms and Computing           ,DG07,Computer Software                       ,1160,20170120,R,DOTTED EYES LTD
462,Central Services,SupS IT,Systems & Projects,E14366,Supplies & Services           ,Comms and Computing           ,DG07,Computer Software                       ,1952.03,20161222,R,CIVICA UK LIMITED
463,Central Services,SupS IT,Systems & Projects,E14366,Supplies & Services           ,Comms and Computing           ,DG07,Computer Software                       ,6976.92,20161122,R,CIVICA UK LIMITED
464,Central Services,SupS IT,Systems & Projects,E14366,Supplies & Services           ,Comms and Computing           ,DG50,Other IT Expenditure                    ,1200,20170120,R,ASH INFORMATION SYSTEMS LTD
465,Central Services,SupS IT,Systems & Projects,E14366,Supplies & Services           ,Comms and Computing           ,DG50,Other IT Expenditure                    ,1600.11,20170123,R,CIVICA UK LIMITED
466,Central Services,SupS IT,Systems & Projects,E14366,Supplies & Services           ,Comms and Computing           ,DG61,Computer Servs Special                  ,1125,20161216,R,PITNEY BOWES SOFTWARE EUROPE LTD [TW13 7NQ]
467,Central Services,SupS IT,Systems & Projects,E14366,Supplies & Services           ,Comms and Computing           ,DG61,Computer Servs Special                  ,1814,20161130,R,PITNEY BOWES SOFTWARE EUROPE LTD [TW13 7NQ]
468,Central Services,SupS IT,Systems & Projects,E14366,Supplies & Services           ,Comms and Computing           ,DG63,Software Licences - Data                ,786.78,20170123,R,CIVICA UK LIMITED
469,Central Services,SupS IT,Operations & Telecomms,E14367,Supplies & Services           ,Comms and Computing           ,DG54,Corporate Telephones                    ,754.59,20161228,R,VIRGIN MEDIA PAYMENTS LTD [BN13 1XP]
470,Central Services,SupS IT,Operations & Telecomms,E14367,Supplies & Services           ,Comms and Computing           ,DG54,Corporate Telephones                    ,5174.62,20170102,R,COLT TECHNOLOGY SERVICES
471,Central Services,SupS IT,Operations & Telecomms,E14367,Supplies & Services           ,Comms and Computing           ,DG54,Corporate Telephones                    ,11258.72,20170117,R,ORANGE P'MENT PRO'SING AIRTIME
472,Central Services,SupS IT,Operations & Telecomms,E14367,Supplies & Services           ,Comms and Computing           ,DG54,Corporate Telephones                    ,11565.7,20161217,R,ORANGE P'MENT PRO'SING AIRTIME
473,Central Services,SupS IT,Corp Saving-IT Consolidation,E14370,Premises Related Expenditure  ,RepairsAlterations&MtceOfBldgs,BA01,DDM - General Building                  ,1445,20170123,R,SALTASH ENTERPRISES LTD
474,Central Services,SupS IT,Corp Saving-IT Consolidation,E14370,Premises Related Expenditure  ,RepairsAlterations&MtceOfBldgs,BA01,DDM - General Building                  ,1720,20161118,R,LA BELLE ROOFING CO LTD
475,Central Services,SupS IT,Corp Saving-IT Consolidation,E14370,Premises Related Expenditure  ,RepairsAlterations&MtceOfBldgs,BA01,DDM - General Building                  ,4810,20161118,R,LA BELLE ROOFING CO LTD
476,Central Services,SupS IT,No longer used,E14371,Employees                     ,Direct Employee Expenses      ,AA17,Agency Staff & Casual Paymts            ,22800,20170104,R,MILESTONES COMMUNICATIONS LTD
477,Central Services,SupS IT,No longer used,E14371,Supplies & Services           ,Comms and Computing           ,DG08,Computer Hardware                       ,5241.12,20161219,R,XMA LIMITED
478,Central Services,SupS IT,CS Procurement,E14372,Employees                     ,Direct Employee Expenses      ,AA17,Agency Staff & Casual Paymts            ,990,20170106,R,HAYS SPECIALIST RECRUITM'T LTD
479,Central Services,SupS IT,CS Procurement,E14372,Employees                     ,Direct Employee Expenses      ,AA17,Agency Staff & Casual Paymts            ,990,20161207,R,HAYS SPECIALIST RECRUITM'T LTD
480,Central Services,SupS IT,CS Procurement,E14372,Employees                     ,Direct Employee Expenses      ,AA17,Agency Staff & Casual Paymts            ,990,20170110,R,HAYS SPECIALIST RECRUITM'T LTD
481,Central Services,SupS IT,CS Procurement,E14372,Employees                     ,Direct Employee Expenses      ,AA17,Agency Staff & Casual Paymts            ,1580,20170117,R,HAYS SPECIALIST RECRUITM'T LTD
482,Central Services,SupS IT,CS Procurement,E14372,Employees                     ,Direct Employee Expenses      ,AA17,Agency Staff & Casual Paymts            ,1581.75,20170104,R,HAYS SPECIALIST RECRUITM'T LTD
483,Central Services,SupS IT,CS Procurement,E14372,Employees                     ,Direct Employee Expenses      ,AA17,Agency Staff & Casual Paymts            ,1732.5,20170106,R,HAYS SPECIALIST RECRUITM'T LTD
484,Central Services,SupS IT,CS Procurement,E14372,Employees                     ,Direct Employee Expenses      ,AA17,Agency Staff & Casual Paymts            ,1980,20170117,R,HAYS SPECIALIST RECRUITM'T LTD
485,Central Services,SupS IT,CS Procurement,E14372,Employees                     ,Direct Employee Expenses      ,AA17,Agency Staff & Casual Paymts            ,2109,20170118,R,HAYS SPECIALIST RECRUITM'T LTD
486,Central Services,SupS IT,CS Procurement,E14372,Employees                     ,Direct Employee Expenses      ,AA17,Agency Staff & Casual Paymts            ,2227.5,20170106,R,HAYS SPECIALIST RECRUITM'T LTD
487,Central Services,SupS IT,CS Procurement,E14372,Employees                     ,Direct Employee Expenses      ,AA17,Agency Staff & Casual Paymts            ,2372.63,20161228,R,HAYS SPECIALIST RECRUITM'T LTD
488,Central Services,SupS IT,CS Procurement,E14372,Employees                     ,Direct Employee Expenses      ,AA17,Agency Staff & Casual Paymts            ,2475,20161116,R,HAYS SPECIALIST RECRUITM'T LTD
489,Central Services,SupS IT,CS Procurement,E14372,Employees                     ,Direct Employee Expenses      ,AA17,Agency Staff & Casual Paymts            ,2475,20161103,R,HAYS SPECIALIST RECRUITM'T LTD
490,Central Services,SupS IT,CS Procurement,E14372,Employees                     ,Direct Employee Expenses      ,AA17,Agency Staff & Casual Paymts            ,2475,20170117,R,HAYS SPECIALIST RECRUITM'T LTD
491,Central Services,SupS IT,CS Procurement,E14372,Employees                     ,Direct Employee Expenses      ,AA17,Agency Staff & Casual Paymts            ,2636.25,20161221,R,HAYS SPECIALIST RECRUITM'T LTD
492,Central Services,SupS IT,CS Procurement,E14372,Employees                     ,Direct Employee Expenses      ,AA17,Agency Staff & Casual Paymts            ,2636.25,20170125,R,HAYS SPECIALIST RECRUITM'T LTD
493,Central Services,SupS IT,CS Procurement,E14372,Employees                     ,Direct Employee Expenses      ,AA17,Agency Staff & Casual Paymts            ,2636.25,20161123,R,HAYS SPECIALIST RECRUITM'T LTD
494,Central Services,SupS IT,CS Procurement,E14372,Employees                     ,Direct Employee Expenses      ,AA17,Agency Staff & Casual Paymts            ,2636.25,20161214,R,HAYS SPECIALIST RECRUITM'T LTD
495,Central Services,SupS IT,CS Procurement,E14372,Employees                     ,Direct Employee Expenses      ,AA17,Agency Staff & Casual Paymts            ,2636.25,20170118,R,HAYS SPECIALIST RECRUITM'T LTD
496,Central Services,SupS IT,CS Procurement,E14372,Employees                     ,Direct Employee Expenses      ,AA17,Agency Staff & Casual Paymts            ,2636.25,20161102,R,HAYS SPECIALIST RECRUITM'T LTD
497,Central Services,SupS IT,Business Systems - Deptl Supt,E14377,Supplies & Services           ,Comms and Computing           ,DG15,Network Maintenance                     ,701.51,20161229,R,AXIAL SYSTEMS
498,Central Services,SupS IT,Business Systems - Deptl Supt,E14377,Supplies & Services           ,Comms and Computing           ,DG15,Network Maintenance                     ,2557,20161226,R,ZOHO CORPORATION PRIVATE
499,Central Services,SupS IT,Business Systems - Deptl Supt,E14377,Supplies & Services           ,Comms and Computing           ,DG15,Network Maintenance                     ,4754.35,20161229,R,AXIAL SYSTEMS
500,Central Services,SupS IT,Business Systems - Deptl Supt,E14377,Supplies & Services           ,Comms and Computing           ,DG15,Network Maintenance                     ,5880,20161229,R,AXIAL SYSTEMS
501,Central Services,SupS IT,Business Systems - Deptl Supt,E14377,Supplies & Services           ,Comms and Computing           ,DG15,Network Maintenance                     ,6360,20161229,R,AXIAL SYSTEMS
502,Central Services,SupS IT,Business Systems - Deptl Supt,E14377,Supplies & Services           ,Comms and Computing           ,DG15,Network Maintenance                     ,7947.5,20161229,R,AXIAL SYSTEMS
503,Central Services,SupS IT,CHAS Projects,E14378,Employees                     ,Direct Employee Expenses      ,AA17,Agency Staff & Casual Paymts            ,9500,20170109,R,REDACTED            
504,Central Services,SupS IT,CHAS Projects,E14378,Supplies & Services           ,Comms and Computing           ,DG50,Other IT Expenditure                    ,1666.66,20170125,R,CIVICA UK LIMITED
505,Cultural Env Reg&Plan Services,Mgt & Support (Env),ES Support & Development,G00070,Supplies & Services           ,Comms and Computing           ,DG04,POSTAGE - GENERAL                       ,594.23,20161220,R,ROYAL MAIL GROUP PLC
506,Cultural Env Reg&Plan Services,Mgt & Support (Env),Shared Regulatory Service Proj,G00091,Employees                     ,Direct Employee Expenses      ,AA17,Agency Staff & Casual Paymts            ,2017.05,20170104,R,HAYS SPECIALIST RECRUITM'T LTD
507,Cultural Env Reg&Plan Services,Mgt & Support (Env),Shared Regulatory Service Proj,G00091,Employees                     ,Direct Employee Expenses      ,AA17,Agency Staff & Casual Paymts            ,2689.4,20170111,R,HAYS SPECIALIST RECRUITM'T LTD
508,Cultural Env Reg&Plan Services,Mgt & Support (Env),Shared Regulatory Service Proj,G00091,Employees                     ,Direct Employee Expenses      ,AA17,Agency Staff & Casual Paymts            ,3361.75,20161214,R,HAYS SPECIALIST RECRUITM'T LTD
509,Cultural Env Reg&Plan Services,Mgt & Support (Env),Shared Regulatory Service Proj,G00091,Employees                     ,Direct Employee Expenses      ,AA17,Agency Staff & Casual Paymts            ,3361.75,20161228,R,HAYS SPECIALIST RECRUITM'T LTD
510,Cultural Env Reg&Plan Services,Mgt & Support (Env),Shared Regulatory Service Proj,G00091,Employees                     ,Direct Employee Expenses      ,AA17,Agency Staff & Casual Paymts            ,3361.75,20161221,R,HAYS SPECIALIST RECRUITM'T LTD
511,Cultural Env Reg&Plan Services,Mgt & Support (Env),Shared Regulatory Service Proj,G00091,Employees                     ,Direct Employee Expenses      ,AA17,Agency Staff & Casual Paymts            ,3361.75,20170118,R,HAYS SPECIALIST RECRUITM'T LTD
512,Cultural Env Reg&Plan Services,Mgt & Support (Env),Shared Regulatory Service Proj,G00091,Employees                     ,Direct Employee Expenses      ,AA17,Agency Staff & Casual Paymts            ,3361.75,20170125,R,HAYS SPECIALIST RECRUITM'T LTD
513,Cultural Env Reg&Plan Services,Mgt & Support (Env),Senior Mgt. - E.S.C.,G00100,Employees                     ,Indirect Employee Expenses    ,AB02,Recruitment Adverts                     ,1650,20161216,R,GATENBY SANDERSON LIMITED
514,Cultural Env Reg&Plan Services,BC Regs & Other not split,HoS - PP&D                              ,G00111,Supplies & Services           ,Services                      ,DF11,Counsel's Fees                          ,500,20161017,R,REDACTED            
515,Highways & Transport Services,Hwys/Rds (struct) not split,C'way & F'way Mtce,G00121,Third Party Payments          ,Private Contractors           ,EH56,CARRIAGEWAY/FWAY MAINT                  ,726.11,20161216,R,FM CONWAY LTD
516,Highways & Transport Services,Repair prin/oth rds not split,Walk Sheets,G00127,Third Party Payments          ,Private Contractors           ,EH56,Carriageway/Fway Maint                  ,1062.83,20161216,R,FM CONWAY LTD
517,Highways & Transport Services,Repair prin/oth rds not split,Walk Sheets,G00127,Third Party Payments          ,Private Contractors           ,EH56,Carriageway/Fway Maint                  ,9299.33,20170126,R,FM CONWAY LTD
518,Highways & Transport Services,Repair prin/oth rds not split,Walk Sheets,G00127,Third Party Payments          ,Private Contractors           ,EH56,Carriageway/Fway Maint                  ,14210.43,20161215,R,FM CONWAY LTD
519,Highways & Transport Services,Repair prin/oth rds not split,Walk Sheets,G00127,Third Party Payments          ,Private Contractors           ,EH56,Carriageway/Fway Maint                  ,14935.65,20161215,R,FM CONWAY LTD
520,Highways & Transport Services,Repair prin/oth rds not split,Walk Sheets,G00127,Third Party Payments          ,Private Contractors           ,EH56,Carriageway/Fway Maint                  ,25822.31,20170126,R,FM CONWAY LTD
521,Highways & Transport Services,Saf mtc prin/oth rds not split,Traffic Signs.,G00160,Third Party Payments          ,Private Contractors           ,EH01,Miscellaneous Agency Services           ,3314.39,20170126,R,FM CONWAY LTD
522,Highways & Transport Services,0,TRAF & HWYS CAPITAL PROJECTS,G00210,Supplies & Services           ,Services                      ,DF05,Surveys (General)                       ,24899,20170118,R,JACOBS UK LIMITED
523,Highways & Transport Services,Transport Plg/Policy/Strategy,CPZ implementation & Consultat,G00211,Third Party Payments          ,Private Contractors           ,EH56,Carriageway/Fway Maint                  ,1705.22,20170126,R,FM CONWAY LTD
524,Highways & Transport Services,Transport Plg/Policy/Strategy,CPZ implementation & Consultat,G00211,Third Party Payments          ,Private Contractors           ,EH56,Carriageway/Fway Maint                  ,3219.55,20161215,R,FM CONWAY LTD
525,Highways & Transport Services,Transport Plg/Policy/Strategy,CPZ implementation & Consultat,G00211,Third Party Payments          ,Private Contractors           ,EH56,Carriageway/Fway Maint                  ,9500,20161215,R,FM CONWAY LTD
526,Highways & Transport Services,Street Lighting.,Street Lighting .,G00260,Premises Related Expenditure  ,Energy Costs                  ,BB02,Electricity                             ,40000,20170109,R,SCOTTISH POWER
527,Highways & Transport Services,Street Lighting.,Street Lighting .,G00260,Premises Related Expenditure  ,Energy Costs                  ,BB02,Electricity                             ,42356.84,20170109,R,SCOTTISH POWER
528,Highways & Transport Services,Street Lighting.,Street Lighting .,G00260,Premises Related Expenditure  ,Energy Costs                  ,BB02,Electricity                             ,75147.33,20161209,R,SCOTTISH POWER
529,Highways & Transport Services,Street Lighting.,Street Lighting .,G00260,Third Party Payments          ,Private Contractors           ,EH01,Miscellaneous Agency Services           ,693,20161221,R,UK POWER NETWORKS (OPERATIONS) [EN6 1AG]
530,Highways & Transport Services,Street Lighting.,Street Lighting .,G00260,Third Party Payments          ,Private Contractors           ,EH01,Miscellaneous Agency Services           ,813.17,20170126,R,FM CONWAY LTD
531,Highways & Transport Services,Street Lighting.,Street Lighting .,G00260,Third Party Payments          ,Private Contractors           ,EH01,Miscellaneous Agency Services           ,2869.74,20161215,R,FM CONWAY LTD
532,Highways & Transport Services,Street Lighting.,Street Lighting .,G00260,Third Party Payments          ,Private Contractors           ,EH01,Miscellaneous Agency Services           ,4211.41,20170126,R,FM CONWAY LTD
533,Highways & Transport Services,Street Lighting.,Street Lighting .,G00260,Third Party Payments          ,Private Contractors           ,EH01,Miscellaneous Agency Services           ,4211.41,20170126,R,FM CONWAY LTD
534,Highways & Transport Services,Street Lighting.,Street Lighting .,G00260,Third Party Payments          ,Private Contractors           ,EH01,Miscellaneous Agency Services           ,5354.88,20170126,R,FM CONWAY LTD
535,Highways & Transport Services,Off-street parking,Car Parks (Unloc),G00291,Premises Related Expenditure  ,RepairsAlterations&MtceOfBldgs,BA06,REPAIRS & MAINTENANCE GENERAL           ,2350.13,20161216,R,FM CONWAY LTD
536,Highways & Transport Services,Off-street parking,Car Parks (Unloc),G00291,Third Party Payments          ,Private Contractors           ,EH02,Miscellaneous Hired Services            ,3666,20161231,R,COBALT TELEPHONE TECHNOLOGIES
537,Highways & Transport Services,Off-street parking,Peel Hse C P - Upper,G00303,Premises Related Expenditure  ,RepairsAlterations&MtceOfBldgs,BA06,Repairs & Maintenance General           ,950,20170110,R,LA BELLE ROOFING CO LTD
538,Highways & Transport Services,On-street parking,On Street Parking.,G00311,Premises Related Expenditure  ,RepairsAlterations&MtceOfBldgs,BA06,Repairs & Maintenance General           ,2896.24,20161216,R,FM CONWAY LTD
539,Highways & Transport Services,On-street parking,On Street Parking.,G00311,Premises Related Expenditure  ,RepairsAlterations&MtceOfBldgs,BA06,Repairs & Maintenance General           ,3052.25,20170126,R,FM CONWAY LTD
540,Highways & Transport Services,Road Safety Education,TFL CAPT SPEND (REV),G00326,Employees                     ,Indirect Employee Expenses    ,AB57,External Training Costs                 ,1020,20161231,R,FLEET SOURCE LTD
541,Highways & Transport Services,Road Safety Education,TFL CAPT SPEND (REV),G00326,Third Party Payments          ,Private Contractors           ,EH10,Contract Payments                       ,3707.45,20170102,R,CYCLE CONFIDENT
542,Highways & Transport Services,Parking Enforcement not split,Civil Enforcement Officers,G00330,Supplies & Services           ,Equip Furniture/Materials     ,DA09,Equip-Purchases                         ,2570.76,20161222,R,IMPERIAL CIVIL ENFORC.SOLUT.
543,Highways & Transport Services,Parking Enforcement not split,Civil Enforcement Officers,G00330,Supplies & Services           ,Clothing Unfrms Laundry       ,DC02,Clothing & Uniforms                     ,673.05,20161021,R,KELTIC CLOTHING LTD
544,Highways & Transport Services,Parking Enforcement not split,Civil Enforcement Officers,G00330,Supplies & Services           ,Comms and Computing           ,DG14,Telephones - Mobile                     ,6704,20161115,R,EVERYTHING EVERYWHERE
545,Highways & Transport Services,Parking Enforcement not split,Operational Running Costs,G00331,Supplies & Services           ,Equip Furniture/Materials     ,DA09,Equip-Purchases                         ,684.25,20170116,R,PARKEON LTD
546,Highways & Transport Services,Parking Enforcement not split,Operational Running Costs,G00331,Supplies & Services           ,Equip Furniture/Materials     ,DA09,Equip-Purchases                         ,4000,20161221,R,PARKEON LTD
547,Highways & Transport Services,Parking Enforcement not split,Operational Running Costs,G00331,Supplies & Services           ,Equip Furniture/Materials     ,DA09,Equip-Purchases                         ,4060,20170119,R,PARKEON LTD
548,Highways & Transport Services,Parking Enforcement not split,Operational Running Costs,G00331,Supplies & Services           ,Equip Furniture/Materials     ,DA09,Equip-Purchases                         ,5230,20161229,R,PARKEON LTD
549,Highways & Transport Services,Parking Enforcement not split,Operational Running Costs,G00331,Supplies & Services           ,Services                      ,DF95,Services from Provider                  ,1383.15,20161201,R,BEVAN BRITTAN
550,Highways & Transport Services,Parking Enforcement not split,Operational Running Costs,G00331,Supplies & Services           ,Services                      ,DF95,Services from Provider                  ,1564.35,20161201,R,BEVAN BRITTAN
551,Highways & Transport Services,Parking Enforcement not split,Operational Running Costs,G00331,Supplies & Services           ,Comms and Computing           ,DG61,Computer Servs Special                  ,644.46,20161231,R,IMPERIAL CIVIL ENFORC.SOLUT.
552,Highways & Transport Services,Parking Enforcement not split,Operational Running Costs,G00331,Third Party Payments          ,Other Agencies                ,EJ58,Parking Cttee for London                ,8436.17,20170105,R,LONDON COUNCILS
553,Highways & Transport Services,Parking Enforcement not split,Operational Running Costs,G00331,Third Party Payments          ,Other Agencies                ,EJ58,Parking Cttee for London                ,10000,20170120,R,HMCTS [NN1 2LH]
554,Highways & Transport Services,Parking Enforcement not split,Operational Running Costs,G00331,Third Party Payments          ,Other Agencies                ,EJ58,Parking Cttee for London                ,20000,20170120,R,HMCTS [NN1 2LH]
555,Highways & Transport Services,Repair prin/oth rds not split,Sewers - LBM,G00340,Third Party Payments          ,Private Contractors           ,EH02,Miscellaneous Hired Services            ,11098.8,20170126,R,FM CONWAY LTD
556,Highways & Transport Services,Repair prin/oth rds not split,Flood Risk Management,G00350,Third Party Payments          ,Private Contractors           ,EH56,Carriageway/Fway Maint                  ,675,20161216,R,STILLWATER ASSOCIATES
557,Highways & Transport Services,Repair prin/oth rds not split,Flood Risk Management,G00350,Third Party Payments          ,Private Contractors           ,EH56,Carriageway/Fway Maint                  ,15000,20161230,R,FM CONWAY LTD
558,Highways & Transport Services,Hwys/Rds (struct) not split,NRSWA Permitting (LoPS),G00385,Employees                     ,Indirect Employee Expenses    ,AB57,External Training Costs                 ,550,20161109,R,WILBAR ASSOCIATES LTD
559,Highways & Transport Services,Hwys/Rds (struct) not split,Footpath Crossings.,G00390,Third Party Payments          ,Private Contractors           ,EH56,Carriageway/Fway Maint                  ,693,20161221,R,UK POWER NETWORKS (OPERATIONS) [EN6 1AG]
560,Highways & Transport Services,Hwys/Rds (struct) not split,Footpath Crossings.,G00390,Third Party Payments          ,Private Contractors           ,EH56,Carriageway/Fway Maint                  ,693,20161221,R,UK POWER NETWORKS (OPERATIONS) [EN6 1AG]
561,Highways & Transport Services,Hwys/Rds (struct) not split,Footpath Crossings.,G00390,Third Party Payments          ,Private Contractors           ,EH56,Carriageway/Fway Maint                  ,693,20161221,R,UK POWER NETWORKS (OPERATIONS) [EN6 1AG]
562,Highways & Transport Services,Hwys/Rds (struct) not split,Footpath Crossings.,G00390,Third Party Payments          ,Private Contractors           ,EH56,Carriageway/Fway Maint                  ,812.01,20161216,R,FM CONWAY LTD
563,Highways & Transport Services,Hwys/Rds (struct) not split,Footpath Crossings.,G00390,Third Party Payments          ,Private Contractors           ,EH56,Carriageway/Fway Maint                  ,1592.24,20161215,R,FM CONWAY LTD
564,Highways & Transport Services,Hwys/Rds (struct) not split,Footpath Crossings.,G00390,Third Party Payments          ,Private Contractors           ,EH56,Carriageway/Fway Maint                  ,13718.04,20161215,R,FM CONWAY LTD
565,Highways & Transport Services,Hwys/Rds (struct) not split,Footpath Crossings.,G00390,Third Party Payments          ,Private Contractors           ,EH56,Carriageway/Fway Maint                  ,15682.89,20170126,R,FM CONWAY LTD
566,Highways & Transport Services,Hwys/Rds (struct) not split,Footpath Crossings.,G00390,Third Party Payments          ,Private Contractors           ,EH56,Carriageway/Fway Maint                  ,19825.31,20170126,R,FM CONWAY LTD
567,Cultural Env Reg&Plan Services,Street Clean - Not highways,Street Cleansing (Inc. Gully),G00492,Premises Related Expenditure  ,Rents                         ,BC01,Miscellaneous Rents                     ,791.18,20161222,R,CIRCLE HSE/MERTON PRIORY HOMES
568,Cultural Env Reg&Plan Services,Street Clean - Not highways,Street Cleansing (Inc. Gully),G00492,Supplies & Services           ,Equip Furniture/Materials     ,DA31,Waste Sacks & Bags                      ,599.63,20161231,R,IMPERIAL POLYTHENE PRODUCTS LT
569,Cultural Env Reg&Plan Services,Street Clean - Not highways,Street Cleansing (Inc. Gully),G00492,Supplies & Services           ,Equip Furniture/Materials     ,DA31,Waste Sacks & Bags                      ,3731,20161222,R,IMPERIAL POLYTHENE PRODUCTS LT
570,Adult Social Care,Supported/Sheltered Employment,Shltd Placement Sch.,G00520,Supplies & Services           ,Equip Furniture/Materials     ,DA09,Equip-Purchases                         ,1485,20161220,R,GREENHAM [TW7 4EX]
571,Cultural Env Reg&Plan Services,Waste Disposal (not separated),Waste Disposal .,G00550,Third Party Payments          ,Private Contractors           ,EH04,C1 Viridor SLWP Landfill Contract       ,2121.53,20161222,R,KINGSTON CORPORATION
572,Cultural Env Reg&Plan Services,Waste Disposal (not separated),Waste Disposal .,G00550,Third Party Payments          ,Private Contractors           ,EH04,C1 Viridor SLWP Landfill Contract       ,20109.36,20161222,R,KINGSTON CORPORATION
573,Cultural Env Reg&Plan Services,Waste Disposal (not separated),Waste Disposal .,G00550,Third Party Payments          ,Private Contractors           ,EH04,C1 Viridor SLWP Landfill Contract       ,31086.8,20161222,R,KINGSTON CORPORATION
574,Cultural Env Reg&Plan Services,Waste Disposal (not separated),Waste Disposal .,G00550,Third Party Payments          ,Private Contractors           ,EH04,C1 Viridor SLWP Landfill Contract       ,287589.24,20161222,R,KINGSTON CORPORATION
575,Cultural Env Reg&Plan Services,Waste Disposal (not separated),Waste Disposal .,G00550,Third Party Payments          ,Private Contractors           ,EH66,Clinical Waste Disposal                 ,885.19,20161231,R,S.GRUNDON (WASTE) LTD.
576,Cultural Env Reg&Plan Services,Civic Amenity Sites,Garth Road Site,G00580,Premises Related Expenditure  ,RepairsAlterations&MtceOfBldgs,BA01,DDM - GENERAL BUILDING                  ,5532.03,20161216,R,SME INVOICE FINANCE LTD
577,Cultural Env Reg&Plan Services,Civic Amenity Sites,Garth Road Site,G00580,Transport Related Expenditure ,Direct Transport Costs        ,CA01,Red Diesel                              ,1141.2,20161124,R,EMO OILS LTD
578,Cultural Env Reg&Plan Services,Civic Amenity Sites,Garth Road Site,G00580,Third Party Payments          ,Private Contractors           ,EH01,MISCELLANEOUS AGENCY SERVICES           ,218448.51,20170124,R,CROYDON COUNCIL
579,Cultural Env Reg&Plan Services,Civic Amenity Sites,Garth Road Site,G00580,Third Party Payments          ,Private Contractors           ,EH94,Waste Disposal - Alt. Site              ,875.76,20170124,R,CROYDON COUNCIL
580,Cultural Env Reg&Plan Services,Public Health,Dog Control.,G00620,Third Party Payments          ,Private Contractors           ,EH02,Miscellaneous Hired Services            ,1393,20170106,R,NOAH'S ARK ENVIRONMENTAL SERV.
581,Cultural Env Reg&Plan Services,Recycling (Collection),Recycling Activities,G00640,Supplies & Services           ,Equip Furniture/Materials     ,DA32,Wheeled Bins                            ,2739,20170124,R,UK CONTAINER MAINTENANCE LTD
582,Cultural Env Reg&Plan Services,Recycling (Collection),Recycling Activities,G00640,Supplies & Services           ,Equip Furniture/Materials     ,DA32,Wheeled Bins                            ,6895.5,20170123,R,BIBBY FACTORS MANCHESTER LTD
583,Cultural Env Reg&Plan Services,Recycling (Collection),Recycling Activities,G00640,Third Party Payments          ,Private Contractors           ,EH08,SLWP C1 Haulage Dry Recyclable          ,660,20161222,R,KINGSTON CORPORATION
584,Cultural Env Reg&Plan Services,Recycling (Collection),Recycling Activities,G00640,Third Party Payments          ,Private Contractors           ,EH08,SLWP C1 Haulage Dry Recyclable          ,26737.29,20161222,R,KINGSTON CORPORATION
585,Cultural Env Reg&Plan Services,Recycling (Collection),Recycling Activities,G00640,Third Party Payments          ,Private Contractors           ,EH94,C1 DRY RECYCLING ACCEPTANCE & BULK      ,5818.48,20161222,R,KINGSTON CORPORATION
586,Cultural Env Reg&Plan Services,Recycling (Collection),Recycling Collection,G00645,Supplies & Services           ,Clothing Unfrms Laundry       ,DC02,Clothing & Uniforms                     ,590.4,20170113,R,SMI GROUP
587,Cultural Env Reg&Plan Services,Recycling (Collection),Recycling Collection,G00645,Supplies & Services           ,Clothing Unfrms Laundry       ,DC02,Clothing & Uniforms                     ,849.6,20170117,R,SMI GROUP
588,Cultural Env Reg&Plan Services,Recycling (Collection),Garden Waste Service,G00647,Supplies & Services           ,Equip Furniture/Materials     ,DA03,Hire of Equipment                       ,2170,20161229,R,COMCIR RADIO COMMUNICATIONS LT
589,Cultural Env Reg&Plan Services,Recycling (Collection),Garden Waste Service,G00647,Supplies & Services           ,Equip Furniture/Materials     ,DA09,Equip-Purchases                         ,576,20161221,R,SMI GROUP
590,Cultural Env Reg&Plan Services,Recycling (Collection),Garden Waste Service,G00647,Supplies & Services           ,Equip Furniture/Materials     ,DA09,Equip-Purchases                         ,1362.95,20161222,R,SMI GROUP
591,Cultural Env Reg&Plan Services,Recycling (Collection),Food Waste Service,G00648,Supplies & Services           ,Equip Furniture/Materials     ,DA32,Wheeled Bins                            ,985,20170119,R,CRAEMER UK LTD
592,Cultural Env Reg&Plan Services,Recycling (Collection),Food Waste Service,G00648,Third Party Payments          ,Private Contractors           ,EH19,SLWP C3 FOOD WASTE HAULAGE              ,2509.42,20161222,R,KINGSTON CORPORATION
593,Cultural Env Reg&Plan Services,Recycling (Collection),Food Waste Service,G00648,Third Party Payments          ,Private Contractors           ,EH19,SLWP C3 FOOD WASTE HAULAGE              ,2681,20161222,R,KINGSTON CORPORATION
594,Cultural Env Reg&Plan Services,Recycling (Collection),WCSS Recycl Encourgmnt&Incentv          ,G00650,Supplies & Services           ,Prntng Stnry Gen Off Exp      ,DE22,Marketing                               ,1969,20170111,R,PROMPT MEDIA
595,Cultural Env Reg&Plan Services,Household Waste Collection,Refuse Collection (Operations),G00661,Transport Related Expenditure ,Direct Transport Costs        ,CA52,Reps Vehicles Ins Claims                ,627,20161231,R,FREIGHT TRANSPORT ASSOCIATION
596,Cultural Env Reg&Plan Services,Household Waste Collection,Refuse Collection (Operations),G00661,Supplies & Services           ,Equip Furniture/Materials     ,DA09,Equip-Purchases                         ,656.6,20161104,R,GREENHAM [TW7 4EX]
597,Cultural Env Reg&Plan Services,Trade Waste Collection,Commercial Waste,G00663,Third Party Payments          ,Private Contractors           ,EH04,C1 VIRIDOR SLWP LANDFILL CONTRACT       ,35009.68,20161222,R,KINGSTON CORPORATION
598,Cultural Env Reg&Plan Services,Trade Waste Collection,Commercial Waste,G00663,Third Party Payments          ,Private Contractors           ,EH08,SLWP C1 Haulage Dry Recyclable          ,1670.15,20161222,R,KINGSTON CORPORATION
599,Cultural Env Reg&Plan Services,Household Waste Collection,Phase C Procurement                     ,G00667,Third Party Payments          ,Private Contractors           ,EH02,Miscellaneous Hired Services            ,34750,20161228,R,LONDON BOROUGH OF SUTTON - [SM1 1EA]
600,Cultural Env Reg&Plan Services,Street Clean - Not highways,Waste Enforcement,G00680,Supplies & Services           ,Services                      ,DF30,Activities Programme                    ,2580,20161209,R,DANGEROUS THEATRE COMPANY
601,Cultural Env Reg&Plan Services,Street Clean - Not highways,Waste Enforcement,G00680,Third Party Payments          ,Private Contractors           ,EH02,Miscellaneous Hired Services            ,17496.42,20161231,R,KINGDOM SECURITY
602,Cultural Env Reg&Plan Services,Inspect/Enforce (Consumer P),Trading Standards,G00690,Supplies & Services           ,Services                      ,DF11,Counsel's Fees                          ,600,20161117,R,REDACTED            
603,Cultural Env Reg&Plan Services,Inspect/Enforce (Consumer P),Trading Standards,G00690,Supplies & Services           ,Grants and Subscriptions      ,DJ04,Subscriptions                           ,1187,20170113,R,NATIONAL CRIME AGENCY
604,Cultural Env Reg&Plan Services,Licencing,LICENSING TEAM,G00740,Third Party Payments          ,Private Contractors           ,EH59,VETERINARY COSTS                        ,3101,20170120,R,CITY OF LONDON CORPORATION
605,Cultural Env Reg&Plan Services,Mgt & Support (Env),Waste Management,G00900,Premises Related Expenditure  ,Water Services                ,BE01,Use of Water (Metered)                  ,1322.46,20161230,R,SUTTON AND EAST SURREY WATER
606,Cultural Env Reg&Plan Services,Mgt & Support (Env),SLWP (rechargeable)                     ,G00905,Supplies & Services           ,Services                      ,DF03,Consultants                             ,2835,20170103,R,BRAND NARRATIVE LIMITED
607,Cultural Env Reg&Plan Services,Mgt & Support (Env),SLWP (rechargeable)                     ,G00905,Supplies & Services           ,Services                      ,DF03,Consultants                             ,6360,20161215,R,MALPKA LTD
608,Cultural Env Reg&Plan Services,Mgt & Support (Env),SLWP (rechargeable)                     ,G00905,Supplies & Services           ,Services                      ,DF03,Consultants                             ,79207.5,20161215,R,MALPKA LTD
609,Cultural Env Reg&Plan Services,Inspect/Enforce (Consumer P),Reg. Serv - Shared Mgnt Costs           ,G01000,Supplies & Services           ,Services                      ,DF03,Consultants                             ,3861.98,20161213,R,CIPFA BUSINESS LTD
610,Cultural Env Reg&Plan Services,Housing Standards,EH Pollution (RSP),G01040,Supplies & Services           ,Equip Furniture/Materials     ,DA02,Op. Leasing Equipment                   ,644.77,20160915,R,KENT COUNTY COUNCIL (LASER)
611,Cultural Env Reg&Plan Services,Housing Standards,EH Pollution (RSP),G01040,Supplies & Services           ,Services                      ,DF03,Consultants                             ,4000,20161130,R,STM ENVIRONMENTAL CONSULTANTS
612,Cultural Env Reg&Plan Services,Housing Standards,EH Pollution (RSP),G01040,Supplies & Services           ,Services                      ,DF03,Consultants                             ,12000,20170101,R,STM ENVIRONMENTAL CONSULTANTS
613,Central Services,Grants - Voluntary Groups,Vestry Hall,G19290,Premises Related Expenditure  ,RepairsAlterations&MtceOfBldgs,BA01,DDM - General Building                  ,530,20161231,R,INDEPTH HYGIENE SERVICES LTD
614,Central Services,Grants - Voluntary Groups,Vestry Hall,G19290,Premises Related Expenditure  ,RepairsAlterations&MtceOfBldgs,BA06,Repairs & Maintenance General           ,724,20170107,R,DAPPA MRP FLOORING
615,Central Services,Grants - Voluntary Groups,Vestry Hall,G19290,Premises Related Expenditure  ,RepairsAlterations&MtceOfBldgs,BA06,Repairs & Maintenance General           ,3304,20170107,R,DAPPA MRP FLOORING
616,Central Services,Grants - Voluntary Groups,Vestry Hall,G19290,Premises Related Expenditure  ,RepairsAlterations&MtceOfBldgs,BA79,Security of Premises                    ,577.54,20161231,R,KINGDOM SECURITY
617,Central Services,Grants - Voluntary Groups,Vestry Hall,G19290,Premises Related Expenditure  ,RepairsAlterations&MtceOfBldgs,BA79,Security of Premises                    ,5565.4,20170110,R,KINGDOM SECURITY
618,Central Services,Grants - Voluntary Groups,Vestry Hall,G19290,Premises Related Expenditure  ,RepairsAlterations&MtceOfBldgs,BA79,Security of Premises                    ,5565.4,20161210,R,KINGDOM SECURITY
619,Central Services,Grants - Voluntary Groups,Vestry Hall,G19290,Premises Related Expenditure  ,Energy Costs                  ,BB03,Gas (incl. Butane)                      ,683.06,20170110,R,GAZPROM MARKETING&TRADING LTD
620,Central Services,Grants - Voluntary Groups,Vestry Hall,G19290,Premises Related Expenditure  ,Cleaning and Domestic Supplies,BH03,Cleaning Services                       ,1934.45,20170101,R,BIRKIN CLEANING SERVICES LTD
621,Highways & Transport Services,Transport Plg/Policy/Strategy,Transport Planning,H01070,Supplies & Services           ,Grants and Subscriptions      ,DJ04,Subscriptions                           ,3105,20170119,R,TRICS CONSORTIUM LIMITED
622,Highways & Transport Services,Transport Plg/Policy/Strategy,Morden Town Centre TFL                  ,H01078,Supplies & Services           ,Services                      ,DF03,Consultants                             ,950,20170119,R,DAVID J WEBB SURVEYS LTD
623,Highways & Transport Services,Safe routes inc schl x patrol,School & Road Safety TFL                ,H01083,Supplies & Services           ,Equip Furniture/Materials     ,DA04,Materials                               ,680,20161215,R,BIKEWIZE MOTORCYCLE TRAINING
624,Highways & Transport Services,Safe routes inc schl x patrol,School & Road Safety TFL                ,H01083,Supplies & Services           ,Equip Furniture/Materials     ,DA04,Materials                               ,738.5,20161214,R,REDACTED            
625,Highways & Transport Services,Safe routes inc schl x patrol,School & Road Safety TFL                ,H01083,Supplies & Services           ,Equip Furniture/Materials     ,DA04,Materials                               ,1584.7,20161216,R,FM CONWAY LTD
626,Highways & Transport Services,Safe routes inc schl x patrol,School & Road Safety TFL                ,H01083,Supplies & Services           ,Equip Furniture/Materials     ,DA58,Education Materials                     ,555,20161222,R,FIRST CAR MAGAZINE
627,Highways & Transport Services,Safe routes inc schl x patrol,School & Road Safety TFL                ,H01083,Supplies & Services           ,Equip Furniture/Materials     ,DA83,Projects                                ,625,20161125,R,PERFORMANCE IN EDUCATION LLP
628,Highways & Transport Services,Safe routes inc schl x patrol,School & Road Safety TFL                ,H01083,Supplies & Services           ,Equip Furniture/Materials     ,DA83,Projects                                ,625,20161125,R,PERFORMANCE IN EDUCATION LLP
629,Cultural Env Reg&Plan Services,BC Regs & Other not split,Building Control,H01100,Customer and client receipts  ,Fees                          ,RB52,Building Regs Fees S                    ,888,20170128,R,STILES HAROLD WILLIAMS PARTNER
630,Cultural Env Reg&Plan Services,DC Advice Apps & Reg not split,Development Control,H01130,Supplies & Services           ,Services                      ,DF04,Miscellaneous Expenses                  ,649.06,20161216,R,FM CONWAY LTD
631,Cultural Env Reg&Plan Services,DC Advice Apps & Reg not split,Development Control,H01130,Supplies & Services           ,Grants and Subscriptions      ,DJ04,Subscriptions                           ,1500,20170112,R,POS ENTERPRISES LTD
632,Cultural Env Reg&Plan Services,DC Advice Apps & Reg not split,Development Control,H01130,Supplies & Services           ,Grants and Subscriptions      ,DJ04,Subscriptions                           ,1625,20161202,R,THOMSON REUTERS PROF. UK LTD
633,Cultural Env Reg&Plan Services,Planning Policy not split,REGENERATION & INVESTMENT,H01174,Supplies & Services           ,Grants and Subscriptions      ,DJ04,Subscriptions                           ,625,20170101,R,ASSOC OF TOWN CTR MANAGEMENT
634,Cultural Env Reg&Plan Services,Planning Policy not split,MAYOR'S AIR QUALITY                     ,H01187,Supplies & Services           ,Comms and Computing           ,DG14,Telephones - Mobile                     ,807,20161220,R,EVERYTHING EVERYWHERE
635,Cultural Env Reg&Plan Services,Economic Dev (Not separated),NHB-Morden Shopping Parades             ,H01190,Third Party Payments          ,Private Contractors           ,EH02,Miscellaneous Hired Services            ,500,20161121,R,BEAT MOTEL
636,CS -Oth Operating Inc & Expend,Extraordinary Items & PY Adj.,MILES RD GENERATOR,H01203,Premises Related Expenditure  ,Rents                         ,BC01,Miscellaneous Rents                     ,5714.39,20161201,R,W&R BUXTON LTD PENSION FUND
637,CS -Oth Operating Inc & Expend,Extraordinary Items & PY Adj.,MILES RD GENERATOR,H01203,Premises Related Expenditure  ,Rents                         ,BC01,Miscellaneous Rents                     ,8000,20161201,R,W&R BUXTON LTD PENSION FUND
638,Cultural Env Reg&Plan Services,Economic Dev (Not separated),(LABGI)-BUSINESS SUPPORT,H01210,Supplies & Services           ,Grants and Subscriptions      ,DJ04,Subscriptions                           ,4000,20170126,R,PIPERS PROJECTS LTD
639,Cultural Env Reg&Plan Services,Economic Dev (Not separated),Capt Ambition-Suburban Opprt Z,H01231,Supplies & Services           ,Services                      ,DF03,Consultants                             ,650,20161216,R,URBAN ENTERPRISE NETWORK
640,Cultural Env Reg&Plan Services,Economic Dev (Not separated),Capt Ambition-Suburban Opprt Z,H01231,Supplies & Services           ,Services                      ,DF03,Consultants                             ,975,20170102,R,URBAN ENTERPRISE NETWORK
641,Cultural Env Reg&Plan Services,Economic Dev (Not separated),Capt Ambition-Suburban Opprt Z,H01231,Supplies & Services           ,Services                      ,DF03,Consultants                             ,975,20170102,R,URBAN ENTERPRISE NETWORK
642,Cultural Env Reg&Plan Services,Economic Dev (Not separated),Capt Ambition-Suburban Opprt Z,H01231,Supplies & Services           ,Services                      ,DF03,Consultants                             ,975,20161216,R,URBAN ENTERPRISE NETWORK
643,Cultural Env Reg&Plan Services,Economic Dev (Not separated),Capt Ambition-Suburban Opprt Z,H01231,Supplies & Services           ,Services                      ,DF03,Consultants                             ,975,20170120,R,URBAN ENTERPRISE NETWORK
644,Cultural Env Reg&Plan Services,Economic Dev (Not separated),Capt Ambition-Suburban Opprt Z,H01231,Third Party Payments          ,Private Contractors           ,EH10,Contract Payments                       ,4950,20161205,R,3FOX INTERNATIONAL
645,CS -Oth Operating Inc & Expend,T/A Vehicle Maintenance etc,Transport-Contract Hire,J01374,Employees                     ,Direct Employee Expenses      ,AA17,Agency Staff & Casual Paymts            ,7830,20170104,R,REDACTED
646,CS -Oth Operating Inc & Expend,T/A Vehicle Maintenance etc,Transport-Contract Hire,J01374,Transport Related Expenditure ,Direct Transport Costs        ,CA01,Petrol Derv & Oil                       ,32879.68,20161219,R,EMO OILS LTD
647,CS -Oth Operating Inc & Expend,T/A Vehicle Maintenance etc,Transport-Contract Hire,J01374,Transport Related Expenditure ,Direct Transport Costs        ,CA01,Petrol Derv & Oil                       ,33296.45,20170111,R,EMO OILS LTD
648,CS -Oth Operating Inc & Expend,T/A Vehicle Maintenance etc,Transport-Contract Hire,J01374,Transport Related Expenditure ,Direct Transport Costs        ,CA52,Reps Vehicles Ins Claims                ,1433.91,20161221,R,C P DAVIDSON & SONS LTD
649,CS -Oth Operating Inc & Expend,T/A Vehicle Maintenance etc,Transport-Contract Hire,J01374,Transport Related Expenditure ,Contract Hire and Op Leasing  ,CC01,Hired Transport - TAXI SERVICE          ,18315,20170111,R,ADAM HTT LIMITED T/A ADAM
650,CS -Oth Operating Inc & Expend,T/A Vehicle Maintenance etc,Transport-Contract Hire,J01374,Transport Related Expenditure ,Contract Hire and Op Leasing  ,CC01,Hired Transport - TAXI SERVICE          ,19539.72,20160104,R,ADAM HTT LIMITED T/A ADAM
651,CS -Oth Operating Inc & Expend,T/A Vehicle Maintenance etc,Transport-Contract Hire,J01374,Transport Related Expenditure ,Contract Hire and Op Leasing  ,CC01,Hired Transport - TAXI SERVICE          ,21841.9,20161221,R,ADAM HTT LIMITED T/A ADAM
652,CS -Oth Operating Inc & Expend,T/A Vehicle Maintenance etc,Transport-Contract Hire,J01374,Transport Related Expenditure ,Contract Hire and Op Leasing  ,CC01,Hired Transport - TAXI SERVICE          ,22141.97,20161228,R,ADAM HTT LIMITED T/A ADAM
653,CS -Oth Operating Inc & Expend,T/A Vehicle Maintenance etc,Transport-Contract Hire,J01374,Transport Related Expenditure ,Contract Hire and Op Leasing  ,CC01,Hired Transport - TAXI SERVICE          ,58366.22,20170125,R,ADAM HTT LIMITED T/A ADAM
654,CS -Oth Operating Inc & Expend,T/A Vehicle Maintenance etc,Transport-Contract Hire,J01374,Transport Related Expenditure ,Contract Hire and Op Leasing  ,CC01,Hired Transport - TAXI SERVICE          ,93973.99,20170118,R,ADAM HTT LIMITED T/A ADAM
655,CS -Oth Operating Inc & Expend,T/A Vehicle Maintenance etc,Transport-Contract Hire,J01374,Transport Related Expenditure ,Contract Hire and Op Leasing  ,CC53,Plant Hire for MRCS                     ,3168,20161229,R,RIVERSIDE TRUCK RENTAL LTD
656,CS -Oth Operating Inc & Expend,T/A Vehicle Maintenance etc,Transport-Contract Hire,J01374,Transport Related Expenditure ,Contract Hire and Op Leasing  ,CC53,Plant Hire for MRCS                     ,3344,20161229,R,RIVERSIDE TRUCK RENTAL LTD
657,CS -Oth Operating Inc & Expend,T/A Vehicle Maintenance etc,Transport-Contract Hire,J01374,Transport Related Expenditure ,Contract Hire and Op Leasing  ,CC59,HIRING TRANSPORT OPERATIONS             ,1452,20161230,R,ENTERPRISE RENT-A-CAR UK LTD
658,CS -Oth Operating Inc & Expend,T/A Vehicle Maintenance etc,Transport-Contract Hire,J01374,Transport Related Expenditure ,Contract Hire and Op Leasing  ,CC59,HIRING TRANSPORT OPERATIONS             ,1452,20161230,R,ENTERPRISE RENT-A-CAR UK LTD
659,CS -Oth Operating Inc & Expend,T/A Vehicle Maintenance etc,Transport-Contract Hire,J01374,Transport Related Expenditure ,Contract Hire and Op Leasing  ,CC59,HIRING TRANSPORT OPERATIONS             ,1452,20161230,R,ENTERPRISE RENT-A-CAR UK LTD
660,CS -Oth Operating Inc & Expend,T/A Vehicle Maintenance etc,Transport-Contract Hire,J01374,Transport Related Expenditure ,Contract Hire and Op Leasing  ,CC64,CSF - SEN CABS (RK02)                   ,500,20161130,R,CAPITAL CARS
661,CS -Oth Operating Inc & Expend,T/A Vehicle Maintenance etc,Transport-Contract Hire,J01374,Transport Related Expenditure ,Contract Hire and Op Leasing  ,CC64,CSF - SEN CABS (RK02)                   ,518,20161230,R,BRUNSWICK CARS LTD
662,CS -Oth Operating Inc & Expend,T/A Vehicle Maintenance etc,Transport-Contract Hire,J01374,Transport Related Expenditure ,Contract Hire and Op Leasing  ,CC64,CSF - SEN CABS (RK02)                   ,525,20161211,R,CHEAM STATION CARS
663,CS -Oth Operating Inc & Expend,T/A Vehicle Maintenance etc,Transport-Contract Hire,J01374,Transport Related Expenditure ,Contract Hire and Op Leasing  ,CC64,CSF - SEN CABS (RK02)                   ,532,20161130,R,CAPITAL CARS
664,CS -Oth Operating Inc & Expend,T/A Vehicle Maintenance etc,Transport-Contract Hire,J01374,Transport Related Expenditure ,Contract Hire and Op Leasing  ,CC64,CSF - SEN CABS (RK02)                   ,532,20161211,R,PREMIER MINICAB SER.(SURBITON)
665,CS -Oth Operating Inc & Expend,T/A Vehicle Maintenance etc,Transport-Contract Hire,J01374,Transport Related Expenditure ,Contract Hire and Op Leasing  ,CC64,CSF - SEN CABS (RK02)                   ,553,20161211,R,SHERWOOD CARS LIMITED
666,CS -Oth Operating Inc & Expend,T/A Vehicle Maintenance etc,Transport-Contract Hire,J01374,Transport Related Expenditure ,Contract Hire and Op Leasing  ,CC64,CSF - SEN CABS (RK02)                   ,553,20161211,R,SHERWOOD CARS LIMITED
667,CS -Oth Operating Inc & Expend,T/A Vehicle Maintenance etc,Transport-Contract Hire,J01374,Transport Related Expenditure ,Contract Hire and Op Leasing  ,CC64,CSF - SEN CABS (RK02)                   ,560,20161212,R,CASCADE CARS SERVICE LTD
668,CS -Oth Operating Inc & Expend,T/A Vehicle Maintenance etc,Transport-Contract Hire,J01374,Transport Related Expenditure ,Contract Hire and Op Leasing  ,CC64,CSF - SEN CABS (RK02)                   ,572,20161230,R,BRUNSWICK CARS LTD
669,CS -Oth Operating Inc & Expend,T/A Vehicle Maintenance etc,Transport-Contract Hire,J01374,Transport Related Expenditure ,Contract Hire and Op Leasing  ,CC64,CSF - SEN CABS (RK02)                   ,579.6,20161211,R,SHERWOOD CARS LIMITED
670,CS -Oth Operating Inc & Expend,T/A Vehicle Maintenance etc,Transport-Contract Hire,J01374,Transport Related Expenditure ,Contract Hire and Op Leasing  ,CC64,CSF - SEN CABS (RK02)                   ,585,20161222,R,SILVERBURN FINANCE (UK) LTD
671,CS -Oth Operating Inc & Expend,T/A Vehicle Maintenance etc,Transport-Contract Hire,J01374,Transport Related Expenditure ,Contract Hire and Op Leasing  ,CC64,CSF - SEN CABS (RK02)                   ,588,20161222,R,SILVERBURN FINANCE (UK) LTD
672,CS -Oth Operating Inc & Expend,T/A Vehicle Maintenance etc,Transport-Contract Hire,J01374,Transport Related Expenditure ,Contract Hire and Op Leasing  ,CC64,CSF - SEN CABS (RK02)                   ,588,20161222,R,SILVERBURN FINANCE (UK) LTD
673,CS -Oth Operating Inc & Expend,T/A Vehicle Maintenance etc,Transport-Contract Hire,J01374,Transport Related Expenditure ,Contract Hire and Op Leasing  ,CC64,CSF - SEN CABS (RK02)                   ,588,20161230,R,BRUNSWICK CARS LTD
674,CS -Oth Operating Inc & Expend,T/A Vehicle Maintenance etc,Transport-Contract Hire,J01374,Transport Related Expenditure ,Contract Hire and Op Leasing  ,CC64,CSF - SEN CABS (RK02)                   ,605,20161130,R,CHEAM STATION CARS
675,CS -Oth Operating Inc & Expend,T/A Vehicle Maintenance etc,Transport-Contract Hire,J01374,Transport Related Expenditure ,Contract Hire and Op Leasing  ,CC64,CSF - SEN CABS (RK02)                   ,621.6,20161211,R,SHERWOOD CARS LIMITED
676,CS -Oth Operating Inc & Expend,T/A Vehicle Maintenance etc,Transport-Contract Hire,J01374,Transport Related Expenditure ,Contract Hire and Op Leasing  ,CC64,CSF - SEN CABS (RK02)                   ,621.6,20161211,R,SHERWOOD CARS LIMITED
677,CS -Oth Operating Inc & Expend,T/A Vehicle Maintenance etc,Transport-Contract Hire,J01374,Transport Related Expenditure ,Contract Hire and Op Leasing  ,CC64,CSF - SEN CABS (RK02)                   ,621.6,20161211,R,SHERWOOD CARS LIMITED
678,CS -Oth Operating Inc & Expend,T/A Vehicle Maintenance etc,Transport-Contract Hire,J01374,Transport Related Expenditure ,Contract Hire and Op Leasing  ,CC64,CSF - SEN CABS (RK02)                   ,624,20161230,R,BRUNSWICK CARS LTD
679,CS -Oth Operating Inc & Expend,T/A Vehicle Maintenance etc,Transport-Contract Hire,J01374,Transport Related Expenditure ,Contract Hire and Op Leasing  ,CC64,CSF - SEN CABS (RK02)                   ,630,20161230,R,BRUNSWICK CARS LTD
680,CS -Oth Operating Inc & Expend,T/A Vehicle Maintenance etc,Transport-Contract Hire,J01374,Transport Related Expenditure ,Contract Hire and Op Leasing  ,CC64,CSF - SEN CABS (RK02)                   ,630,20161230,R,BRUNSWICK CARS LTD
681,CS -Oth Operating Inc & Expend,T/A Vehicle Maintenance etc,Transport-Contract Hire,J01374,Transport Related Expenditure ,Contract Hire and Op Leasing  ,CC64,CSF - SEN CABS (RK02)                   ,630,20161211,R,SHERWOOD CARS LIMITED
682,CS -Oth Operating Inc & Expend,T/A Vehicle Maintenance etc,Transport-Contract Hire,J01374,Transport Related Expenditure ,Contract Hire and Op Leasing  ,CC64,CSF - SEN CABS (RK02)                   ,641.06,20161231,R,KAT TRANSPORT LTD
683,CS -Oth Operating Inc & Expend,T/A Vehicle Maintenance etc,Transport-Contract Hire,J01374,Transport Related Expenditure ,Contract Hire and Op Leasing  ,CC64,CSF - SEN CABS (RK02)                   ,644,20161230,R,BRUNSWICK CARS LTD
684,CS -Oth Operating Inc & Expend,T/A Vehicle Maintenance etc,Transport-Contract Hire,J01374,Transport Related Expenditure ,Contract Hire and Op Leasing  ,CC64,CSF - SEN CABS (RK02)                   ,651,20161230,R,BRUNSWICK CARS LTD
685,CS -Oth Operating Inc & Expend,T/A Vehicle Maintenance etc,Transport-Contract Hire,J01374,Transport Related Expenditure ,Contract Hire and Op Leasing  ,CC64,CSF - SEN CABS (RK02)                   ,665,20161230,R,BRUNSWICK CARS LTD
686,CS -Oth Operating Inc & Expend,T/A Vehicle Maintenance etc,Transport-Contract Hire,J01374,Transport Related Expenditure ,Contract Hire and Op Leasing  ,CC64,CSF - SEN CABS (RK02)                   ,672,20161231,R,CAPITAL CARS
687,CS -Oth Operating Inc & Expend,T/A Vehicle Maintenance etc,Transport-Contract Hire,J01374,Transport Related Expenditure ,Contract Hire and Op Leasing  ,CC64,CSF - SEN CABS (RK02)                   ,672,20161222,R,SILVERBURN FINANCE (UK) LTD
688,CS -Oth Operating Inc & Expend,T/A Vehicle Maintenance etc,Transport-Contract Hire,J01374,Transport Related Expenditure ,Contract Hire and Op Leasing  ,CC64,CSF - SEN CABS (RK02)                   ,672,20161230,R,BRUNSWICK CARS LTD
689,CS -Oth Operating Inc & Expend,T/A Vehicle Maintenance etc,Transport-Contract Hire,J01374,Transport Related Expenditure ,Contract Hire and Op Leasing  ,CC64,CSF - SEN CABS (RK02)                   ,682.5,20161211,R,SHERWOOD CARS LIMITED
690,CS -Oth Operating Inc & Expend,T/A Vehicle Maintenance etc,Transport-Contract Hire,J01374,Transport Related Expenditure ,Contract Hire and Op Leasing  ,CC64,CSF - SEN CABS (RK02)                   ,683.06,20161231,R,KAT TRANSPORT LTD
691,CS -Oth Operating Inc & Expend,T/A Vehicle Maintenance etc,Transport-Contract Hire,J01374,Transport Related Expenditure ,Contract Hire and Op Leasing  ,CC64,CSF - SEN CABS (RK02)                   ,699.3,20161231,R,KAT TRANSPORT LTD
692,CS -Oth Operating Inc & Expend,T/A Vehicle Maintenance etc,Transport-Contract Hire,J01374,Transport Related Expenditure ,Contract Hire and Op Leasing  ,CC64,CSF - SEN CABS (RK02)                   ,699.72,20161231,R,KAT TRANSPORT LTD
693,CS -Oth Operating Inc & Expend,T/A Vehicle Maintenance etc,Transport-Contract Hire,J01374,Transport Related Expenditure ,Contract Hire and Op Leasing  ,CC64,CSF - SEN CABS (RK02)                   ,700,20161230,R,BRUNSWICK CARS LTD
694,CS -Oth Operating Inc & Expend,T/A Vehicle Maintenance etc,Transport-Contract Hire,J01374,Transport Related Expenditure ,Contract Hire and Op Leasing  ,CC64,CSF - SEN CABS (RK02)                   ,700,20161230,R,BRUNSWICK CARS LTD
695,CS -Oth Operating Inc & Expend,T/A Vehicle Maintenance etc,Transport-Contract Hire,J01374,Transport Related Expenditure ,Contract Hire and Op Leasing  ,CC64,CSF - SEN CABS (RK02)                   ,700,20161231,R,KAT TRANSPORT LTD
696,CS -Oth Operating Inc & Expend,T/A Vehicle Maintenance etc,Transport-Contract Hire,J01374,Transport Related Expenditure ,Contract Hire and Op Leasing  ,CC64,CSF - SEN CABS (RK02)                   ,702,20161212,R,BARCLAYS ASSET & SALES FINANCE
697,CS -Oth Operating Inc & Expend,T/A Vehicle Maintenance etc,Transport-Contract Hire,J01374,Transport Related Expenditure ,Contract Hire and Op Leasing  ,CC64,CSF - SEN CABS (RK02)                   ,715,20161211,R,PREMIER MINICAB SER.(SURBITON)
698,CS -Oth Operating Inc & Expend,T/A Vehicle Maintenance etc,Transport-Contract Hire,J01374,Transport Related Expenditure ,Contract Hire and Op Leasing  ,CC64,CSF - SEN CABS (RK02)                   ,728,20161231,R,CAPITAL CARS
699,CS -Oth Operating Inc & Expend,T/A Vehicle Maintenance etc,Transport-Contract Hire,J01374,Transport Related Expenditure ,Contract Hire and Op Leasing  ,CC64,CSF - SEN CABS (RK02)                   ,728,20161211,R,A STAR TRANSPORT LIMITED
700,CS -Oth Operating Inc & Expend,T/A Vehicle Maintenance etc,Transport-Contract Hire,J01374,Transport Related Expenditure ,Contract Hire and Op Leasing  ,CC64,CSF - SEN CABS (RK02)                   ,728,20161230,R,BRUNSWICK CARS LTD
701,CS -Oth Operating Inc & Expend,T/A Vehicle Maintenance etc,Transport-Contract Hire,J01374,Transport Related Expenditure ,Contract Hire and Op Leasing  ,CC64,CSF - SEN CABS (RK02)                   ,728,20161211,R,CHEAM STATION CARS
702,CS -Oth Operating Inc & Expend,T/A Vehicle Maintenance etc,Transport-Contract Hire,J01374,Transport Related Expenditure ,Contract Hire and Op Leasing  ,CC64,CSF - SEN CABS (RK02)                   ,733.6,20161211,R,SHERWOOD CARS LIMITED
703,CS -Oth Operating Inc & Expend,T/A Vehicle Maintenance etc,Transport-Contract Hire,J01374,Transport Related Expenditure ,Contract Hire and Op Leasing  ,CC64,CSF - SEN CABS (RK02)                   ,735,20161230,R,BRUNSWICK CARS LTD
704,CS -Oth Operating Inc & Expend,T/A Vehicle Maintenance etc,Transport-Contract Hire,J01374,Transport Related Expenditure ,Contract Hire and Op Leasing  ,CC64,CSF - SEN CABS (RK02)                   ,736.26,20161231,R,KAT TRANSPORT LTD
705,CS -Oth Operating Inc & Expend,T/A Vehicle Maintenance etc,Transport-Contract Hire,J01374,Transport Related Expenditure ,Contract Hire and Op Leasing  ,CC64,CSF - SEN CABS (RK02)                   ,740,20161130,R,KENDALL CARS
706,CS -Oth Operating Inc & Expend,T/A Vehicle Maintenance etc,Transport-Contract Hire,J01374,Transport Related Expenditure ,Contract Hire and Op Leasing  ,CC64,CSF - SEN CABS (RK02)                   ,740.46,20161231,R,KAT TRANSPORT LTD
707,CS -Oth Operating Inc & Expend,T/A Vehicle Maintenance etc,Transport-Contract Hire,J01374,Transport Related Expenditure ,Contract Hire and Op Leasing  ,CC64,CSF - SEN CABS (RK02)                   ,742,20161231,R,KAT TRANSPORT LTD
708,CS -Oth Operating Inc & Expend,T/A Vehicle Maintenance etc,Transport-Contract Hire,J01374,Transport Related Expenditure ,Contract Hire and Op Leasing  ,CC64,CSF - SEN CABS (RK02)                   ,751.45,20161211,R,PREMIER MINICAB SER.(SURBITON)
709,CS -Oth Operating Inc & Expend,T/A Vehicle Maintenance etc,Transport-Contract Hire,J01374,Transport Related Expenditure ,Contract Hire and Op Leasing  ,CC64,CSF - SEN CABS (RK02)                   ,756,20161230,R,BRUNSWICK CARS LTD
710,CS -Oth Operating Inc & Expend,T/A Vehicle Maintenance etc,Transport-Contract Hire,J01374,Transport Related Expenditure ,Contract Hire and Op Leasing  ,CC64,CSF - SEN CABS (RK02)                   ,761.6,20161211,R,SHERWOOD CARS LIMITED
711,CS -Oth Operating Inc & Expend,T/A Vehicle Maintenance etc,Transport-Contract Hire,J01374,Transport Related Expenditure ,Contract Hire and Op Leasing  ,CC64,CSF - SEN CABS (RK02)                   ,764.96,20161211,R,PREMIER MINICAB SER.(SURBITON)
712,CS -Oth Operating Inc & Expend,T/A Vehicle Maintenance etc,Transport-Contract Hire,J01374,Transport Related Expenditure ,Contract Hire and Op Leasing  ,CC64,CSF - SEN CABS (RK02)                   ,767.06,20161231,R,KAT TRANSPORT LTD
713,CS -Oth Operating Inc & Expend,T/A Vehicle Maintenance etc,Transport-Contract Hire,J01374,Transport Related Expenditure ,Contract Hire and Op Leasing  ,CC64,CSF - SEN CABS (RK02)                   ,769.72,20161231,R,KAT TRANSPORT LTD
714,CS -Oth Operating Inc & Expend,T/A Vehicle Maintenance etc,Transport-Contract Hire,J01374,Transport Related Expenditure ,Contract Hire and Op Leasing  ,CC64,CSF - SEN CABS (RK02)                   ,769.72,20161231,R,KAT TRANSPORT LTD
715,CS -Oth Operating Inc & Expend,T/A Vehicle Maintenance etc,Transport-Contract Hire,J01374,Transport Related Expenditure ,Contract Hire and Op Leasing  ,CC64,CSF - SEN CABS (RK02)                   ,770,20161211,R,SHERWOOD CARS LIMITED
716,CS -Oth Operating Inc & Expend,T/A Vehicle Maintenance etc,Transport-Contract Hire,J01374,Transport Related Expenditure ,Contract Hire and Op Leasing  ,CC64,CSF - SEN CABS (RK02)                   ,770,20161130,R,PREMIER MINICAB SER.(SURBITON)
717,CS -Oth Operating Inc & Expend,T/A Vehicle Maintenance etc,Transport-Contract Hire,J01374,Transport Related Expenditure ,Contract Hire and Op Leasing  ,CC64,CSF - SEN CABS (RK02)                   ,776,20161130,R,PREMIER MINICAB SER.(SURBITON)
718,CS -Oth Operating Inc & Expend,T/A Vehicle Maintenance etc,Transport-Contract Hire,J01374,Transport Related Expenditure ,Contract Hire and Op Leasing  ,CC64,CSF - SEN CABS (RK02)                   ,783.16,20161231,R,KAT TRANSPORT LTD
719,CS -Oth Operating Inc & Expend,T/A Vehicle Maintenance etc,Transport-Contract Hire,J01374,Transport Related Expenditure ,Contract Hire and Op Leasing  ,CC64,CSF - SEN CABS (RK02)                   ,793,20161222,R,SILVERBURN FINANCE (UK) LTD
720,CS -Oth Operating Inc & Expend,T/A Vehicle Maintenance etc,Transport-Contract Hire,J01374,Transport Related Expenditure ,Contract Hire and Op Leasing  ,CC64,CSF - SEN CABS (RK02)                   ,798,20161230,R,BRUNSWICK CARS LTD
721,CS -Oth Operating Inc & Expend,T/A Vehicle Maintenance etc,Transport-Contract Hire,J01374,Transport Related Expenditure ,Contract Hire and Op Leasing  ,CC64,CSF - SEN CABS (RK02)                   ,803.6,20161211,R,SHERWOOD CARS LIMITED
722,CS -Oth Operating Inc & Expend,T/A Vehicle Maintenance etc,Transport-Contract Hire,J01374,Transport Related Expenditure ,Contract Hire and Op Leasing  ,CC64,CSF - SEN CABS (RK02)                   ,812,20161230,R,BRUNSWICK CARS LTD
723,CS -Oth Operating Inc & Expend,T/A Vehicle Maintenance etc,Transport-Contract Hire,J01374,Transport Related Expenditure ,Contract Hire and Op Leasing  ,CC64,CSF - SEN CABS (RK02)                   ,812,20161212,R,BARCLAYS ASSET & SALES FINANCE
724,CS -Oth Operating Inc & Expend,T/A Vehicle Maintenance etc,Transport-Contract Hire,J01374,Transport Related Expenditure ,Contract Hire and Op Leasing  ,CC64,CSF - SEN CABS (RK02)                   ,818.3,20161211,R,PREMIER MINICAB SER.(SURBITON)
725,CS -Oth Operating Inc & Expend,T/A Vehicle Maintenance etc,Transport-Contract Hire,J01374,Transport Related Expenditure ,Contract Hire and Op Leasing  ,CC64,CSF - SEN CABS (RK02)                   ,826,20161230,R,BRUNSWICK CARS LTD
726,CS -Oth Operating Inc & Expend,T/A Vehicle Maintenance etc,Transport-Contract Hire,J01374,Transport Related Expenditure ,Contract Hire and Op Leasing  ,CC64,CSF - SEN CABS (RK02)                   ,833,20161222,R,SILVERBURN FINANCE (UK) LTD
727,CS -Oth Operating Inc & Expend,T/A Vehicle Maintenance etc,Transport-Contract Hire,J01374,Transport Related Expenditure ,Contract Hire and Op Leasing  ,CC64,CSF - SEN CABS (RK02)                   ,838,20161211,R,PREMIER MINICAB SER.(SURBITON)
728,CS -Oth Operating Inc & Expend,T/A Vehicle Maintenance etc,Transport-Contract Hire,J01374,Transport Related Expenditure ,Contract Hire and Op Leasing  ,CC64,CSF - SEN CABS (RK02)                   ,838.46,20161231,R,KAT TRANSPORT LTD
729,CS -Oth Operating Inc & Expend,T/A Vehicle Maintenance etc,Transport-Contract Hire,J01374,Transport Related Expenditure ,Contract Hire and Op Leasing  ,CC64,CSF - SEN CABS (RK02)                   ,853.3,20161231,R,KAT TRANSPORT LTD
730,CS -Oth Operating Inc & Expend,T/A Vehicle Maintenance etc,Transport-Contract Hire,J01374,Transport Related Expenditure ,Contract Hire and Op Leasing  ,CC64,CSF - SEN CABS (RK02)                   ,864,20161211,R,CHEAM STATION CARS
731,CS -Oth Operating Inc & Expend,T/A Vehicle Maintenance etc,Transport-Contract Hire,J01374,Transport Related Expenditure ,Contract Hire and Op Leasing  ,CC64,CSF - SEN CABS (RK02)                   ,868,20161211,R,A STAR TRANSPORT LIMITED
732,CS -Oth Operating Inc & Expend,T/A Vehicle Maintenance etc,Transport-Contract Hire,J01374,Transport Related Expenditure ,Contract Hire and Op Leasing  ,CC64,CSF - SEN CABS (RK02)                   ,870,20161230,R,BRUNSWICK CARS LTD
733,CS -Oth Operating Inc & Expend,T/A Vehicle Maintenance etc,Transport-Contract Hire,J01374,Transport Related Expenditure ,Contract Hire and Op Leasing  ,CC64,CSF - SEN CABS (RK02)                   ,875,20161222,R,SILVERBURN FINANCE (UK) LTD
734,CS -Oth Operating Inc & Expend,T/A Vehicle Maintenance etc,Transport-Contract Hire,J01374,Transport Related Expenditure ,Contract Hire and Op Leasing  ,CC64,CSF - SEN CABS (RK02)                   ,875,20161211,R,SHERWOOD CARS LIMITED
735,CS -Oth Operating Inc & Expend,T/A Vehicle Maintenance etc,Transport-Contract Hire,J01374,Transport Related Expenditure ,Contract Hire and Op Leasing  ,CC64,CSF - SEN CABS (RK02)                   ,882,20161222,R,SILVERBURN FINANCE (UK) LTD
736,CS -Oth Operating Inc & Expend,T/A Vehicle Maintenance etc,Transport-Contract Hire,J01374,Transport Related Expenditure ,Contract Hire and Op Leasing  ,CC64,CSF - SEN CABS (RK02)                   ,882,20161222,R,SILVERBURN FINANCE (UK) LTD
737,CS -Oth Operating Inc & Expend,T/A Vehicle Maintenance etc,Transport-Contract Hire,J01374,Transport Related Expenditure ,Contract Hire and Op Leasing  ,CC64,CSF - SEN CABS (RK02)                   ,889.6,20161212,R,CASCADE CARS SERVICE LTD
738,CS -Oth Operating Inc & Expend,T/A Vehicle Maintenance etc,Transport-Contract Hire,J01374,Transport Related Expenditure ,Contract Hire and Op Leasing  ,CC64,CSF - SEN CABS (RK02)                   ,896,20161231,R,KAT TRANSPORT LTD
739,CS -Oth Operating Inc & Expend,T/A Vehicle Maintenance etc,Transport-Contract Hire,J01374,Transport Related Expenditure ,Contract Hire and Op Leasing  ,CC64,CSF - SEN CABS (RK02)                   ,910,20161130,R,SILVERBURN FINANCE (UK) LTD
740,CS -Oth Operating Inc & Expend,T/A Vehicle Maintenance etc,Transport-Contract Hire,J01374,Transport Related Expenditure ,Contract Hire and Op Leasing  ,CC64,CSF - SEN CABS (RK02)                   ,921.06,20161231,R,KAT TRANSPORT LTD
741,CS -Oth Operating Inc & Expend,T/A Vehicle Maintenance etc,Transport-Contract Hire,J01374,Transport Related Expenditure ,Contract Hire and Op Leasing  ,CC64,CSF - SEN CABS (RK02)                   ,924,20161230,R,BRUNSWICK CARS LTD
742,CS -Oth Operating Inc & Expend,T/A Vehicle Maintenance etc,Transport-Contract Hire,J01374,Transport Related Expenditure ,Contract Hire and Op Leasing  ,CC64,CSF - SEN CABS (RK02)                   ,928.88,20161130,R,PREMIER MINICAB SER.(SURBITON)
743,CS -Oth Operating Inc & Expend,T/A Vehicle Maintenance etc,Transport-Contract Hire,J01374,Transport Related Expenditure ,Contract Hire and Op Leasing  ,CC64,CSF - SEN CABS (RK02)                   ,945,20161230,R,BRUNSWICK CARS LTD
744,CS -Oth Operating Inc & Expend,T/A Vehicle Maintenance etc,Transport-Contract Hire,J01374,Transport Related Expenditure ,Contract Hire and Op Leasing  ,CC64,CSF - SEN CABS (RK02)                   ,950.46,20161231,R,KAT TRANSPORT LTD
745,CS -Oth Operating Inc & Expend,T/A Vehicle Maintenance etc,Transport-Contract Hire,J01374,Transport Related Expenditure ,Contract Hire and Op Leasing  ,CC64,CSF - SEN CABS (RK02)                   ,966,20161230,R,BRUNSWICK CARS LTD
746,CS -Oth Operating Inc & Expend,T/A Vehicle Maintenance etc,Transport-Contract Hire,J01374,Transport Related Expenditure ,Contract Hire and Op Leasing  ,CC64,CSF - SEN CABS (RK02)                   ,966,20161222,R,SILVERBURN FINANCE (UK) LTD
747,CS -Oth Operating Inc & Expend,T/A Vehicle Maintenance etc,Transport-Contract Hire,J01374,Transport Related Expenditure ,Contract Hire and Op Leasing  ,CC64,CSF - SEN CABS (RK02)                   ,971.6,20161211,R,SHERWOOD CARS LIMITED
748,CS -Oth Operating Inc & Expend,T/A Vehicle Maintenance etc,Transport-Contract Hire,J01374,Transport Related Expenditure ,Contract Hire and Op Leasing  ,CC64,CSF - SEN CABS (RK02)                   ,973,20161230,R,BRUNSWICK CARS LTD
749,CS -Oth Operating Inc & Expend,T/A Vehicle Maintenance etc,Transport-Contract Hire,J01374,Transport Related Expenditure ,Contract Hire and Op Leasing  ,CC64,CSF - SEN CABS (RK02)                   ,979.72,20161231,R,KAT TRANSPORT LTD
750,CS -Oth Operating Inc & Expend,T/A Vehicle Maintenance etc,Transport-Contract Hire,J01374,Transport Related Expenditure ,Contract Hire and Op Leasing  ,CC64,CSF - SEN CABS (RK02)                   ,990,20161130,R,SNA TRANSPORT LTD
751,CS -Oth Operating Inc & Expend,T/A Vehicle Maintenance etc,Transport-Contract Hire,J01374,Transport Related Expenditure ,Contract Hire and Op Leasing  ,CC64,CSF - SEN CABS (RK02)                   ,992,20161130,R,CHEAM STATION CARS
752,CS -Oth Operating Inc & Expend,T/A Vehicle Maintenance etc,Transport-Contract Hire,J01374,Transport Related Expenditure ,Contract Hire and Op Leasing  ,CC64,CSF - SEN CABS (RK02)                   ,1001,20161230,R,BRUNSWICK CARS LTD
753,CS -Oth Operating Inc & Expend,T/A Vehicle Maintenance etc,Transport-Contract Hire,J01374,Transport Related Expenditure ,Contract Hire and Op Leasing  ,CC64,CSF - SEN CABS (RK02)                   ,1035.3,20161231,R,KAT TRANSPORT LTD
754,CS -Oth Operating Inc & Expend,T/A Vehicle Maintenance etc,Transport-Contract Hire,J01374,Transport Related Expenditure ,Contract Hire and Op Leasing  ,CC64,CSF - SEN CABS (RK02)                   ,1041.6,20161211,R,SHERWOOD CARS LIMITED
755,CS -Oth Operating Inc & Expend,T/A Vehicle Maintenance etc,Transport-Contract Hire,J01374,Transport Related Expenditure ,Contract Hire and Op Leasing  ,CC64,CSF - SEN CABS (RK02)                   ,1043,20161230,R,BRUNSWICK CARS LTD
756,CS -Oth Operating Inc & Expend,T/A Vehicle Maintenance etc,Transport-Contract Hire,J01374,Transport Related Expenditure ,Contract Hire and Op Leasing  ,CC64,CSF - SEN CABS (RK02)                   ,1050,20161211,R,SHERWOOD CARS LIMITED
757,CS -Oth Operating Inc & Expend,T/A Vehicle Maintenance etc,Transport-Contract Hire,J01374,Transport Related Expenditure ,Contract Hire and Op Leasing  ,CC64,CSF - SEN CABS (RK02)                   ,1050,20161212,R,BARCLAYS ASSET & SALES FINANCE
758,CS -Oth Operating Inc & Expend,T/A Vehicle Maintenance etc,Transport-Contract Hire,J01374,Transport Related Expenditure ,Contract Hire and Op Leasing  ,CC64,CSF - SEN CABS (RK02)                   ,1064,20161212,R,BARCLAYS ASSET & SALES FINANCE
759,CS -Oth Operating Inc & Expend,T/A Vehicle Maintenance etc,Transport-Contract Hire,J01374,Transport Related Expenditure ,Contract Hire and Op Leasing  ,CC64,CSF - SEN CABS (RK02)                   ,1077.3,20161231,R,KAT TRANSPORT LTD
760,CS -Oth Operating Inc & Expend,T/A Vehicle Maintenance etc,Transport-Contract Hire,J01374,Transport Related Expenditure ,Contract Hire and Op Leasing  ,CC64,CSF - SEN CABS (RK02)                   ,1097,20161130,R,PREMIER MINICAB SER.(SURBITON)
761,CS -Oth Operating Inc & Expend,T/A Vehicle Maintenance etc,Transport-Contract Hire,J01374,Transport Related Expenditure ,Contract Hire and Op Leasing  ,CC64,CSF - SEN CABS (RK02)                   ,1098,20161130,R,SILVERBURN FINANCE (UK) LTD
762,CS -Oth Operating Inc & Expend,T/A Vehicle Maintenance etc,Transport-Contract Hire,J01374,Transport Related Expenditure ,Contract Hire and Op Leasing  ,CC64,CSF - SEN CABS (RK02)                   ,1099,20161222,R,SILVERBURN FINANCE (UK) LTD
763,CS -Oth Operating Inc & Expend,T/A Vehicle Maintenance etc,Transport-Contract Hire,J01374,Transport Related Expenditure ,Contract Hire and Op Leasing  ,CC64,CSF - SEN CABS (RK02)                   ,1102.4,20161031,R,SNA TRANSPORT LTD
764,CS -Oth Operating Inc & Expend,T/A Vehicle Maintenance etc,Transport-Contract Hire,J01374,Transport Related Expenditure ,Contract Hire and Op Leasing  ,CC64,CSF - SEN CABS (RK02)                   ,1103.06,20161231,R,KAT TRANSPORT LTD
765,CS -Oth Operating Inc & Expend,T/A Vehicle Maintenance etc,Transport-Contract Hire,J01374,Transport Related Expenditure ,Contract Hire and Op Leasing  ,CC64,CSF - SEN CABS (RK02)                   ,1105.72,20161231,R,KAT TRANSPORT LTD
766,CS -Oth Operating Inc & Expend,T/A Vehicle Maintenance etc,Transport-Contract Hire,J01374,Transport Related Expenditure ,Contract Hire and Op Leasing  ,CC64,CSF - SEN CABS (RK02)                   ,1106,20161031,R,SNA TRANSPORT LTD
767,CS -Oth Operating Inc & Expend,T/A Vehicle Maintenance etc,Transport-Contract Hire,J01374,Transport Related Expenditure ,Contract Hire and Op Leasing  ,CC64,CSF - SEN CABS (RK02)                   ,1113.9,20161231,R,KAT TRANSPORT LTD
768,CS -Oth Operating Inc & Expend,T/A Vehicle Maintenance etc,Transport-Contract Hire,J01374,Transport Related Expenditure ,Contract Hire and Op Leasing  ,CC64,CSF - SEN CABS (RK02)                   ,1120,20161031,R,SNA TRANSPORT LTD
769,CS -Oth Operating Inc & Expend,T/A Vehicle Maintenance etc,Transport-Contract Hire,J01374,Transport Related Expenditure ,Contract Hire and Op Leasing  ,CC64,CSF - SEN CABS (RK02)                   ,1131.06,20161231,R,KAT TRANSPORT LTD
770,CS -Oth Operating Inc & Expend,T/A Vehicle Maintenance etc,Transport-Contract Hire,J01374,Transport Related Expenditure ,Contract Hire and Op Leasing  ,CC64,CSF - SEN CABS (RK02)                   ,1140,20161130,R,CHEAM STATION CARS
771,CS -Oth Operating Inc & Expend,T/A Vehicle Maintenance etc,Transport-Contract Hire,J01374,Transport Related Expenditure ,Contract Hire and Op Leasing  ,CC64,CSF - SEN CABS (RK02)                   ,1189.86,20161231,R,KAT TRANSPORT LTD
772,CS -Oth Operating Inc & Expend,T/A Vehicle Maintenance etc,Transport-Contract Hire,J01374,Transport Related Expenditure ,Contract Hire and Op Leasing  ,CC64,CSF - SEN CABS (RK02)                   ,1223.2,20161031,R,CASCADE CARS SERVICE LTD
773,CS -Oth Operating Inc & Expend,T/A Vehicle Maintenance etc,Transport-Contract Hire,J01374,Transport Related Expenditure ,Contract Hire and Op Leasing  ,CC64,CSF - SEN CABS (RK02)                   ,1242,20161031,R,SNA TRANSPORT LTD
774,CS -Oth Operating Inc & Expend,T/A Vehicle Maintenance etc,Transport-Contract Hire,J01374,Transport Related Expenditure ,Contract Hire and Op Leasing  ,CC64,CSF - SEN CABS (RK02)                   ,1246,20161212,R,BARCLAYS ASSET & SALES FINANCE
775,CS -Oth Operating Inc & Expend,T/A Vehicle Maintenance etc,Transport-Contract Hire,J01374,Transport Related Expenditure ,Contract Hire and Op Leasing  ,CC64,CSF - SEN CABS (RK02)                   ,1260,20161130,R,CHEAM STATION CARS
776,CS -Oth Operating Inc & Expend,T/A Vehicle Maintenance etc,Transport-Contract Hire,J01374,Transport Related Expenditure ,Contract Hire and Op Leasing  ,CC64,CSF - SEN CABS (RK02)                   ,1264,20161031,R,SNA TRANSPORT LTD
777,CS -Oth Operating Inc & Expend,T/A Vehicle Maintenance etc,Transport-Contract Hire,J01374,Transport Related Expenditure ,Contract Hire and Op Leasing  ,CC64,CSF - SEN CABS (RK02)                   ,1302,20161031,R,SNA TRANSPORT LTD
778,CS -Oth Operating Inc & Expend,T/A Vehicle Maintenance etc,Transport-Contract Hire,J01374,Transport Related Expenditure ,Contract Hire and Op Leasing  ,CC64,CSF - SEN CABS (RK02)                   ,1315.6,20161130,R,PREMIER MINICAB SER.(SURBITON)
779,CS -Oth Operating Inc & Expend,T/A Vehicle Maintenance etc,Transport-Contract Hire,J01374,Transport Related Expenditure ,Contract Hire and Op Leasing  ,CC64,CSF - SEN CABS (RK02)                   ,1316,20161230,R,BRUNSWICK CARS LTD
780,CS -Oth Operating Inc & Expend,T/A Vehicle Maintenance etc,Transport-Contract Hire,J01374,Transport Related Expenditure ,Contract Hire and Op Leasing  ,CC64,CSF - SEN CABS (RK02)                   ,1320,20161130,R,CHEAM STATION CARS
781,CS -Oth Operating Inc & Expend,T/A Vehicle Maintenance etc,Transport-Contract Hire,J01374,Transport Related Expenditure ,Contract Hire and Op Leasing  ,CC64,CSF - SEN CABS (RK02)                   ,1330,20161230,R,BRUNSWICK CARS LTD
782,CS -Oth Operating Inc & Expend,T/A Vehicle Maintenance etc,Transport-Contract Hire,J01374,Transport Related Expenditure ,Contract Hire and Op Leasing  ,CC64,CSF - SEN CABS (RK02)                   ,1332,20161130,R,BRUNSWICK CARS LTD
783,CS -Oth Operating Inc & Expend,T/A Vehicle Maintenance etc,Transport-Contract Hire,J01374,Transport Related Expenditure ,Contract Hire and Op Leasing  ,CC64,CSF - SEN CABS (RK02)                   ,1350,20161031,R,SNA TRANSPORT LTD
784,CS -Oth Operating Inc & Expend,T/A Vehicle Maintenance etc,Transport-Contract Hire,J01374,Transport Related Expenditure ,Contract Hire and Op Leasing  ,CC64,CSF - SEN CABS (RK02)                   ,1376.4,20161031,R,SNA TRANSPORT LTD
785,CS -Oth Operating Inc & Expend,T/A Vehicle Maintenance etc,Transport-Contract Hire,J01374,Transport Related Expenditure ,Contract Hire and Op Leasing  ,CC64,CSF - SEN CABS (RK02)                   ,1400,20161130,R,CHEAM STATION CARS
786,CS -Oth Operating Inc & Expend,T/A Vehicle Maintenance etc,Transport-Contract Hire,J01374,Transport Related Expenditure ,Contract Hire and Op Leasing  ,CC64,CSF - SEN CABS (RK02)                   ,1400,20161130,R,PREMIER MINICAB SER.(SURBITON)
787,CS -Oth Operating Inc & Expend,T/A Vehicle Maintenance etc,Transport-Contract Hire,J01374,Transport Related Expenditure ,Contract Hire and Op Leasing  ,CC64,CSF - SEN CABS (RK02)                   ,1420.8,20161031,R,SNA TRANSPORT LTD
788,CS -Oth Operating Inc & Expend,T/A Vehicle Maintenance etc,Transport-Contract Hire,J01374,Transport Related Expenditure ,Contract Hire and Op Leasing  ,CC64,CSF - SEN CABS (RK02)                   ,1435,20161130,R,CASCADE CARS SERVICE LTD
789,CS -Oth Operating Inc & Expend,T/A Vehicle Maintenance etc,Transport-Contract Hire,J01374,Transport Related Expenditure ,Contract Hire and Op Leasing  ,CC64,CSF - SEN CABS (RK02)                   ,1439.3,20161130,R,PREMIER MINICAB SER.(SURBITON)
790,CS -Oth Operating Inc & Expend,T/A Vehicle Maintenance etc,Transport-Contract Hire,J01374,Transport Related Expenditure ,Contract Hire and Op Leasing  ,CC64,CSF - SEN CABS (RK02)                   ,1462.5,20161031,R,SNA TRANSPORT LTD
791,CS -Oth Operating Inc & Expend,T/A Vehicle Maintenance etc,Transport-Contract Hire,J01374,Transport Related Expenditure ,Contract Hire and Op Leasing  ,CC64,CSF - SEN CABS (RK02)                   ,1494.5,20161211,R,PREMIER MINICAB SER.(SURBITON)
792,CS -Oth Operating Inc & Expend,T/A Vehicle Maintenance etc,Transport-Contract Hire,J01374,Transport Related Expenditure ,Contract Hire and Op Leasing  ,CC64,CSF - SEN CABS (RK02)                   ,1496,20161130,R,CAPITAL CARS
793,CS -Oth Operating Inc & Expend,T/A Vehicle Maintenance etc,Transport-Contract Hire,J01374,Transport Related Expenditure ,Contract Hire and Op Leasing  ,CC64,CSF - SEN CABS (RK02)                   ,1519.7,20161130,R,PREMIER MINICAB SER.(SURBITON)
794,CS -Oth Operating Inc & Expend,T/A Vehicle Maintenance etc,Transport-Contract Hire,J01374,Transport Related Expenditure ,Contract Hire and Op Leasing  ,CC64,CSF - SEN CABS (RK02)                   ,1530,20161130,R,BRUNSWICK CARS LTD
795,CS -Oth Operating Inc & Expend,T/A Vehicle Maintenance etc,Transport-Contract Hire,J01374,Transport Related Expenditure ,Contract Hire and Op Leasing  ,CC64,CSF - SEN CABS (RK02)                   ,1540,20161130,R,CHEAM STATION CARS
796,CS -Oth Operating Inc & Expend,T/A Vehicle Maintenance etc,Transport-Contract Hire,J01374,Transport Related Expenditure ,Contract Hire and Op Leasing  ,CC64,CSF - SEN CABS (RK02)                   ,1540,20161130,R,SNA TRANSPORT LTD
797,CS -Oth Operating Inc & Expend,T/A Vehicle Maintenance etc,Transport-Contract Hire,J01374,Transport Related Expenditure ,Contract Hire and Op Leasing  ,CC64,CSF - SEN CABS (RK02)                   ,1548.8,20161031,R,SNA TRANSPORT LTD
798,CS -Oth Operating Inc & Expend,T/A Vehicle Maintenance etc,Transport-Contract Hire,J01374,Transport Related Expenditure ,Contract Hire and Op Leasing  ,CC64,CSF - SEN CABS (RK02)                   ,1572,20161031,R,SNA TRANSPORT LTD
799,CS -Oth Operating Inc & Expend,T/A Vehicle Maintenance etc,Transport-Contract Hire,J01374,Transport Related Expenditure ,Contract Hire and Op Leasing  ,CC64,CSF - SEN CABS (RK02)                   ,1612,20161031,R,SNA TRANSPORT LTD
800,CS -Oth Operating Inc & Expend,T/A Vehicle Maintenance etc,Transport-Contract Hire,J01374,Transport Related Expenditure ,Contract Hire and Op Leasing  ,CC64,CSF - SEN CABS (RK02)                   ,1620,20161130,R,SNA TRANSPORT LTD
801,CS -Oth Operating Inc & Expend,T/A Vehicle Maintenance etc,Transport-Contract Hire,J01374,Transport Related Expenditure ,Contract Hire and Op Leasing  ,CC64,CSF - SEN CABS (RK02)                   ,1656,20161130,R,SNA TRANSPORT LTD
802,CS -Oth Operating Inc & Expend,T/A Vehicle Maintenance etc,Transport-Contract Hire,J01374,Transport Related Expenditure ,Contract Hire and Op Leasing  ,CC64,CSF - SEN CABS (RK02)                   ,1672,20161130,R,PREMIER MINICAB SER.(SURBITON)
803,CS -Oth Operating Inc & Expend,T/A Vehicle Maintenance etc,Transport-Contract Hire,J01374,Transport Related Expenditure ,Contract Hire and Op Leasing  ,CC64,CSF - SEN CABS (RK02)                   ,1672,20161130,R,CAPITAL CARS
804,CS -Oth Operating Inc & Expend,T/A Vehicle Maintenance etc,Transport-Contract Hire,J01374,Transport Related Expenditure ,Contract Hire and Op Leasing  ,CC64,CSF - SEN CABS (RK02)                   ,1705,20161031,R,SNA TRANSPORT LTD
805,CS -Oth Operating Inc & Expend,T/A Vehicle Maintenance etc,Transport-Contract Hire,J01374,Transport Related Expenditure ,Contract Hire and Op Leasing  ,CC64,CSF - SEN CABS (RK02)                   ,1738,20161130,R,SNA TRANSPORT LTD
806,CS -Oth Operating Inc & Expend,T/A Vehicle Maintenance etc,Transport-Contract Hire,J01374,Transport Related Expenditure ,Contract Hire and Op Leasing  ,CC64,CSF - SEN CABS (RK02)                   ,1738,20161130,R,SNA TRANSPORT LTD
807,CS -Oth Operating Inc & Expend,T/A Vehicle Maintenance etc,Transport-Contract Hire,J01374,Transport Related Expenditure ,Contract Hire and Op Leasing  ,CC64,CSF - SEN CABS (RK02)                   ,1738.4,20161130,R,SNA TRANSPORT LTD
808,CS -Oth Operating Inc & Expend,T/A Vehicle Maintenance etc,Transport-Contract Hire,J01374,Transport Related Expenditure ,Contract Hire and Op Leasing  ,CC64,CSF - SEN CABS (RK02)                   ,1785.6,20161031,R,SNA TRANSPORT LTD
809,CS -Oth Operating Inc & Expend,T/A Vehicle Maintenance etc,Transport-Contract Hire,J01374,Transport Related Expenditure ,Contract Hire and Op Leasing  ,CC64,CSF - SEN CABS (RK02)                   ,1788.8,20161031,R,SNA TRANSPORT LTD
810,CS -Oth Operating Inc & Expend,T/A Vehicle Maintenance etc,Transport-Contract Hire,J01374,Transport Related Expenditure ,Contract Hire and Op Leasing  ,CC64,CSF - SEN CABS (RK02)                   ,1848,20161130,R,SILVERBURN FINANCE (UK) LTD
811,CS -Oth Operating Inc & Expend,T/A Vehicle Maintenance etc,Transport-Contract Hire,J01374,Transport Related Expenditure ,Contract Hire and Op Leasing  ,CC64,CSF - SEN CABS (RK02)                   ,1848,20161130,R,SILVERBURN FINANCE (UK) LTD
812,CS -Oth Operating Inc & Expend,T/A Vehicle Maintenance etc,Transport-Contract Hire,J01374,Transport Related Expenditure ,Contract Hire and Op Leasing  ,CC64,CSF - SEN CABS (RK02)                   ,1848,20161130,R,BRUNSWICK CARS LTD
813,CS -Oth Operating Inc & Expend,T/A Vehicle Maintenance etc,Transport-Contract Hire,J01374,Transport Related Expenditure ,Contract Hire and Op Leasing  ,CC64,CSF - SEN CABS (RK02)                   ,1872,20161130,R,BRUNSWICK CARS LTD
814,CS -Oth Operating Inc & Expend,T/A Vehicle Maintenance etc,Transport-Contract Hire,J01374,Transport Related Expenditure ,Contract Hire and Op Leasing  ,CC64,CSF - SEN CABS (RK02)                   ,1872,20161130,R,BRUNSWICK CARS LTD
815,CS -Oth Operating Inc & Expend,T/A Vehicle Maintenance etc,Transport-Contract Hire,J01374,Transport Related Expenditure ,Contract Hire and Op Leasing  ,CC64,CSF - SEN CABS (RK02)                   ,1875,20161031,R,SNA TRANSPORT LTD
816,CS -Oth Operating Inc & Expend,T/A Vehicle Maintenance etc,Transport-Contract Hire,J01374,Transport Related Expenditure ,Contract Hire and Op Leasing  ,CC64,CSF - SEN CABS (RK02)                   ,1916.8,20161031,R,SNA TRANSPORT LTD
817,CS -Oth Operating Inc & Expend,T/A Vehicle Maintenance etc,Transport-Contract Hire,J01374,Transport Related Expenditure ,Contract Hire and Op Leasing  ,CC64,CSF - SEN CABS (RK02)                   ,1934,20161130,R,CHEAM STATION CARS
818,CS -Oth Operating Inc & Expend,T/A Vehicle Maintenance etc,Transport-Contract Hire,J01374,Transport Related Expenditure ,Contract Hire and Op Leasing  ,CC64,CSF - SEN CABS (RK02)                   ,1953.6,20161130,R,SNA TRANSPORT LTD
819,CS -Oth Operating Inc & Expend,T/A Vehicle Maintenance etc,Transport-Contract Hire,J01374,Transport Related Expenditure ,Contract Hire and Op Leasing  ,CC64,CSF - SEN CABS (RK02)                   ,1953.6,20161130,R,SNA TRANSPORT LTD
820,CS -Oth Operating Inc & Expend,T/A Vehicle Maintenance etc,Transport-Contract Hire,J01374,Transport Related Expenditure ,Contract Hire and Op Leasing  ,CC64,CSF - SEN CABS (RK02)                   ,1980,20161130,R,BRUNSWICK CARS LTD
821,CS -Oth Operating Inc & Expend,T/A Vehicle Maintenance etc,Transport-Contract Hire,J01374,Transport Related Expenditure ,Contract Hire and Op Leasing  ,CC64,CSF - SEN CABS (RK02)                   ,1980,20161130,R,BRUNSWICK CARS LTD
822,CS -Oth Operating Inc & Expend,T/A Vehicle Maintenance etc,Transport-Contract Hire,J01374,Transport Related Expenditure ,Contract Hire and Op Leasing  ,CC64,CSF - SEN CABS (RK02)                   ,2024,20161130,R,BRUNSWICK CARS LTD
823,CS -Oth Operating Inc & Expend,T/A Vehicle Maintenance etc,Transport-Contract Hire,J01374,Transport Related Expenditure ,Contract Hire and Op Leasing  ,CC64,CSF - SEN CABS (RK02)                   ,2046,20161130,R,BRUNSWICK CARS LTD
824,CS -Oth Operating Inc & Expend,T/A Vehicle Maintenance etc,Transport-Contract Hire,J01374,Transport Related Expenditure ,Contract Hire and Op Leasing  ,CC64,CSF - SEN CABS (RK02)                   ,2047.5,20161130,R,SNA TRANSPORT LTD
825,CS -Oth Operating Inc & Expend,T/A Vehicle Maintenance etc,Transport-Contract Hire,J01374,Transport Related Expenditure ,Contract Hire and Op Leasing  ,CC64,CSF - SEN CABS (RK02)                   ,2088,20161130,R,BRUNSWICK CARS LTD
826,CS -Oth Operating Inc & Expend,T/A Vehicle Maintenance etc,Transport-Contract Hire,J01374,Transport Related Expenditure ,Contract Hire and Op Leasing  ,CC64,CSF - SEN CABS (RK02)                   ,2090,20161130,R,BRUNSWICK CARS LTD
827,CS -Oth Operating Inc & Expend,T/A Vehicle Maintenance etc,Transport-Contract Hire,J01374,Transport Related Expenditure ,Contract Hire and Op Leasing  ,CC64,CSF - SEN CABS (RK02)                   ,2112,20161130,R,CHEAM STATION CARS
828,CS -Oth Operating Inc & Expend,T/A Vehicle Maintenance etc,Transport-Contract Hire,J01374,Transport Related Expenditure ,Contract Hire and Op Leasing  ,CC64,CSF - SEN CABS (RK02)                   ,2112,20161130,R,KENDALL CARS
829,CS -Oth Operating Inc & Expend,T/A Vehicle Maintenance etc,Transport-Contract Hire,J01374,Transport Related Expenditure ,Contract Hire and Op Leasing  ,CC64,CSF - SEN CABS (RK02)                   ,2112,20161230,R,BRUNSWICK CARS LTD
830,CS -Oth Operating Inc & Expend,T/A Vehicle Maintenance etc,Transport-Contract Hire,J01374,Transport Related Expenditure ,Contract Hire and Op Leasing  ,CC64,CSF - SEN CABS (RK02)                   ,2112,20161130,R,SILVERBURN FINANCE (UK) LTD
831,CS -Oth Operating Inc & Expend,T/A Vehicle Maintenance etc,Transport-Contract Hire,J01374,Transport Related Expenditure ,Contract Hire and Op Leasing  ,CC64,CSF - SEN CABS (RK02)                   ,2184,20161130,R,CAPITAL CARS
832,CS -Oth Operating Inc & Expend,T/A Vehicle Maintenance etc,Transport-Contract Hire,J01374,Transport Related Expenditure ,Contract Hire and Op Leasing  ,CC64,CSF - SEN CABS (RK02)                   ,2184,20161130,R,CHEAM STATION CARS
833,CS -Oth Operating Inc & Expend,T/A Vehicle Maintenance etc,Transport-Contract Hire,J01374,Transport Related Expenditure ,Contract Hire and Op Leasing  ,CC64,CSF - SEN CABS (RK02)                   ,2200,20161130,R,BRUNSWICK CARS LTD
834,CS -Oth Operating Inc & Expend,T/A Vehicle Maintenance etc,Transport-Contract Hire,J01374,Transport Related Expenditure ,Contract Hire and Op Leasing  ,CC64,CSF - SEN CABS (RK02)                   ,2200,20161130,R,BRUNSWICK CARS LTD
835,CS -Oth Operating Inc & Expend,T/A Vehicle Maintenance etc,Transport-Contract Hire,J01374,Transport Related Expenditure ,Contract Hire and Op Leasing  ,CC64,CSF - SEN CABS (RK02)                   ,2288,20161130,R,A STAR TRANSPORT LIMITED
836,CS -Oth Operating Inc & Expend,T/A Vehicle Maintenance etc,Transport-Contract Hire,J01374,Transport Related Expenditure ,Contract Hire and Op Leasing  ,CC64,CSF - SEN CABS (RK02)                   ,2288,20161130,R,BRUNSWICK CARS LTD
837,CS -Oth Operating Inc & Expend,T/A Vehicle Maintenance etc,Transport-Contract Hire,J01374,Transport Related Expenditure ,Contract Hire and Op Leasing  ,CC64,CSF - SEN CABS (RK02)                   ,2293.75,20161130,R,PREMIER MINICAB SER.(SURBITON)
838,CS -Oth Operating Inc & Expend,T/A Vehicle Maintenance etc,Transport-Contract Hire,J01374,Transport Related Expenditure ,Contract Hire and Op Leasing  ,CC64,CSF - SEN CABS (RK02)                   ,2305.6,20161130,R,SNA TRANSPORT LTD
839,CS -Oth Operating Inc & Expend,T/A Vehicle Maintenance etc,Transport-Contract Hire,J01374,Transport Related Expenditure ,Contract Hire and Op Leasing  ,CC64,CSF - SEN CABS (RK02)                   ,2310,20161130,R,BRUNSWICK CARS LTD
840,CS -Oth Operating Inc & Expend,T/A Vehicle Maintenance etc,Transport-Contract Hire,J01374,Transport Related Expenditure ,Contract Hire and Op Leasing  ,CC64,CSF - SEN CABS (RK02)                   ,2376,20161130,R,BRUNSWICK CARS LTD
841,CS -Oth Operating Inc & Expend,T/A Vehicle Maintenance etc,Transport-Contract Hire,J01374,Transport Related Expenditure ,Contract Hire and Op Leasing  ,CC64,CSF - SEN CABS (RK02)                   ,2379,20161130,R,SILVERBURN FINANCE (UK) LTD
842,CS -Oth Operating Inc & Expend,T/A Vehicle Maintenance etc,Transport-Contract Hire,J01374,Transport Related Expenditure ,Contract Hire and Op Leasing  ,CC64,CSF - SEN CABS (RK02)                   ,2393.6,20161130,R,SNA TRANSPORT LTD
843,CS -Oth Operating Inc & Expend,T/A Vehicle Maintenance etc,Transport-Contract Hire,J01374,Transport Related Expenditure ,Contract Hire and Op Leasing  ,CC64,CSF - SEN CABS (RK02)                   ,2400,20161031,R,SNA TRANSPORT LTD
844,CS -Oth Operating Inc & Expend,T/A Vehicle Maintenance etc,Transport-Contract Hire,J01374,Transport Related Expenditure ,Contract Hire and Op Leasing  ,CC64,CSF - SEN CABS (RK02)                   ,2446.4,20161130,R,CASCADE CARS SERVICE LTD
845,CS -Oth Operating Inc & Expend,T/A Vehicle Maintenance etc,Transport-Contract Hire,J01374,Transport Related Expenditure ,Contract Hire and Op Leasing  ,CC64,CSF - SEN CABS (RK02)                   ,2470,20161130,R,PREMIER MINICAB SER.(SURBITON)
846,CS -Oth Operating Inc & Expend,T/A Vehicle Maintenance etc,Transport-Contract Hire,J01374,Transport Related Expenditure ,Contract Hire and Op Leasing  ,CC64,CSF - SEN CABS (RK02)                   ,2478,20161130,R,BRUNSWICK CARS LTD
847,CS -Oth Operating Inc & Expend,T/A Vehicle Maintenance etc,Transport-Contract Hire,J01374,Transport Related Expenditure ,Contract Hire and Op Leasing  ,CC64,CSF - SEN CABS (RK02)                   ,2484,20161130,R,CAPITAL CARS
848,CS -Oth Operating Inc & Expend,T/A Vehicle Maintenance etc,Transport-Contract Hire,J01374,Transport Related Expenditure ,Contract Hire and Op Leasing  ,CC64,CSF - SEN CABS (RK02)                   ,2508,20161130,R,BRUNSWICK CARS LTD
849,CS -Oth Operating Inc & Expend,T/A Vehicle Maintenance etc,Transport-Contract Hire,J01374,Transport Related Expenditure ,Contract Hire and Op Leasing  ,CC64,CSF - SEN CABS (RK02)                   ,2530.5,20161130,R,SILVERBURN FINANCE (UK) LTD
850,CS -Oth Operating Inc & Expend,T/A Vehicle Maintenance etc,Transport-Contract Hire,J01374,Transport Related Expenditure ,Contract Hire and Op Leasing  ,CC64,CSF - SEN CABS (RK02)                   ,2557.2,20161130,R,SNA TRANSPORT LTD
851,CS -Oth Operating Inc & Expend,T/A Vehicle Maintenance etc,Transport-Contract Hire,J01374,Transport Related Expenditure ,Contract Hire and Op Leasing  ,CC64,CSF - SEN CABS (RK02)                   ,2573.6,20161130,R,SNA TRANSPORT LTD
852,CS -Oth Operating Inc & Expend,T/A Vehicle Maintenance etc,Transport-Contract Hire,J01374,Transport Related Expenditure ,Contract Hire and Op Leasing  ,CC64,CSF - SEN CABS (RK02)                   ,2574,20161130,R,BRUNSWICK CARS LTD
853,CS -Oth Operating Inc & Expend,T/A Vehicle Maintenance etc,Transport-Contract Hire,J01374,Transport Related Expenditure ,Contract Hire and Op Leasing  ,CC64,CSF - SEN CABS (RK02)                   ,2682,20161130,R,BRUNSWICK CARS LTD
854,CS -Oth Operating Inc & Expend,T/A Vehicle Maintenance etc,Transport-Contract Hire,J01374,Transport Related Expenditure ,Contract Hire and Op Leasing  ,CC64,CSF - SEN CABS (RK02)                   ,2728,20161130,R,A STAR TRANSPORT LIMITED
855,CS -Oth Operating Inc & Expend,T/A Vehicle Maintenance etc,Transport-Contract Hire,J01374,Transport Related Expenditure ,Contract Hire and Op Leasing  ,CC64,CSF - SEN CABS (RK02)                   ,2750,20161130,R,SILVERBURN FINANCE (UK) LTD
856,CS -Oth Operating Inc & Expend,T/A Vehicle Maintenance etc,Transport-Contract Hire,J01374,Transport Related Expenditure ,Contract Hire and Op Leasing  ,CC64,CSF - SEN CABS (RK02)                   ,2750,20161130,R,SNA TRANSPORT LTD
857,CS -Oth Operating Inc & Expend,T/A Vehicle Maintenance etc,Transport-Contract Hire,J01374,Transport Related Expenditure ,Contract Hire and Op Leasing  ,CC64,CSF - SEN CABS (RK02)                   ,2772,20161130,R,SILVERBURN FINANCE (UK) LTD
858,CS -Oth Operating Inc & Expend,T/A Vehicle Maintenance etc,Transport-Contract Hire,J01374,Transport Related Expenditure ,Contract Hire and Op Leasing  ,CC64,CSF - SEN CABS (RK02)                   ,2889.5,20161130,R,SILVERBURN FINANCE (UK) LTD
859,CS -Oth Operating Inc & Expend,T/A Vehicle Maintenance etc,Transport-Contract Hire,J01374,Transport Related Expenditure ,Contract Hire and Op Leasing  ,CC64,CSF - SEN CABS (RK02)                   ,2904,20161130,R,BRUNSWICK CARS LTD
860,CS -Oth Operating Inc & Expend,T/A Vehicle Maintenance etc,Transport-Contract Hire,J01374,Transport Related Expenditure ,Contract Hire and Op Leasing  ,CC64,CSF - SEN CABS (RK02)                   ,2970,20161130,R,BRUNSWICK CARS LTD
861,CS -Oth Operating Inc & Expend,T/A Vehicle Maintenance etc,Transport-Contract Hire,J01374,Transport Related Expenditure ,Contract Hire and Op Leasing  ,CC64,CSF - SEN CABS (RK02)                   ,3036,20161130,R,SILVERBURN FINANCE (UK) LTD
862,CS -Oth Operating Inc & Expend,T/A Vehicle Maintenance etc,Transport-Contract Hire,J01374,Transport Related Expenditure ,Contract Hire and Op Leasing  ,CC64,CSF - SEN CABS (RK02)                   ,3036,20161130,R,BRUNSWICK CARS LTD
863,CS -Oth Operating Inc & Expend,T/A Vehicle Maintenance etc,Transport-Contract Hire,J01374,Transport Related Expenditure ,Contract Hire and Op Leasing  ,CC64,CSF - SEN CABS (RK02)                   ,3053.6,20161130,R,SNA TRANSPORT LTD
864,CS -Oth Operating Inc & Expend,T/A Vehicle Maintenance etc,Transport-Contract Hire,J01374,Transport Related Expenditure ,Contract Hire and Op Leasing  ,CC64,CSF - SEN CABS (RK02)                   ,3058,20161130,R,BRUNSWICK CARS LTD
865,CS -Oth Operating Inc & Expend,T/A Vehicle Maintenance etc,Transport-Contract Hire,J01374,Transport Related Expenditure ,Contract Hire and Op Leasing  ,CC64,CSF - SEN CABS (RK02)                   ,3124.8,20161130,R,SNA TRANSPORT LTD
866,CS -Oth Operating Inc & Expend,T/A Vehicle Maintenance etc,Transport-Contract Hire,J01374,Transport Related Expenditure ,Contract Hire and Op Leasing  ,CC64,CSF - SEN CABS (RK02)                   ,3300,20161130,R,SNA TRANSPORT LTD
867,CS -Oth Operating Inc & Expend,T/A Vehicle Maintenance etc,Transport-Contract Hire,J01374,Transport Related Expenditure ,Contract Hire and Op Leasing  ,CC64,CSF - SEN CABS (RK02)                   ,3454,20161130,R,SILVERBURN FINANCE (UK) LTD
868,CS -Oth Operating Inc & Expend,T/A Vehicle Maintenance etc,Transport-Contract Hire,J01374,Transport Related Expenditure ,Contract Hire and Op Leasing  ,CC64,CSF - SEN CABS (RK02)                   ,4136,20161130,R,BRUNSWICK CARS LTD
869,CS -Oth Operating Inc & Expend,T/A Vehicle Maintenance etc,Transport-Contract Hire,J01374,Transport Related Expenditure ,Contract Hire and Op Leasing  ,CC64,CSF - SEN CABS (RK02)                   ,4180,20161130,R,BRUNSWICK CARS LTD
870,CS -Oth Operating Inc & Expend,T/A Vehicle Maintenance etc,Transport-Contract Hire,J01374,Transport Related Expenditure ,Contract Hire and Op Leasing  ,CC64,CSF - SEN CABS (RK02)                   ,4590.25,20161130,R,PREMIER MINICAB SER.(SURBITON)
871,CS -Oth Operating Inc & Expend,T/A Vehicle Maintenance etc,Transport-Contract Hire,J01374,Transport Related Expenditure ,Contract Hire and Op Leasing  ,CC66,CSF - CHILDREN CABS (RK09)              ,910,20161231,R,OAKMARKET GROUP LTD
872,CS -Oth Operating Inc & Expend,T/A Vehicle Maintenance etc,Transport-Contract Hire,J01374,Transport Related Expenditure ,Contract Hire and Op Leasing  ,CC66,CSF - CHILDREN CABS (RK09)              ,960,20161130,R,SILVERBURN FINANCE (UK) LTD
873,CS -Oth Operating Inc & Expend,T/A Vehicle Maintenance etc,Transport-Contract Hire,J01374,Transport Related Expenditure ,Contract Hire and Op Leasing  ,CC66,CSF - CHILDREN CABS (RK09)              ,1540,20161130,R,OAKMARKET GROUP LTD
874,CS -Oth Operating Inc & Expend,T/A Vehicle Maintenance etc,Transport-Contract Hire,J01374,Transport Related Expenditure ,Contract Hire and Op Leasing  ,CC67,C&H - ADULTS CABS (RK08)                ,541.2,20161130,R,SILVERBURN FINANCE (UK) LTD
875,CS -Oth Operating Inc & Expend,T/A Vehicle Maintenance etc,Transport-Contract Hire,J01374,Transport Related Expenditure ,Contract Hire and Op Leasing  ,CC67,C&H - ADULTS CABS (RK08)                ,618,20161211,R,CHEAM STATION CARS
876,CS -Oth Operating Inc & Expend,T/A Vehicle Maintenance etc,Transport-Contract Hire,J01374,Transport Related Expenditure ,Contract Hire and Op Leasing  ,CC67,C&H - ADULTS CABS (RK08)                ,630,20161211,R,SHERWOOD CARS LIMITED
877,CS -Oth Operating Inc & Expend,T/A Vehicle Maintenance etc,Transport-Contract Hire,J01374,Transport Related Expenditure ,Contract Hire and Op Leasing  ,CC67,C&H - ADULTS CABS (RK08)                ,693,20161222,R,SILVERBURN FINANCE (UK) LTD
878,CS -Oth Operating Inc & Expend,T/A Vehicle Maintenance etc,Transport-Contract Hire,J01374,Transport Related Expenditure ,Contract Hire and Op Leasing  ,CC67,C&H - ADULTS CABS (RK08)                ,979.72,20161231,R,KAT TRANSPORT LTD
879,CS -Oth Operating Inc & Expend,T/A Vehicle Maintenance etc,Transport-Contract Hire,J01374,Transport Related Expenditure ,Contract Hire and Op Leasing  ,CC67,C&H - ADULTS CABS (RK08)                ,1122,20161130,R,PREMIER MINICAB SER.(SURBITON)
880,CS -Oth Operating Inc & Expend,T/A Vehicle Maintenance etc,Transport-Contract Hire,J01374,Transport Related Expenditure ,Contract Hire and Op Leasing  ,CC67,C&H - ADULTS CABS (RK08)                ,1207,20161130,R,A STAR TRANSPORT LIMITED
881,CS -Oth Operating Inc & Expend,T/A Vehicle Maintenance etc,Transport-Contract Hire,J01374,Transport Related Expenditure ,Contract Hire and Op Leasing  ,CC67,C&H - ADULTS CABS (RK08)                ,1328,20161130,R,CHEAM STATION CARS
882,CS -Oth Operating Inc & Expend,T/A Vehicle Maintenance etc,Transport-Contract Hire,J01374,Transport Related Expenditure ,Contract Hire and Op Leasing  ,CC67,C&H - ADULTS CABS (RK08)                ,1360,20161130,R,PREMIER MINICAB SER.(SURBITON)
883,CS -Oth Operating Inc & Expend,T/A Vehicle Maintenance etc,Transport-Contract Hire,J01374,Transport Related Expenditure ,Contract Hire and Op Leasing  ,CC67,C&H - ADULTS CABS (RK08)                ,1408,20161130,R,A STAR TRANSPORT LIMITED
884,CS -Oth Operating Inc & Expend,T/A Vehicle Maintenance etc,Transport-Contract Hire,J01374,Transport Related Expenditure ,Contract Hire and Op Leasing  ,CC67,C&H - ADULTS CABS (RK08)                ,1408,20161130,R,CHEAM STATION CARS
885,CS -Oth Operating Inc & Expend,T/A Vehicle Maintenance etc,Transport-Contract Hire,J01374,Transport Related Expenditure ,Contract Hire and Op Leasing  ,CC67,C&H - ADULTS CABS (RK08)                ,1925,20161031,R,SNA TRANSPORT LTD
886,CS -Oth Operating Inc & Expend,T/A Vehicle Maintenance etc,Transport-Contract Hire,J01374,Transport Related Expenditure ,Contract Hire and Op Leasing  ,CC67,C&H - ADULTS CABS (RK08)                ,1925,20161130,R,SNA TRANSPORT LTD
887,CS -Oth Operating Inc & Expend,T/A Vehicle Maintenance etc,Transport-Contract Hire,J01374,Transport Related Expenditure ,Contract Hire and Op Leasing  ,CC67,C&H - ADULTS CABS (RK08)                ,1942,20161130,R,CHEAM STATION CARS
888,CS -Oth Operating Inc & Expend,T/A Vehicle Maintenance etc,Transport-Contract Hire,J01374,Transport Related Expenditure ,Contract Hire and Op Leasing  ,CC67,C&H - ADULTS CABS (RK08)                ,2178,20161130,R,SILVERBURN FINANCE (UK) LTD
889,CS -Oth Operating Inc & Expend,T/A Vehicle Maintenance etc,Transport-Contract Hire,J01374,Transport Related Expenditure ,Contract Hire and Op Leasing  ,CC68,CSF - COLLEGES CABS (RK03)              ,528,20161230,R,BRUNSWICK CARS LTD
890,CS -Oth Operating Inc & Expend,T/A Vehicle Maintenance etc,Transport-Contract Hire,J01374,Transport Related Expenditure ,Contract Hire and Op Leasing  ,CC68,CSF - COLLEGES CABS (RK03)              ,571.2,20161212,R,CASCADE CARS SERVICE LTD
891,CS -Oth Operating Inc & Expend,T/A Vehicle Maintenance etc,Transport-Contract Hire,J01374,Transport Related Expenditure ,Contract Hire and Op Leasing  ,CC68,CSF - COLLEGES CABS (RK03)              ,594,20161130,R,CHEAM STATION CARS
892,CS -Oth Operating Inc & Expend,T/A Vehicle Maintenance etc,Transport-Contract Hire,J01374,Transport Related Expenditure ,Contract Hire and Op Leasing  ,CC68,CSF - COLLEGES CABS (RK03)              ,677.6,20161211,R,SHERWOOD CARS LIMITED
893,CS -Oth Operating Inc & Expend,T/A Vehicle Maintenance etc,Transport-Contract Hire,J01374,Transport Related Expenditure ,Contract Hire and Op Leasing  ,CC68,CSF - COLLEGES CABS (RK03)              ,752,20160930,R,CASCADE CARS SERVICE LTD
894,CS -Oth Operating Inc & Expend,T/A Vehicle Maintenance etc,Transport-Contract Hire,J01374,Transport Related Expenditure ,Contract Hire and Op Leasing  ,CC68,CSF - COLLEGES CABS (RK03)              ,1096.2,20161130,R,PREMIER MINICAB SER.(SURBITON)
895,CS -Oth Operating Inc & Expend,T/A Vehicle Maintenance etc,Transport-Contract Hire,J01374,Transport Related Expenditure ,Contract Hire and Op Leasing  ,CC68,CSF - COLLEGES CABS (RK03)              ,1232,20161130,R,BRUNSWICK CARS LTD
896,CS -Oth Operating Inc & Expend,T/A Vehicle Maintenance etc,Transport-Contract Hire,J01374,Transport Related Expenditure ,Contract Hire and Op Leasing  ,CC68,CSF - COLLEGES CABS (RK03)              ,1269,20161031,R,CASCADE CARS SERVICE LTD
897,CS -Oth Operating Inc & Expend,T/A Vehicle Maintenance etc,Transport-Contract Hire,J01374,Transport Related Expenditure ,Contract Hire and Op Leasing  ,CC68,CSF - COLLEGES CABS (RK03)              ,1684,20161130,R,CHEAM STATION CARS
898,CS -Oth Operating Inc & Expend,T/A Vehicle Maintenance etc,Transport-Contract Hire,J01374,Transport Related Expenditure ,Contract Hire and Op Leasing  ,CC68,CSF - COLLEGES CABS (RK03)              ,1692,20161130,R,CASCADE CARS SERVICE LTD
899,CS -Oth Operating Inc & Expend,T/A Vehicle Maintenance etc,Transport-Contract Hire,J01374,Transport Related Expenditure ,Contract Hire and Op Leasing  ,CC68,CSF - COLLEGES CABS (RK03)              ,2129.6,20161130,R,SNA TRANSPORT LTD
900,CS -Oth Operating Inc & Expend,T/A Vehicle Maintenance etc,Transport-Contract Hire,J01374,Transport Related Expenditure ,Contract Hire and Op Leasing  ,CC69,LB Sutt Minibuses Trm Contract          ,745,20170109,R,GULLIVER'S TRUCK HIRE LTD.
901,CS -Oth Operating Inc & Expend,T/A Vehicle Maintenance etc,Transport-Contract Hire,J01374,Transport Related Expenditure ,Contract Hire and Op Leasing  ,CC69,LB Sutt Minibuses Trm Contract          ,745,20161223,R,GULLIVER'S TRUCK HIRE LTD.
902,CS -Oth Operating Inc & Expend,T/A Vehicle Maintenance etc,Transport-Contract Hire,J01374,Transport Related Expenditure ,Contract Hire and Op Leasing  ,CC69,LB Sutt Minibuses Trm Contract          ,745,20170106,R,GULLIVER'S TRUCK HIRE LTD.
903,CS -Oth Operating Inc & Expend,T/A Vehicle Maintenance etc,Transport-Contract Hire,J01374,Transport Related Expenditure ,Contract Hire and Op Leasing  ,CC69,LB Sutt Minibuses Trm Contract          ,745,20161212,R,GULLIVER'S TRUCK HIRE LTD.
904,CS -Oth Operating Inc & Expend,T/A Vehicle Maintenance etc,Transport-Contract Hire,J01374,Transport Related Expenditure ,Contract Hire and Op Leasing  ,CC69,LB Sutt Minibuses Trm Contract          ,745,20170113,R,GULLIVER'S TRUCK HIRE LTD.
